Organisation Code,BodyName,ServiceLabel,ServiceDivisionLabel,ExpenditureCategory,DetailedExpenditureType,DetailedExpenditureCode,DatePaid,TransactionNumber,NetAmount,CapitalOrRevenue,SupplierName,Procurement Card
Http://opendatacommunities.org/id/metropolitan-district-council/leeds,Leeds City Council,Central & Corporate,Commercial Services Trading Services,Supplies and Services,Operational Materials,205,31-Oct-2014,1410-00001,53.78,R,A & A Electrical Distributors Ltd,No
Http://opendatacommunities.org/id/metropolitan-district-council/leeds,Leeds City Council,Environment & Housing,Parks & Countryside  ,Supplies and Services,Operational Materials,205,01-Sep-2014,1410-00002,24.25,R,A & E Macgregor,Yes
Http://opendatacommunities.org/id/metropolitan-district-council/leeds,Leeds City Council,Environment & Housing,Environmental Health,Capital,Construction,3,31-Oct-2014,1410-00003,14400.00,C,A & P Crontractors Ltd,No
Http://opendatacommunities.org/id/metropolitan-district-council/leeds,Leeds City Council as Accountable Body,Social Services Pooled Budgets,Leeds Community Equip Store Pooled Budgt,Supplies and Services,Other Equipment,203,29-Oct-2014,1410-00004,4841.79,R,A & P Crontractors Ltd,No
Http://opendatacommunities.org/id/metropolitan-district-council/leeds,Leeds City Council,Childrens Services,Safeguarding Targeted & Specialist,Third Party Payments,Section 17,551,02-Oct-2014,1410-00005,550.00,R,A Ahmadi,No
Http://opendatacommunities.org/id/metropolitan-district-council/leeds,Leeds City Council,Central & Corporate,Commercial Services Trading Services,Supplies and Services,Operational Materials,205,23-Oct-2014,1410-00006,138.90,R,A Andrews & Sons (Marbles & Tiles),No
Http://opendatacommunities.org/id/metropolitan-district-council/leeds,Leeds City Council,Central & Corporate,Commercial Services Trading Services,Supplies and Services,Operational Materials,205,22-Oct-2014,1410-00007,109.72,R,A Andrews & Sons (Marbles & Tiles),No
Http://opendatacommunities.org/id/metropolitan-district-council/leeds,Leeds City Council,Central & Corporate,Commercial Services Trading Services,Supplies and Services,Operational Materials,205,22-Oct-2014,1410-00008,36.00,R,A Andrews & Sons (Marbles & Tiles),No
Http://opendatacommunities.org/id/metropolitan-district-council/leeds,Leeds City Council,Central & Corporate,Commercial Services Trading Services,Supplies and Services,Operational Materials,205,22-Oct-2014,1410-00009,2636.20,R,A Andrews & Sons (Marbles & Tiles),No
Http://opendatacommunities.org/id/metropolitan-district-council/leeds,Leeds City Council,Central & Corporate,Commercial Services Trading Services,Supplies and Services,Operational Materials,205,22-Oct-2014,1410-00010,27.22,R,A Andrews & Sons (Marbles & Tiles),No
Http://opendatacommunities.org/id/metropolitan-district-council/leeds,Leeds City Council,Central & Corporate,Commercial Services Trading Services,Supplies and Services,Operational Materials,205,03-Oct-2014,1410-00011,25.64,R,A Andrews & Sons (Marbles & Tiles),No
Http://opendatacommunities.org/id/metropolitan-district-council/leeds,Leeds City Council,Central & Corporate,Commercial Services Trading Services,Supplies and Services,Operational Materials,205,03-Oct-2014,1410-00012,13.57,R,A Andrews & Sons (Marbles & Tiles),No
Http://opendatacommunities.org/id/metropolitan-district-council/leeds,Leeds City Council,Central & Corporate,Commercial Services Trading Services,Supplies and Services,Operational Materials,205,03-Oct-2014,1410-00013,325.40,R,A Andrews & Sons (Marbles & Tiles),No
Http://opendatacommunities.org/id/metropolitan-district-council/leeds,Leeds City Council,Central & Corporate,Commercial Services Trading Services,Supplies and Services,Operational Materials,205,01-Oct-2014,1410-00014,81.53,R,A Andrews & Sons (Marbles & Tiles),No
Http://opendatacommunities.org/id/metropolitan-district-council/leeds,Leeds City Council,Central & Corporate,Commercial Services Trading Services,Supplies and Services,Operational Materials,205,01-Oct-2014,1410-00015,16.66,R,A Andrews & Sons (Marbles & Tiles),No
Http://opendatacommunities.org/id/metropolitan-district-council/leeds,Leeds City Council,City Development,Libraries  Arts & Heritage,Supplies and Services,Other Hired And Contracted Services,265,22-Oct-2014,1410-00016,120.00,R,REDACTED PERSONAL DATA,No
Http://opendatacommunities.org/id/metropolitan-district-council/leeds,Leeds City Council,City Development,Employment & Skills,Supplies and Services,Other Hired And Contracted Services,265,31-Oct-2014,1410-00017,248.19,R,REDACTED PERSONAL DATA,No
Http://opendatacommunities.org/id/metropolitan-district-council/leeds,Leeds City Council,City Development,Recreation,Income,Swimming Bath Charges,923,30-Oct-2014,1410-00018,32.40,R,REDACTED PERSONAL DATA,No
Http://opendatacommunities.org/id/metropolitan-district-council/leeds,Leeds City Council,City Development,Libraries  Arts & Heritage,Supplies and Services,Operational Materials,205,17-Oct-2014,1410-00019,212.18,R,A C Entertainment Technologies Ltd,No
Http://opendatacommunities.org/id/metropolitan-district-council/leeds,Leeds City Council,Childrens Services,Learning Skills & Universal,Third Party Payments,Services Rendered By Other Organisations,511,29-Oct-2014,1410-00020,349.20,R,A Clarkson,No
Http://opendatacommunities.org/id/metropolitan-district-council/leeds,Leeds City Council,Adult Social Care,Roseville Enterprises,Supplies and Services,Operational Furniture And Equipment,203,10-Oct-2014,1410-00021,2390.00,R,A D G Engineering Ltd,No
Http://opendatacommunities.org/id/metropolitan-district-council/leeds,Leeds City Council,Adult Social Care,Roseville Enterprises,Supplies and Services,Operational Furniture And Equipment,203,24-Oct-2014,1410-00022,220.53,R,A D G Engineering Ltd,No
Http://opendatacommunities.org/id/metropolitan-district-council/leeds,Leeds City Council,Childrens Services,Learning Skills & Universal,Third Party Payments,Services Rendered By Voluntary Sector,505,24-Oct-2014,1410-00023,872.00,R,A E Speight,No
Http://opendatacommunities.org/id/metropolitan-district-council/leeds,Leeds City Council,Childrens Services,Learning Skills & Universal,Third Party Payments,Services Rendered By Other Organisations,511,23-Oct-2014,1410-00024,49.00,R,A Foley,No
Http://opendatacommunities.org/id/metropolitan-district-council/leeds,Leeds City Council,Childrens Services,Learning Skills & Universal,Third Party Payments,Services Rendered By Other Organisations,511,23-Oct-2014,1410-00025,273.60,R,A Foley,No
Http://opendatacommunities.org/id/metropolitan-district-council/leeds,Leeds City Council,Childrens Services,Safeguarding Targeted & Specialist,Third Party Payments,Rents (non supported),552,28-Oct-2014,1410-00026,387.50,R,A G Webb,No
Http://opendatacommunities.org/id/metropolitan-district-council/leeds,Leeds City Council,Central & Corporate,Customer Services,Supplies and Services,Telephones,213,10-Oct-2014,1410-00027,25.00,R,REDACTED PERSONAL DATA,No
Http://opendatacommunities.org/id/metropolitan-district-council/leeds,Leeds City Council,Childrens Services,Learning Skills & Universal,Third Party Payments,Services Rendered By Other Organisations,511,24-Oct-2014,1410-00028,70.00,R,A Hodgson,No
Http://opendatacommunities.org/id/metropolitan-district-council/leeds,Leeds City Council,City Development,Libraries  Arts & Heritage,Supplies and Services,Other Hired And Contracted Services,265,24-Oct-2014,1410-00029,285.00,R,REDACTED COMMERCIAL CONFIDENTIALITY,No
Http://opendatacommunities.org/id/metropolitan-district-council/leeds,Leeds City Council,City Development,Libraries  Arts & Heritage,Supplies and Services,Other Hired And Contracted Services,265,30-Oct-2014,1410-00030,65.00,R,REDACTED COMMERCIAL CONFIDENTIALITY,No
Http://opendatacommunities.org/id/metropolitan-district-council/leeds,Leeds City Council,Central & Corporate,Commercial Services Trading Services,Supplies and Services,Operational Materials,205,20-Oct-2014,1410-00031,130.95,R,A J H  Pump Supply & Repair Ltd,No
Http://opendatacommunities.org/id/metropolitan-district-council/leeds,Leeds City Council,Central & Corporate,Commercial Services Trading Services,Supplies and Services,Operational Materials,205,17-Oct-2014,1410-00032,257.42,R,A J H  Pump Supply & Repair Ltd,No
Http://opendatacommunities.org/id/metropolitan-district-council/leeds,Leeds City Council,Central & Corporate,Commercial Services Trading Services,Supplies and Services,Operational Materials,205,10-Oct-2014,1410-00033,194.81,R,A J H  Pump Supply & Repair Ltd,No
Http://opendatacommunities.org/id/metropolitan-district-council/leeds,Leeds City Council,Central & Corporate,Commercial Services Trading Services,Supplies and Services,Operational Materials,205,10-Oct-2014,1410-00034,32.13,R,A J H  Pump Supply & Repair Ltd,No
Http://opendatacommunities.org/id/metropolitan-district-council/leeds,Leeds City Council,Central & Corporate,Commercial Services Trading Services,Supplies and Services,Operational Materials,205,10-Oct-2014,1410-00035,50.90,R,A J H  Pump Supply & Repair Ltd,No
Http://opendatacommunities.org/id/metropolitan-district-council/leeds,Leeds City Council,Central & Corporate,Commercial Services Trading Services,Supplies and Services,Operational Materials,205,10-Oct-2014,1410-00036,209.90,R,A J H  Pump Supply & Repair Ltd,No
Http://opendatacommunities.org/id/metropolitan-district-council/leeds,Leeds City Council,Central & Corporate,Commercial Services Trading Services,Supplies and Services,Operational Materials,205,21-Oct-2014,1410-00037,34.31,R,A J H  Pump Supply & Repair Ltd,No
Http://opendatacommunities.org/id/metropolitan-district-council/leeds,Leeds City Council,Central & Corporate,Commercial Services Trading Services,Supplies and Services,Operational Materials,205,10-Oct-2014,1410-00038,66.45,R,A J H  Pump Supply & Repair Ltd,No
Http://opendatacommunities.org/id/metropolitan-district-council/leeds,Leeds City Council,Central & Corporate,Commercial Services Trading Services,Supplies and Services,Operational Materials,205,21-Oct-2014,1410-00039,22.00,R,A J H  Pump Supply & Repair Ltd,No
Http://opendatacommunities.org/id/metropolitan-district-council/leeds,Leeds City Council,Central & Corporate,Commercial Services Trading Services,Supplies and Services,Operational Materials,205,10-Oct-2014,1410-00040,180.68,R,A J H  Pump Supply & Repair Ltd,No
Http://opendatacommunities.org/id/metropolitan-district-council/leeds,Leeds City Council,Central & Corporate,Commercial Services Trading Services,Supplies and Services,Operational Materials,205,10-Oct-2014,1410-00041,81.00,R,A J H  Pump Supply & Repair Ltd,No
Http://opendatacommunities.org/id/metropolitan-district-council/leeds,Leeds City Council,Central & Corporate,Commercial Services Trading Services,Supplies and Services,Operational Materials,205,20-Oct-2014,1410-00042,7.00,R,A J H  Pump Supply & Repair Ltd,No
Http://opendatacommunities.org/id/metropolitan-district-council/leeds,Leeds City Council,Central & Corporate,Commercial Services Trading Services,Supplies and Services,Operational Materials,205,20-Oct-2014,1410-00043,348.29,R,A J H  Pump Supply & Repair Ltd,No
Http://opendatacommunities.org/id/metropolitan-district-council/leeds,Leeds City Council,Central & Corporate,Commercial Services Trading Services,Supplies and Services,Operational Materials,205,20-Oct-2014,1410-00044,218.78,R,A J H  Pump Supply & Repair Ltd,No
Http://opendatacommunities.org/id/metropolitan-district-council/leeds,Leeds City Council,Central & Corporate,Commercial Services Trading Services,Supplies and Services,Operational Materials,205,20-Oct-2014,1410-00045,118.33,R,A J H  Pump Supply & Repair Ltd,No
Http://opendatacommunities.org/id/metropolitan-district-council/leeds,Leeds City Council,Central & Corporate,Commercial Services Trading Services,Supplies and Services,Operational Materials,205,20-Oct-2014,1410-00046,74.79,R,A J H  Pump Supply & Repair Ltd,No
Http://opendatacommunities.org/id/metropolitan-district-council/leeds,Leeds City Council,Central & Corporate,Commercial Services Trading Services,Supplies and Services,Operational Materials,205,31-Oct-2014,1410-00047,97.39,R,A J H  Pump Supply & Repair Ltd,No
Http://opendatacommunities.org/id/metropolitan-district-council/leeds,Leeds City Council,Central & Corporate,Commercial Services Trading Services,Supplies and Services,Operational Materials,205,20-Oct-2014,1410-00048,444.04,R,A J H  Pump Supply & Repair Ltd,No
Http://opendatacommunities.org/id/metropolitan-district-council/leeds,Leeds City Council,Central & Corporate,Commercial Services Trading Services,Supplies and Services,Operational Materials,205,20-Oct-2014,1410-00049,133.91,R,A J H  Pump Supply & Repair Ltd,No
Http://opendatacommunities.org/id/metropolitan-district-council/leeds,Leeds City Council,Central & Corporate,Commercial Services Trading Services,Supplies and Services,Operational Materials,205,20-Oct-2014,1410-00050,99.00,R,A J H  Pump Supply & Repair Ltd,No
Http://opendatacommunities.org/id/metropolitan-district-council/leeds,Leeds City Council,Central & Corporate,Commercial Services Trading Services,Supplies and Services,Operational Materials,205,20-Oct-2014,1410-00051,88.13,R,A J H  Pump Supply & Repair Ltd,No
Http://opendatacommunities.org/id/metropolitan-district-council/leeds,Leeds City Council,Central & Corporate,Commercial Services Trading Services,Supplies and Services,Operational Materials,205,23-Oct-2014,1410-00052,42.36,R,A J H  Pump Supply & Repair Ltd,No
Http://opendatacommunities.org/id/metropolitan-district-council/leeds,Leeds City Council,Central & Corporate,Commercial Services Trading Services,Supplies and Services,Operational Materials,205,07-Oct-2014,1410-00053,35.25,R,A J H  Pump Supply & Repair Ltd,No
Http://opendatacommunities.org/id/metropolitan-district-council/leeds,Leeds City Council,Central & Corporate,Commercial Services Trading Services,Supplies and Services,Operational Materials,205,07-Oct-2014,1410-00054,159.29,R,A J H  Pump Supply & Repair Ltd,No
Http://opendatacommunities.org/id/metropolitan-district-council/leeds,Leeds City Council,Central & Corporate,Commercial Services Trading Services,Supplies and Services,Operational Materials,205,07-Oct-2014,1410-00055,64.92,R,A J H  Pump Supply & Repair Ltd,No
Http://opendatacommunities.org/id/metropolitan-district-council/leeds,Leeds City Council,Central & Corporate,Commercial Services Trading Services,Supplies and Services,Operational Materials,205,21-Oct-2014,1410-00056,35.09,R,A J H  Pump Supply & Repair Ltd,No
Http://opendatacommunities.org/id/metropolitan-district-council/leeds,Leeds City Council,Central & Corporate,Commercial Services Trading Services,Supplies and Services,Operational Materials,205,21-Oct-2014,1410-00057,956.56,R,A J H  Pump Supply & Repair Ltd,No
Http://opendatacommunities.org/id/metropolitan-district-council/leeds,Leeds City Council,Central & Corporate,Commercial Services Trading Services,Supplies and Services,Operational Materials,205,07-Oct-2014,1410-00058,1441.00,R,A J H  Pump Supply & Repair Ltd,No
Http://opendatacommunities.org/id/metropolitan-district-council/leeds,Leeds City Council,Central & Corporate,Commercial Services Trading Services,Supplies and Services,Operational Materials,205,03-Oct-2014,1410-00059,1416.00,R,A J H  Pump Supply & Repair Ltd,No
Http://opendatacommunities.org/id/metropolitan-district-council/leeds,Leeds City Council,Central & Corporate,Commercial Services Trading Services,Supplies and Services,Operational Materials,205,10-Oct-2014,1410-00060,91.61,R,A J H  Pump Supply & Repair Ltd,No
Http://opendatacommunities.org/id/metropolitan-district-council/leeds,Leeds City Council,Central & Corporate,Commercial Services Trading Services,Supplies and Services,Operational Materials,205,10-Oct-2014,1410-00061,768.60,R,A J H  Pump Supply & Repair Ltd,No
Http://opendatacommunities.org/id/metropolitan-district-council/leeds,Leeds City Council,Central & Corporate,Commercial Services Trading Services,Supplies and Services,Operational Materials,205,10-Oct-2014,1410-00062,15.45,R,A J H  Pump Supply & Repair Ltd,No
Http://opendatacommunities.org/id/metropolitan-district-council/leeds,Leeds City Council,Central & Corporate,Commercial Services Trading Services,Supplies and Services,Operational Materials,205,10-Oct-2014,1410-00063,18.80,R,A J H  Pump Supply & Repair Ltd,No
Http://opendatacommunities.org/id/metropolitan-district-council/leeds,Leeds City Council,Central & Corporate,Commercial Services Trading Services,Supplies and Services,Operational Materials,205,10-Oct-2014,1410-00064,114.50,R,A J H  Pump Supply & Repair Ltd,No
Http://opendatacommunities.org/id/metropolitan-district-council/leeds,Leeds City Council,Central & Corporate,Commercial Services Trading Services,Supplies and Services,Operational Materials,205,10-Oct-2014,1410-00065,233.52,R,A J H  Pump Supply & Repair Ltd,No
Http://opendatacommunities.org/id/metropolitan-district-council/leeds,Leeds City Council,Central & Corporate,Commercial Services Trading Services,Supplies and Services,Operational Materials,205,10-Oct-2014,1410-00066,32.99,R,A J H  Pump Supply & Repair Ltd,No
Http://opendatacommunities.org/id/metropolitan-district-council/leeds,Leeds City Council,Central & Corporate,Commercial Services Trading Services,Supplies and Services,Operational Materials,205,10-Oct-2014,1410-00067,231.69,R,A J H  Pump Supply & Repair Ltd,No
Http://opendatacommunities.org/id/metropolitan-district-council/leeds,Leeds City Council,Central & Corporate,Commercial Services Trading Services,Supplies and Services,Operational Materials,205,10-Oct-2014,1410-00068,35.80,R,A J H  Pump Supply & Repair Ltd,No
Http://opendatacommunities.org/id/metropolitan-district-council/leeds,Leeds City Council,Central & Corporate,Commercial Services Trading Services,Supplies and Services,Operational Materials,205,10-Oct-2014,1410-00069,54.70,R,A J H  Pump Supply & Repair Ltd,No
Http://opendatacommunities.org/id/metropolitan-district-council/leeds,Leeds City Council,Central & Corporate,Commercial Services Trading Services,Supplies and Services,Operational Materials,205,10-Oct-2014,1410-00070,25.00,R,A J H  Pump Supply & Repair Ltd,No
Http://opendatacommunities.org/id/metropolitan-district-council/leeds,Leeds City Council,Central & Corporate,Commercial Services Trading Services,Supplies and Services,Operational Materials,205,10-Oct-2014,1410-00071,133.05,R,A J H  Pump Supply & Repair Ltd,No
Http://opendatacommunities.org/id/metropolitan-district-council/leeds,Leeds City Council,Central & Corporate,Commercial Services Trading Services,Supplies and Services,Operational Materials,205,10-Oct-2014,1410-00072,137.90,R,A J H  Pump Supply & Repair Ltd,No
Http://opendatacommunities.org/id/metropolitan-district-council/leeds,Leeds City Council,Central & Corporate,Commercial Services Trading Services,Supplies and Services,Operational Materials,205,21-Oct-2014,1410-00073,75.00,R,A J H  Pump Supply & Repair Ltd,No
Http://opendatacommunities.org/id/metropolitan-district-council/leeds,Leeds City Council,Central & Corporate,Commercial Services Trading Services,Supplies and Services,Operational Materials,205,10-Oct-2014,1410-00074,178.55,R,A J H  Pump Supply & Repair Ltd,No
Http://opendatacommunities.org/id/metropolitan-district-council/leeds,Leeds City Council,Central & Corporate,Commercial Services Trading Services,Supplies and Services,Operational Materials,205,10-Oct-2014,1410-00075,490.00,R,A J H  Pump Supply & Repair Ltd,No
Http://opendatacommunities.org/id/metropolitan-district-council/leeds,Leeds City Council,City Development,Economic Development,Supplies and Services,Resaleable Materials,204,10-Oct-2014,1410-00076,524.37,R,A J Promotions,No
Http://opendatacommunities.org/id/metropolitan-district-council/leeds,Leeds City Council,City Development,Libraries  Arts & Heritage,Supplies and Services,Resaleable Materials,204,10-Oct-2014,1410-00077,319.12,R,A J Promotions,No
Http://opendatacommunities.org/id/metropolitan-district-council/leeds,Leeds City Council,City Development,Libraries  Arts & Heritage,Supplies and Services,Resaleable Materials,204,10-Oct-2014,1410-00078,335.30,R,A J Promotions,No
Http://opendatacommunities.org/id/metropolitan-district-council/leeds,Leeds City Council,City Development,Libraries  Arts & Heritage,Supplies and Services,Resaleable Materials,204,31-Oct-2014,1410-00079,62.00,R,A J Promotions,No
Http://opendatacommunities.org/id/metropolitan-district-council/leeds,Leeds City Council,Environment & Housing,Parks & Countryside,Supplies and Services,Resaleable Materials,204,01-Oct-2014,1410-00080,261.74,R,A J Promotions,No
Http://opendatacommunities.org/id/metropolitan-district-council/leeds,Leeds City Council,Environment & Housing,Parks & Countryside,Supplies and Services,Resaleable Materials,204,17-Oct-2014,1410-00081,485.75,R,A J Promotions,No
Http://opendatacommunities.org/id/metropolitan-district-council/leeds,Leeds City Council,Central & Corporate,Customer Services,Supplies and Services,Other Hired And Contracted Services,265,07-Oct-2014,1410-00082,163.75,R,A Mohammed,No
Http://opendatacommunities.org/id/metropolitan-district-council/leeds,Leeds City Council,Central & Corporate,Customer Services,Supplies and Services,Other Hired And Contracted Services,265,30-Oct-2014,1410-00083,41.50,R,A Mohammed,No
Http://opendatacommunities.org/id/metropolitan-district-council/leeds,Leeds City Council,Central & Corporate,Customer Services,Supplies and Services,Other Hired And Contracted Services,265,09-Oct-2014,1410-00084,86.50,R,A Mohammed,No
Http://opendatacommunities.org/id/metropolitan-district-council/leeds,Leeds City Council,Central & Corporate,Customer Services,Supplies and Services,Other Hired And Contracted Services,265,09-Oct-2014,1410-00085,307.25,R,A Musalam,No
Http://opendatacommunities.org/id/metropolitan-district-council/leeds,Leeds City Council,Central & Corporate,Customer Services,Supplies and Services,Other Hired And Contracted Services,265,30-Oct-2014,1410-00086,363.75,R,A Musalam,No
Http://opendatacommunities.org/id/metropolitan-district-council/leeds,Leeds City Council,Childrens Services,Learning Skills & Universal,Third Party Payments,Services Rendered By Other Organisations,511,29-Oct-2014,1410-00087,523.80,R,REDACTED PERSONAL DATA,No
Http://opendatacommunities.org/id/metropolitan-district-council/leeds,Leeds City Council,Central & Corporate,Customer Services,Supplies and Services,Other Hired And Contracted Services,265,07-Oct-2014,1410-00088,444.00,R,A Namaki,No
Http://opendatacommunities.org/id/metropolitan-district-council/leeds,Leeds City Council,Environment & Housing,Parks & Countryside,Supplies and Services,Other Hired And Contracted Services,265,01-Oct-2014,1410-00089,1305.60,R,A Nicholls,No
Http://opendatacommunities.org/id/metropolitan-district-council/leeds,Leeds City Council,Environment & Housing,Housing Leeds Service,Capital,Other Costs,7,09-Oct-2014,1410-00090,400.00,C,REDACTED PERSONAL DATA,No
Http://opendatacommunities.org/id/metropolitan-district-council/leeds,Leeds City Council,Environment & Housing,Parks & Countryside,Supplies and Services,Operational Materials,205,31-Oct-2014,1410-00091,119.17,R,A R Twigg & Son Limited,No
Http://opendatacommunities.org/id/metropolitan-district-council/leeds,Leeds City Council,Adult Social Care,Services For Older People Under 65 P/Dis,Transfer Payments,Direct Payments,626,22-Oct-2014,1410-00092,1006.92,R,REDACTED PERSONAL DATA,No
Http://opendatacommunities.org/id/metropolitan-district-council/leeds,Leeds City Council,City Development,Libraries  Arts & Heritage,Supplies and Services,Books & Audio-Visual Materials,206,03-Oct-2014,1410-00093,130.75,R,A S Jhagra,No
Http://opendatacommunities.org/id/metropolitan-district-council/leeds,Leeds City Council,City Development,Libraries  Arts & Heritage,Supplies and Services,Books & Audio-Visual Materials,206,31-Oct-2014,1410-00094,129.70,R,A S Jhagra,No
Http://opendatacommunities.org/id/metropolitan-district-council/leeds,Leeds City Council,Central & Corporate,Support And Facilities General Fund,Supplies and Services,Other Hired And Contracted Services,265,29-Oct-2014,1410-00095,35.90,R,A Star Couriers Ltd,No
Http://opendatacommunities.org/id/metropolitan-district-council/leeds,Leeds City Council,Childrens Services,Learning Skills & Universal,Third Party Payments,Services Rendered By Other Organisations,511,23-Oct-2014,1410-00096,156.00,R,REDACTED PERSONAL DATA,No
Http://opendatacommunities.org/id/metropolitan-district-council/leeds,Leeds City Council,Childrens Services,Safeguarding Targeted & Specialist,Third Party Payments,Placement Support,550,30-Oct-2014,1410-00097,170.00,R,REDACTED PERSONAL DATA,No
Http://opendatacommunities.org/id/metropolitan-district-council/leeds,Leeds City Council,Childrens Services,Safeguarding Targeted & Specialist,Supplies and Services,Office Furniture & Equipment,201,08-Oct-2014,1410-00098,180.00,R,A To Z Safe Warehouse Ltd,No
Http://opendatacommunities.org/id/metropolitan-district-council/leeds,Leeds City Council,Childrens Services,Learning Skills & Universal,Third Party Payments,Services Rendered By Other Organisations,511,24-Oct-2014,1410-00099,152.00,R,A Walding,No
Http://opendatacommunities.org/id/metropolitan-district-council/leeds,Leeds City Council,Childrens Services,Learning Skills & Universal,Third Party Payments,Services Rendered By Other Organisations,511,29-Oct-2014,1410-00100,683.85,R,A Walding,No
Http://opendatacommunities.org/id/metropolitan-district-council/leeds,Leeds City Council,Childrens Services,Learning Skills & Universal,Third Party Payments,Services Rendered By Other Organisations,511,29-Oct-2014,1410-00101,873.00,R,A Walding,No
Http://opendatacommunities.org/id/metropolitan-district-council/leeds,Leeds City Council,Childrens Services,Learning Skills & Universal,Third Party Payments,Fees To Carers,563,09-Oct-2014,1410-00102,654.75,R,A Walding,No
Http://opendatacommunities.org/id/metropolitan-district-council/leeds,Leeds City Council,Childrens Services,Safeguarding Targeted & Specialist,Third Party Payments,General External Residential Placements,507,02-Oct-2014,1410-00103,4650.00,R,A Wilderness Way,No
Http://opendatacommunities.org/id/metropolitan-district-council/leeds,Leeds City Council,Childrens Services,Safeguarding Targeted & Specialist,Third Party Payments,General External Residential Placements,507,08-Oct-2014,1410-00104,4650.00,R,A Wilderness Way,No
Http://opendatacommunities.org/id/metropolitan-district-council/leeds,Leeds City Council,Childrens Services,Safeguarding Targeted & Specialist,Third Party Payments,General External Residential Placements,507,15-Oct-2014,1410-00105,4650.00,R,A Wilderness Way,No
Http://opendatacommunities.org/id/metropolitan-district-council/leeds,Leeds City Council,Childrens Services,Safeguarding Targeted & Specialist,Third Party Payments,General External Residential Placements,507,22-Oct-2014,1410-00106,4650.00,R,A Wilderness Way,No
Http://opendatacommunities.org/id/metropolitan-district-council/leeds,Leeds City Council,Childrens Services,Safeguarding Targeted & Specialist,Third Party Payments,General External Residential Placements,507,29-Oct-2014,1410-00107,4650.00,R,A Wilderness Way,No
Http://opendatacommunities.org/id/metropolitan-district-council/leeds,Leeds City Council,Adult Social Care,Services For Older People Under 65 P/Dis,Transfer Payments,Direct Payments,626,22-Oct-2014,1410-00108,1384.16,R,REDACTED PERSONAL DATA,No
Http://opendatacommunities.org/id/metropolitan-district-council/leeds,Leeds City Council,Environment & Housing,Parks & Countryside,Supplies and Services,Other Hired And Contracted Services,265,08-Oct-2014,1410-00109,500.00,R,A Wright,No
Http://opendatacommunities.org/id/metropolitan-district-council/leeds,Leeds City Council,Central & Corporate,Customer Services,Supplies and Services,Other Hired And Contracted Services,265,07-Oct-2014,1410-00110,87.12,R,A Zeir,No
Http://opendatacommunities.org/id/metropolitan-district-council/leeds,Leeds City Council,City Development,Recreation,Income,Swimming Bath Charges,923,02-Oct-2014,1410-00111,59.40,R,REDACTED PERSONAL DATA,No
Http://opendatacommunities.org/id/metropolitan-district-council/leeds,Leeds City Council,City Development,Recreation,Income,Swimming Bath Charges,923,02-Oct-2014,1410-00112,70.20,R,REDACTED PERSONAL DATA,No
Http://opendatacommunities.org/id/metropolitan-district-council/leeds,Leeds City Council,Childrens Services,Safeguarding Targeted & Specialist,Third Party Payments,Placement Support,550,16-Oct-2014,1410-00113,170.00,R,REDACTED PERSONAL DATA,No
Http://opendatacommunities.org/id/metropolitan-district-council/leeds,Leeds City Council,Childrens Services,Safeguarding Targeted & Specialist,Third Party Payments,Placement Support,550,09-Oct-2014,1410-00114,170.00,R,REDACTED PERSONAL DATA,No
Http://opendatacommunities.org/id/metropolitan-district-council/leeds,Leeds City Council,City Development,Libraries  Arts & Heritage  ,Supplies and Services,Operational Materials,205,29-Sep-2014,1410-00115,194.00,R,A1 Designs,Yes
Http://opendatacommunities.org/id/metropolitan-district-council/leeds,Leeds City Council,Central & Corporate,Public Health,Third Party Payments,Public Health Commissioned Services,526,15-Oct-2014,1410-00116,483.39,R,Aaa Healthcare Ltd,No
Http://opendatacommunities.org/id/metropolitan-district-council/leeds,Leeds City Council,Central & Corporate,Commercial Services Trading Services  ,Supplies and Services,Operational Materials,205,01-Sep-2014,1410-00117,420.85,R,Aaj Locksmiths /yo,Yes
Http://opendatacommunities.org/id/metropolitan-district-council/leeds,Leeds City Council,Adult Social Care,Services For Older People Under 65 P/Dis,Transfer Payments,Personalised Budgets,627,22-Oct-2014,1410-00118,822.40,R,REDACTED PERSONAL DATA,No
Http://opendatacommunities.org/id/metropolitan-district-council/leeds,Leeds City Council as Accountable Body,Social Services Pooled Budgets,Leeds Community Equip Store Pooled Budgt,Supplies and Services,Other Equipment,203,22-Oct-2014,1410-00119,824.00,R,Aat (Gb) Ltd,No
Http://opendatacommunities.org/id/metropolitan-district-council/leeds,Leeds City Council as Accountable Body,Social Services Pooled Budgets,Leeds Community Equip Store Pooled Budgt,Supplies and Services,Other Equipment,203,29-Oct-2014,1410-00120,149.00,R,Aat (Gb) Ltd,No
Http://opendatacommunities.org/id/metropolitan-district-council/leeds,Leeds City Council,Central & Corporate,Financial Management,Transport,Public Transport Expenses,310,15-Oct-2014,1410-00121,100.00,R,Ab Cars (Garforth) Ltd,No
Http://opendatacommunities.org/id/metropolitan-district-council/leeds,Leeds City Council,Central & Corporate,Financial Management,Transport,Public Transport Expenses,310,29-Oct-2014,1410-00122,100.00,R,Ab Cars (Garforth) Ltd,No
Http://opendatacommunities.org/id/metropolitan-district-council/leeds,Leeds City Council,Central & Corporate,Financial Management,Transport,Public Transport Expenses,310,29-Oct-2014,1410-00123,100.00,R,Ab Cars (Garforth) Ltd,No
Http://opendatacommunities.org/id/metropolitan-district-council/leeds,Leeds City Council,Childrens Services,Safeguarding Targeted & Specialist,Support Services,Legal Disbursements,411,22-Oct-2014,1410-00124,31.02,R,Abacus Express Limited,No
Http://opendatacommunities.org/id/metropolitan-district-council/leeds,Leeds City Council,Childrens Services,Safeguarding Targeted & Specialist,Support Services,Legal Disbursements,411,22-Oct-2014,1410-00125,31.02,R,Abacus Express Limited,No
Http://opendatacommunities.org/id/metropolitan-district-council/leeds,Leeds City Council,Childrens Services,Safeguarding Targeted & Specialist,Support Services,Legal Disbursements,411,22-Oct-2014,1410-00126,31.02,R,Abacus Express Limited,No
Http://opendatacommunities.org/id/metropolitan-district-council/leeds,Leeds City Council,Childrens Services,Safeguarding Targeted & Specialist,Support Services,Legal Disbursements,411,22-Oct-2014,1410-00127,39.54,R,Abacus Express Limited,No
Http://opendatacommunities.org/id/metropolitan-district-council/leeds,Leeds City Council,Childrens Services,Safeguarding Targeted & Specialist,Support Services,Legal Disbursements,411,22-Oct-2014,1410-00128,31.02,R,Abacus Express Limited,No
Http://opendatacommunities.org/id/metropolitan-district-council/leeds,Leeds City Council,Childrens Services,Safeguarding Targeted & Specialist,Support Services,Legal Disbursements,411,29-Oct-2014,1410-00129,31.02,R,Abacus Express Limited,No
Http://opendatacommunities.org/id/metropolitan-district-council/leeds,Leeds City Council,Childrens Services,Safeguarding Targeted & Specialist,Support Services,Legal Disbursements,411,02-Oct-2014,1410-00130,14.51,R,Abacus Express Limited,No
Http://opendatacommunities.org/id/metropolitan-district-council/leeds,Leeds City Council,Childrens Services,Safeguarding Targeted & Specialist,Support Services,Legal Disbursements,411,17-Oct-2014,1410-00131,14.51,R,Abacus Express Limited,No
Http://opendatacommunities.org/id/metropolitan-district-council/leeds,Leeds City Council,City Development,Planning & Sustainable Development,Supplies and Services,Other Hired And Contracted Services,265,02-Oct-2014,1410-00132,14.51,R,Abacus Express Limited,No
Http://opendatacommunities.org/id/metropolitan-district-council/leeds,Leeds City Council,Environment & Housing,Parks & Countryside,Support Services,Legal Disbursements,411,02-Oct-2014,1410-00133,15.59,R,Abacus Express Limited,No
Http://opendatacommunities.org/id/metropolitan-district-council/leeds,Leeds City Council,Adult Social Care,Services For Older People - 65 And Over,Third Party Payments,Nursing Care Dementia,574,22-Oct-2014,1410-00134,2295.88,R,Abbendon Nursing Home,No
Http://opendatacommunities.org/id/metropolitan-district-council/leeds,Leeds City Council,City Development,Planning & Sustainable Development  ,Supplies and Services,Operational Materials,205,05-Sep-2014,1410-00135,91.65,R,Abbey Access Ltd,Yes
Http://opendatacommunities.org/id/metropolitan-district-council/leeds,Leeds City Council,City Development,Libraries  Arts & Heritage  ,Supplies and Services,Food & Drink,231,23-Sep-2014,1410-00136,65.00,R,Abbey House Museum Caf,Yes
Http://opendatacommunities.org/id/metropolitan-district-council/leeds,Leeds City Council,Adult Social Care,Services For Older People - 65 And Over,Third Party Payments,Residential Care Dementia,571,22-Oct-2014,1410-00137,1131.84,R,Abbey Lea Residential Care Home,No
Http://opendatacommunities.org/id/metropolitan-district-council/leeds,Leeds City Council as Accountable Body,Social Services Pooled Budgets,Jcs For People With Learning Disabilitie,Transfer Payments,Personal Budgets,627,22-Oct-2014,1410-00138,379.28,R,REDACTED PERSONAL DATA,No
Http://opendatacommunities.org/id/metropolitan-district-council/leeds,Leeds City Council,Childrens Services,Learning Skills & Universal,Third Party Payments,Services Rendered By Other Organisations,511,29-Oct-2014,1410-00139,523.80,R,Abc Daycare And Ozone Out Of School,No
Http://opendatacommunities.org/id/metropolitan-district-council/leeds,Leeds City Council,Childrens Services,Learning Skills & Universal,Third Party Payments,Services Rendered By Other Organisations,511,24-Oct-2014,1410-00140,803.00,R,Abc Daycare And Ozone Out Of School,No
Http://opendatacommunities.org/id/metropolitan-district-council/leeds,Leeds City Council,Childrens Services,Learning Skills & Universal,Third Party Payments,Services Rendered By Other Organisations,511,24-Oct-2014,1410-00141,690.00,R,Abc Nursery At Lufc,No
Http://opendatacommunities.org/id/metropolitan-district-council/leeds,Leeds City Council,Childrens Services,Learning Skills & Universal,Third Party Payments,Services Rendered By Other Organisations,511,29-Oct-2014,1410-00142,218.25,R,Abc Nursery At Lufc,No
Http://opendatacommunities.org/id/metropolitan-district-council/leeds,Leeds City Council,Childrens Services,Learning Skills & Universal,Third Party Payments,Services Rendered By Other Organisations,511,29-Oct-2014,1410-00143,659.60,R,Abc Nursery At Lufc,No
Http://opendatacommunities.org/id/metropolitan-district-council/leeds,Leeds City Council,City Development,Employment & Skills,Supplies and Services,Other Hired And Contracted Services,265,30-Oct-2014,1410-00144,248.19,R,REDACTED PERSONAL DATA,No
Http://opendatacommunities.org/id/metropolitan-district-council/leeds,Leeds City Council,Central & Corporate,Customer Services,Supplies and Services,Other Hired And Contracted Services,265,07-Oct-2014,1410-00145,336.25,R,Abdur Rahman Khan,No
Http://opendatacommunities.org/id/metropolitan-district-council/leeds,Leeds City Council,Adult Social Care,Services For Older People - 65 And Over,Third Party Payments,Nursing Home,570,22-Oct-2014,1410-00146,16353.60,R,Aberford Hall,No
Http://opendatacommunities.org/id/metropolitan-district-council/leeds,Leeds City Council,Adult Social Care,Services For Older People - 65 And Over,Third Party Payments,Nursing Care Dementia,574,22-Oct-2014,1410-00147,1836.00,R,Aberford Hall,No
Http://opendatacommunities.org/id/metropolitan-district-council/leeds,Leeds City Council,Adult Social Care,Services For Older People - 65 And Over,Third Party Payments,Residential,580,22-Oct-2014,1410-00148,7756.32,R,Aberford Hall,No
Http://opendatacommunities.org/id/metropolitan-district-council/leeds,Leeds City Council,Central & Corporate,Commercial Services Trading Services,Supplies and Services,Operational Materials,205,24-Oct-2014,1410-00149,12.00,R,Abi Garage Doors Ltd,No
Http://opendatacommunities.org/id/metropolitan-district-council/leeds,Leeds City Council,Central & Corporate,Commercial Services Trading Services,Supplies and Services,Operational Materials,205,24-Oct-2014,1410-00150,24.00,R,Abi Garage Doors Ltd,No
Http://opendatacommunities.org/id/metropolitan-district-council/leeds,Leeds City Council,Central & Corporate,Commercial Services Trading Services,Supplies and Services,Operational Materials,205,31-Oct-2014,1410-00151,4275.00,R,Abi Garage Doors Ltd,No
Http://opendatacommunities.org/id/metropolitan-district-council/leeds,Leeds City Council,Central & Corporate,Commercial Services Trading Services,Supplies and Services,Operational Materials,205,21-Oct-2014,1410-00152,50.00,R,Abi Garage Doors Ltd,No
Http://opendatacommunities.org/id/metropolitan-district-council/leeds,Leeds City Council,Central & Corporate,Commercial Services Trading Services,Supplies and Services,Operational Materials,205,21-Oct-2014,1410-00153,900.00,R,Abi Garage Doors Ltd,No
Http://opendatacommunities.org/id/metropolitan-district-council/leeds,Leeds City Council,Central & Corporate,Commercial Services Trading Services,Supplies and Services,Operational Materials,205,21-Oct-2014,1410-00154,225.00,R,Abi Garage Doors Ltd,No
Http://opendatacommunities.org/id/metropolitan-district-council/leeds,Leeds City Council,Central & Corporate,Commercial Services Trading Services,Supplies and Services,Operational Materials,205,03-Oct-2014,1410-00155,225.00,R,Abi Garage Doors Ltd,No
Http://opendatacommunities.org/id/metropolitan-district-council/leeds,Leeds City Council,Central & Corporate,Commercial Services Trading Services,Supplies and Services,Operational Materials,205,03-Oct-2014,1410-00156,225.00,R,Abi Garage Doors Ltd,No
Http://opendatacommunities.org/id/metropolitan-district-council/leeds,Leeds City Council,Childrens Services,Safeguarding Targeted & Specialist,Supplies and Services,Telephones,213,30-Oct-2014,1410-00157,8.80,R,REDACTED PERSONAL DATA,No
Http://opendatacommunities.org/id/metropolitan-district-council/leeds,Leeds City Council,Childrens Services,Safeguarding Targeted & Specialist,Supplies and Services,Food & Drink,231,30-Oct-2014,1410-00158,20.54,R,REDACTED PERSONAL DATA,No
Http://opendatacommunities.org/id/metropolitan-district-council/leeds,Leeds City Council,Childrens Services,Safeguarding Targeted & Specialist,Transport,Car & Motorcycle Allowances,311,30-Oct-2014,1410-00159,20.25,R,REDACTED PERSONAL DATA,No
Http://opendatacommunities.org/id/metropolitan-district-council/leeds,Leeds City Council as Accountable Body,Social Services Pooled Budgets,Jcs For People With Learning Disabilitie,Transfer Payments,Personal Budgets,627,22-Oct-2014,1410-00160,1269.12,R,REDACTED PERSONAL DATA,No
Http://opendatacommunities.org/id/metropolitan-district-council/leeds,Leeds City Council,Childrens Services,Learning Skills & Universal,Supplies and Services,Bought In Professional Services,277,09-Oct-2014,1410-00161,5489.75,R,Academic Appointments Ltd,No
Http://opendatacommunities.org/id/metropolitan-district-council/leeds,Leeds City Council,Childrens Services,Safeguarding Targeted & Specialist,Employees,Agency Staff,8,10-Oct-2014,1410-00162,3460.42,R,Academic Appointments Ltd,No
Http://opendatacommunities.org/id/metropolitan-district-council/leeds,Leeds City Council,Childrens Services,Safeguarding Targeted & Specialist,Employees,Agency Staff,8,17-Oct-2014,1410-00163,4226.70,R,Academic Appointments Ltd,No
Http://opendatacommunities.org/id/metropolitan-district-council/leeds,Leeds City Council,Childrens Services,Safeguarding Targeted & Specialist,Employees,Agency Staff,8,24-Oct-2014,1410-00164,4101.39,R,Academic Appointments Ltd,No
Http://opendatacommunities.org/id/metropolitan-district-council/leeds,Leeds City Council,Childrens Services,Safeguarding Targeted & Specialist,Employees,Agency Staff,8,31-Oct-2014,1410-00165,4153.81,R,Academic Appointments Ltd,No
Http://opendatacommunities.org/id/metropolitan-district-council/leeds,Leeds City Council,Central & Corporate,Information Technology,Employees,Agency Staff,8,01-Oct-2014,1410-00166,4142.00,R,Access Computer Consulting Plc,No
Http://opendatacommunities.org/id/metropolitan-district-council/leeds,Leeds City Council,Central & Corporate,Information Technology,Employees,Agency Staff,8,10-Oct-2014,1410-00167,4142.00,R,Access Computer Consulting Plc,No
Http://opendatacommunities.org/id/metropolitan-district-council/leeds,Leeds City Council,City Development,Libraries  Arts & Heritage  ,Supplies and Services,Operational Furniture And Equipment,203,17-Sep-2014,1410-00168,10.83,R,Access Locksmiths,Yes
Http://opendatacommunities.org/id/metropolitan-district-council/leeds,Leeds City Council,Adult Social Care,Services For Adults Under 65 Learn/Dis,Premises,Furniture And Fittings,195,10-Oct-2014,1410-00169,96.25,R,Access Locksmiths (Leeds) Limited,No
Http://opendatacommunities.org/id/metropolitan-district-council/leeds,Leeds City Council,Central & Corporate,Commercial Services Trading Services,Supplies and Services,Operational Materials,205,31-Oct-2014,1410-00170,21.35,R,Access Locksmiths (Leeds) Limited,No
Http://opendatacommunities.org/id/metropolitan-district-council/leeds,Leeds City Council,Central & Corporate,Commercial Services Trading Services,Supplies and Services,Operational Materials,205,31-Oct-2014,1410-00171,4.95,R,Access Locksmiths (Leeds) Limited,No
Http://opendatacommunities.org/id/metropolitan-district-council/leeds,Leeds City Council,Central & Corporate,Commercial Services Trading Services,Supplies and Services,Operational Materials,205,28-Oct-2014,1410-00172,57.08,R,Access Locksmiths (Leeds) Limited,No
Http://opendatacommunities.org/id/metropolitan-district-council/leeds,Leeds City Council,Central & Corporate,Commercial Services Trading Services,Supplies and Services,Operational Materials,205,28-Oct-2014,1410-00173,80.12,R,Access Locksmiths (Leeds) Limited,No
Http://opendatacommunities.org/id/metropolitan-district-council/leeds,Leeds City Council,Central & Corporate,Commercial Services Trading Services,Supplies and Services,Operational Materials,205,17-Oct-2014,1410-00174,9.04,R,Access Locksmiths (Leeds) Limited,No
Http://opendatacommunities.org/id/metropolitan-district-council/leeds,Leeds City Council,Central & Corporate,Commercial Services Trading Services,Supplies and Services,Operational Materials,205,24-Oct-2014,1410-00175,18.00,R,Access Locksmiths (Leeds) Limited,No
Http://opendatacommunities.org/id/metropolitan-district-council/leeds,Leeds City Council,Central & Corporate,Commercial Services Trading Services,Supplies and Services,Operational Materials,205,09-Oct-2014,1410-00176,13.56,R,Access Locksmiths (Leeds) Limited,No
Http://opendatacommunities.org/id/metropolitan-district-council/leeds,Leeds City Council,Central & Corporate,Commercial Services Trading Services,Supplies and Services,Operational Materials,205,03-Oct-2014,1410-00177,55.65,R,Access Locksmiths (Leeds) Limited,No
Http://opendatacommunities.org/id/metropolitan-district-council/leeds,Leeds City Council,Central & Corporate,Commercial Services Trading Services,Supplies and Services,Operational Materials,205,03-Oct-2014,1410-00178,54.24,R,Access Locksmiths (Leeds) Limited,No
Http://opendatacommunities.org/id/metropolitan-district-council/leeds,Leeds City Council,Environment & Housing,Housing Leeds Service,Capital,Construction,3,17-Oct-2014,1410-00179,333.93,C,Access Locksmiths (Leeds) Limited,No
Http://opendatacommunities.org/id/metropolitan-district-council/leeds,Leeds City Council,Environment & Housing,Hra,Premises,General Maintenance,104,31-Oct-2014,1410-00180,207.40,R,Access Locksmiths (Leeds) Limited,No
Http://opendatacommunities.org/id/metropolitan-district-council/leeds,Leeds City Council,Environment & Housing,Hra,Premises,General Maintenance,104,31-Oct-2014,1410-00181,90.38,R,Access Locksmiths (Leeds) Limited,No
Http://opendatacommunities.org/id/metropolitan-district-council/leeds,Leeds City Council,Environment & Housing,Hra,Premises,General Maintenance,104,31-Oct-2014,1410-00182,99.34,R,Access Locksmiths (Leeds) Limited,No
Http://opendatacommunities.org/id/metropolitan-district-council/leeds,Leeds City Council,Environment & Housing,Hra,Premises,General Maintenance,104,31-Oct-2014,1410-00183,371.00,R,Access Locksmiths (Leeds) Limited,No
Http://opendatacommunities.org/id/metropolitan-district-council/leeds,Leeds City Council,Environment & Housing,Hra,Premises,General Maintenance,104,31-Oct-2014,1410-00184,1244.40,R,Access Locksmiths (Leeds) Limited,No
Http://opendatacommunities.org/id/metropolitan-district-council/leeds,Leeds City Council,Environment & Housing,Hra,Premises,General Maintenance,104,17-Oct-2014,1410-00185,414.80,R,Access Locksmiths (Leeds) Limited,No
Http://opendatacommunities.org/id/metropolitan-district-council/leeds,Leeds City Council,Environment & Housing,Hra,Premises,General Maintenance,104,17-Oct-2014,1410-00186,15.00,R,Access Locksmiths (Leeds) Limited,No
Http://opendatacommunities.org/id/metropolitan-district-council/leeds,Leeds City Council,Environment & Housing,Hra,Premises,General Maintenance,104,03-Oct-2014,1410-00187,139.50,R,Access Locksmiths (Leeds) Limited,No
Http://opendatacommunities.org/id/metropolitan-district-council/leeds,Leeds City Council,Environment & Housing,Hra,Premises,General Maintenance,104,02-Oct-2014,1410-00188,207.40,R,Access Locksmiths (Leeds) Limited,No
Http://opendatacommunities.org/id/metropolitan-district-council/leeds,Leeds City Council,Environment & Housing,Hra,Supplies and Services,Operational Materials,205,28-Oct-2014,1410-00189,371.00,R,Access Locksmiths (Leeds) Limited,No
Http://opendatacommunities.org/id/metropolitan-district-council/leeds,Leeds City Council,Environment & Housing,Hra,Supplies and Services,Operational Materials,205,17-Oct-2014,1410-00190,103.70,R,Access Locksmiths (Leeds) Limited,No
Http://opendatacommunities.org/id/metropolitan-district-council/leeds,Leeds City Council,Environment & Housing,Hra,Supplies and Services,Operational Materials,205,10-Oct-2014,1410-00191,12.50,R,Access Locksmiths (Leeds) Limited,No
Http://opendatacommunities.org/id/metropolitan-district-council/leeds,Leeds City Council,Environment & Housing,Hra,Supplies and Services,Operational Materials,205,10-Oct-2014,1410-00192,188.55,R,Access Locksmiths (Leeds) Limited,No
Http://opendatacommunities.org/id/metropolitan-district-council/leeds,Leeds City Council,Central & Corporate,Commercial Services Trading Services,Supplies and Services,Operational Materials,205,30-Oct-2014,1410-00193,517.00,R,Access Opening Systems Limited,No
Http://opendatacommunities.org/id/metropolitan-district-council/leeds,Leeds City Council,Central & Corporate,Commercial Services Trading Services,Supplies and Services,Operational Materials,205,30-Oct-2014,1410-00194,60.00,R,Access Opening Systems Limited,No
Http://opendatacommunities.org/id/metropolitan-district-council/leeds,Leeds City Council,Central & Corporate,Commercial Services Trading Services,Supplies and Services,Operational Materials,205,22-Oct-2014,1410-00195,25.00,R,Access Opening Systems Limited,No
Http://opendatacommunities.org/id/metropolitan-district-council/leeds,Leeds City Council,Central & Corporate,Commercial Services Trading Services,Supplies and Services,Operational Materials,205,22-Oct-2014,1410-00196,1550.00,R,Access Opening Systems Limited,No
Http://opendatacommunities.org/id/metropolitan-district-council/leeds,Leeds City Council,Central & Corporate,Commercial Services Trading Services,Supplies and Services,Operational Materials,205,30-Oct-2014,1410-00197,1370.00,R,Access Opening Systems Limited,No
Http://opendatacommunities.org/id/metropolitan-district-council/leeds,Leeds City Council,Central & Corporate,Commercial Services Trading Services,Supplies and Services,Operational Materials,205,17-Oct-2014,1410-00198,135.00,R,Access Opening Systems Limited,No
Http://opendatacommunities.org/id/metropolitan-district-council/leeds,Leeds City Council,Central & Corporate,Commercial Services Trading Services,Supplies and Services,Operational Materials,205,17-Oct-2014,1410-00199,220.00,R,Access Opening Systems Limited,No
Http://opendatacommunities.org/id/metropolitan-district-council/leeds,Leeds City Council,Central & Corporate,Commercial Services Trading Services,Supplies and Services,Operational Materials,205,17-Oct-2014,1410-00200,170.00,R,Access Opening Systems Limited,No
Http://opendatacommunities.org/id/metropolitan-district-council/leeds,Leeds City Council,Central & Corporate,Commercial Services Trading Services,Supplies and Services,Operational Materials,205,17-Oct-2014,1410-00201,85.00,R,Access Opening Systems Limited,No
Http://opendatacommunities.org/id/metropolitan-district-council/leeds,Leeds City Council,City Development,Recreation,Supplies and Services,Other Hired And Contracted Services,265,30-Oct-2014,1410-00202,139.50,R,Ace Container Services Limited,No
Http://opendatacommunities.org/id/metropolitan-district-council/leeds,Leeds City Council,City Development,Recreation,Transport,External Hire -Occasional,304,30-Oct-2014,1410-00203,77.50,R,Ace Container Services Limited,No
Http://opendatacommunities.org/id/metropolitan-district-council/leeds,Leeds City Council,Environment & Housing,Parks & Countryside,Supplies and Services,Operational Materials,205,24-Oct-2014,1410-00204,7410.00,R,Ace Engineers (Morley) Ltd,No
Http://opendatacommunities.org/id/metropolitan-district-council/leeds,Leeds City Council,Childrens Services,Safeguarding Targeted & Specialist,Third Party Payments,SEN Placements,566,02-Oct-2014,1410-00205,47799.00,R,Ackworth School,No
Http://opendatacommunities.org/id/metropolitan-district-council/leeds,Leeds City Council,Childrens Services,Safeguarding Targeted & Specialist,Third Party Payments,SEN Placements,566,10-Oct-2014,1410-00206,15933.00,R,Ackworth School,No
Http://opendatacommunities.org/id/metropolitan-district-council/leeds,Leeds City Council,Central & Corporate,Commercial Services Trading Services,Supplies and Services,Operational Materials,205,10-Oct-2014,1410-00207,2219.00,R,Acme Facilities Group Ltd,No
Http://opendatacommunities.org/id/metropolitan-district-council/leeds,Leeds City Council,Central & Corporate,Commercial Services Trading Services,Supplies and Services,Operational Materials,205,10-Oct-2014,1410-00208,1465.00,R,Acme Facilities Group Ltd,No
Http://opendatacommunities.org/id/metropolitan-district-council/leeds,Leeds City Council,Central & Corporate,Commercial Services Trading Services,Supplies and Services,Operational Materials,205,10-Oct-2014,1410-00209,999.00,R,Acme Facilities Group Ltd,No
Http://opendatacommunities.org/id/metropolitan-district-council/leeds,Leeds City Council,Central & Corporate,Commercial Services Trading Services,Supplies and Services,Operational Materials,205,10-Oct-2014,1410-00210,999.00,R,Acme Facilities Group Ltd,No
Http://opendatacommunities.org/id/metropolitan-district-council/leeds,Leeds City Council,Central & Corporate,Commercial Services Trading Services,Supplies and Services,Operational Materials,205,10-Oct-2014,1410-00211,1220.00,R,Acme Facilities Group Ltd,No
Http://opendatacommunities.org/id/metropolitan-district-council/leeds,Leeds City Council,Central & Corporate,Commercial Services Trading Services,Supplies and Services,Operational Materials,205,10-Oct-2014,1410-00212,1220.00,R,Acme Facilities Group Ltd,No
Http://opendatacommunities.org/id/metropolitan-district-council/leeds,Leeds City Council,Central & Corporate,Commercial Services Trading Services,Supplies and Services,Operational Materials,205,10-Oct-2014,1410-00213,1465.00,R,Acme Facilities Group Ltd,No
Http://opendatacommunities.org/id/metropolitan-district-council/leeds,Leeds City Council,Central & Corporate,Commercial Services Trading Services,Supplies and Services,Operational Materials,205,10-Oct-2014,1410-00214,1465.00,R,Acme Facilities Group Ltd,No
Http://opendatacommunities.org/id/metropolitan-district-council/leeds,Leeds City Council,Central & Corporate,Commercial Services Trading Services,Supplies and Services,Operational Materials,205,10-Oct-2014,1410-00215,2219.00,R,Acme Facilities Group Ltd,No
Http://opendatacommunities.org/id/metropolitan-district-council/leeds,Leeds City Council,Central & Corporate,Commercial Services Trading Services,Supplies and Services,Operational Materials,205,10-Oct-2014,1410-00216,999.00,R,Acme Facilities Group Ltd,No
Http://opendatacommunities.org/id/metropolitan-district-council/leeds,Leeds City Council,Central & Corporate,Commercial Services Trading Services,Supplies and Services,Operational Materials,205,10-Oct-2014,1410-00217,999.00,R,Acme Facilities Group Ltd,No
Http://opendatacommunities.org/id/metropolitan-district-council/leeds,Leeds City Council,Central & Corporate,Commercial Services Trading Services,Supplies and Services,Operational Materials,205,10-Oct-2014,1410-00218,1220.00,R,Acme Facilities Group Ltd,No
Http://opendatacommunities.org/id/metropolitan-district-council/leeds,Leeds City Council,Central & Corporate,Commercial Services Trading Services,Supplies and Services,Operational Materials,205,17-Oct-2014,1410-00219,999.00,R,Acme Facilities Group Ltd,No
Http://opendatacommunities.org/id/metropolitan-district-council/leeds,Leeds City Council,Central & Corporate,Commercial Services Trading Services,Supplies and Services,Operational Materials,205,16-Oct-2014,1410-00220,1465.00,R,Acme Facilities Group Ltd,No
Http://opendatacommunities.org/id/metropolitan-district-council/leeds,Leeds City Council,Central & Corporate,Commercial Services Trading Services,Supplies and Services,Operational Materials,205,28-Oct-2014,1410-00221,1750.00,R,Acme Facilities Group Ltd,No
Http://opendatacommunities.org/id/metropolitan-district-council/leeds,Leeds City Council,Central & Corporate,Commercial Services Trading Services,Supplies and Services,Operational Materials,205,03-Oct-2014,1410-00222,999.00,R,Acme Facilities Group Ltd,No
Http://opendatacommunities.org/id/metropolitan-district-council/leeds,Leeds City Council,Central & Corporate,Commercial Services Trading Services,Supplies and Services,Operational Materials,205,17-Oct-2014,1410-00223,1220.00,R,Acme Facilities Group Ltd,No
Http://opendatacommunities.org/id/metropolitan-district-council/leeds,Leeds City Council,Central & Corporate,Commercial Services Trading Services,Supplies and Services,Operational Materials,205,10-Oct-2014,1410-00224,999.00,R,Acme Facilities Group Ltd,No
Http://opendatacommunities.org/id/metropolitan-district-council/leeds,Leeds City Council,Central & Corporate,Commercial Services Trading Services,Supplies and Services,Operational Materials,205,10-Oct-2014,1410-00225,999.00,R,Acme Facilities Group Ltd,No
Http://opendatacommunities.org/id/metropolitan-district-council/leeds,Leeds City Council,Central & Corporate,Commercial Services Trading Services,Supplies and Services,Operational Materials,205,10-Oct-2014,1410-00226,999.00,R,Acme Facilities Group Ltd,No
Http://opendatacommunities.org/id/metropolitan-district-council/leeds,Leeds City Council,Central & Corporate,Commercial Services Trading Services,Supplies and Services,Operational Materials,205,10-Oct-2014,1410-00227,999.00,R,Acme Facilities Group Ltd,No
Http://opendatacommunities.org/id/metropolitan-district-council/leeds,Leeds City Council,Central & Corporate,Commercial Services Trading Services,Supplies and Services,Operational Materials,205,10-Oct-2014,1410-00228,999.00,R,Acme Facilities Group Ltd,No
Http://opendatacommunities.org/id/metropolitan-district-council/leeds,Leeds City Council,Central & Corporate,Commercial Services Trading Services,Supplies and Services,Operational Materials,205,10-Oct-2014,1410-00229,1289.00,R,Acme Facilities Group Ltd,No
Http://opendatacommunities.org/id/metropolitan-district-council/leeds,Leeds City Council,Central & Corporate,Commercial Services Trading Services,Supplies and Services,Operational Materials,205,10-Oct-2014,1410-00230,999.00,R,Acme Facilities Group Ltd,No
Http://opendatacommunities.org/id/metropolitan-district-council/leeds,Leeds City Council,Central & Corporate,Commercial Services Trading Services,Supplies and Services,Operational Materials,205,10-Oct-2014,1410-00231,999.00,R,Acme Facilities Group Ltd,No
Http://opendatacommunities.org/id/metropolitan-district-council/leeds,Leeds City Council,Central & Corporate,Commercial Services Trading Services,Supplies and Services,Operational Materials,205,10-Oct-2014,1410-00232,999.00,R,Acme Facilities Group Ltd,No
Http://opendatacommunities.org/id/metropolitan-district-council/leeds,Leeds City Council,Childrens Services,Safeguarding Targeted & Specialist,Third Party Payments,General External Residential Placements,507,09-Oct-2014,1410-00233,18138.66,R,Acorn Care And Education Ltd,No
Http://opendatacommunities.org/id/metropolitan-district-council/leeds,Leeds City Council,Childrens Services,Safeguarding Targeted & Specialist,Third Party Payments,Independent Fostering Agencies,509,15-Oct-2014,1410-00234,5014.20,R,Acorn House (Fostering Services) Ltd,No
Http://opendatacommunities.org/id/metropolitan-district-council/leeds,Leeds City Council,City Development,Libraries  Arts & Heritage,Supplies and Services,Other Hired And Contracted Services,265,24-Oct-2014,1410-00235,625.00,R,Acorn Scaffolding (Yorkshire) Ltd,No
Http://opendatacommunities.org/id/metropolitan-district-council/leeds,Leeds City Council,City Development,Libraries  Arts & Heritage,Supplies and Services,Other Hired And Contracted Services,265,22-Oct-2014,1410-00236,1700.00,R,Acorn Scaffolding (Yorkshire) Ltd,No
Http://opendatacommunities.org/id/metropolitan-district-council/leeds,Leeds City Council,City Development,Libraries  Arts & Heritage,Supplies and Services,Other Hired And Contracted Services,265,03-Oct-2014,1410-00237,275.00,R,Acorn Scaffolding (Yorkshire) Ltd,No
Http://opendatacommunities.org/id/metropolitan-district-council/leeds,Leeds City Council,City Development,Libraries  Arts & Heritage,Supplies and Services,Other Hired And Contracted Services,265,03-Oct-2014,1410-00238,7500.00,R,Acorn Scaffolding (Yorkshire) Ltd,No
Http://opendatacommunities.org/id/metropolitan-district-council/leeds,Leeds City Council,Childrens Services,Learning Skills & Universal,Third Party Payments,Services Rendered By Other Organisations,511,24-Oct-2014,1410-00239,316.00,R,Acorns Nursery,No
Http://opendatacommunities.org/id/metropolitan-district-council/leeds,Leeds City Council,Adult Social Care,Services For Adults Under 65 Mental/Dis,Third Party Payments,Residential,580,22-Oct-2014,1410-00240,4242.64,R,Acre Green,No
Http://opendatacommunities.org/id/metropolitan-district-council/leeds,Leeds City Council,Adult Social Care,Services For Older People - 65 And Over,Third Party Payments,Nursing Home,570,22-Oct-2014,1410-00241,23770.93,R,Acre Green,No
Http://opendatacommunities.org/id/metropolitan-district-council/leeds,Leeds City Council,Adult Social Care,Services For Older People - 65 And Over,Third Party Payments,Residential Care Dementia,571,22-Oct-2014,1410-00242,1336.12,R,Acre Green,No
Http://opendatacommunities.org/id/metropolitan-district-council/leeds,Leeds City Council,Adult Social Care,Services For Older People - 65 And Over,Third Party Payments,Nursing Care Dementia,574,22-Oct-2014,1410-00243,6683.53,R,Acre Green,No
Http://opendatacommunities.org/id/metropolitan-district-council/leeds,Leeds City Council,Adult Social Care,Services For Older People - 65 And Over,Third Party Payments,Residential,580,22-Oct-2014,1410-00244,12287.53,R,Acre Green,No
Http://opendatacommunities.org/id/metropolitan-district-council/leeds,Leeds City Council,Childrens Services,Learning Skills & Universal,Third Party Payments,Services Rendered By Other Organisations,511,24-Oct-2014,1410-00245,1209.00,R,Acre Wood Day Nursery,No
Http://opendatacommunities.org/id/metropolitan-district-council/leeds,Leeds City Council,Central & Corporate,Human Resources  ,Employees,Best Value Training,70,12-Sep-2014,1410-00246,125.00,R,Act*cornerstone,Yes
Http://opendatacommunities.org/id/metropolitan-district-council/leeds,Leeds City Council,Central & Corporate,Information Technology  ,Employees,Training Costs,71,05-Sep-2014,1410-00247,1843.85,R,Act*pcce9 Active Event,Yes
Http://opendatacommunities.org/id/metropolitan-district-council/leeds,Leeds City Council,Childrens Services,Safeguarding Targeted & Specialist,Third Party Payments,Independent Fostering Agencies,509,01-Oct-2014,1410-00248,4776.48,R,Action For Children,No
Http://opendatacommunities.org/id/metropolitan-district-council/leeds,Leeds City Council,Childrens Services,Safeguarding Targeted & Specialist,Third Party Payments,Independent Fostering Agencies,509,01-Oct-2014,1410-00249,4774.00,R,Action For Children,No
Http://opendatacommunities.org/id/metropolitan-district-council/leeds,Leeds City Council,Childrens Services,Safeguarding Targeted & Specialist,Third Party Payments,Independent Fostering Agencies,509,01-Oct-2014,1410-00250,5163.67,R,Action For Children,No
Http://opendatacommunities.org/id/metropolitan-district-council/leeds,Leeds City Council,Childrens Services,Safeguarding Targeted & Specialist,Third Party Payments,Independent Fostering Agencies,509,02-Oct-2014,1410-00251,4622.40,R,Action For Children,No
Http://opendatacommunities.org/id/metropolitan-district-council/leeds,Leeds City Council,Childrens Services,Safeguarding Targeted & Specialist,Third Party Payments,Independent Fostering Agencies,509,02-Oct-2014,1410-00252,4620.00,R,Action For Children,No
Http://opendatacommunities.org/id/metropolitan-district-council/leeds,Leeds City Council,Childrens Services,Safeguarding Targeted & Specialist,Third Party Payments,Independent Fostering Agencies,509,02-Oct-2014,1410-00253,4997.10,R,Action For Children,No
Http://opendatacommunities.org/id/metropolitan-district-council/leeds,Leeds City Council,Adult Social Care,Services For Older People - 65 And Over,Supplies and Services,Consultancy Services,259,01-Oct-2014,1410-00254,7000.00,R,Action For Gipton Elderly,No
Http://opendatacommunities.org/id/metropolitan-district-council/leeds,Leeds City Council,Adult Social Care,Social Services Support Services,Third Party Payments,Payments To Voluntary Organisations,561,01-Oct-2014,1410-00255,34505.50,R,Action For Gipton Elderly,No
Http://opendatacommunities.org/id/metropolitan-district-council/leeds,Leeds City Council,Central & Corporate,Executive Support  ,Supplies and Services,Office Consumables,210,02-Sep-2014,1410-00256,36.90,R,Action On Hearing Loss,Yes
Http://opendatacommunities.org/id/metropolitan-district-council/leeds,Leeds City Council,Central & Corporate,Executive Support,Supplies and Services,'Well Being' Large Grants Projects,230,24-Oct-2014,1410-00257,80.00,R,Active Hire (Leeds) Ltd,No
Http://opendatacommunities.org/id/metropolitan-district-council/leeds,Leeds City Council,Environment & Housing,Hra,Supplies and Services,Grants To Voluntary Organisations,293,15-Oct-2014,1410-00258,355.00,R,Active Hire (Leeds) Ltd,No
Http://opendatacommunities.org/id/metropolitan-district-council/leeds,Leeds City Council,Childrens Services,Learning Skills & Universal,Third Party Payments,Services Rendered By Other Organisations,511,24-Oct-2014,1410-00259,305.00,R,Active Kids Day Nursery,No
Http://opendatacommunities.org/id/metropolitan-district-council/leeds,Leeds City Council,Environment & Housing,Parks & Countryside,Supplies and Services,Resaleable Materials,204,24-Oct-2014,1410-00260,76.80,R,Acushnet Europe Limited,No
Http://opendatacommunities.org/id/metropolitan-district-council/leeds,Leeds City Council,Environment & Housing,Parks & Countryside,Supplies and Services,Resaleable Materials,204,10-Oct-2014,1410-00261,151.48,R,Acushnet Europe Limited,No
Http://opendatacommunities.org/id/metropolitan-district-council/leeds,Leeds City Council,Environment & Housing,Parks & Countryside,Supplies and Services,Bought In Professional Services,277,20-Oct-2014,1410-00262,5354.12,R,REDACTED COMMERCIAL CONFIDENTIALITY,No
Http://opendatacommunities.org/id/metropolitan-district-council/leeds,Leeds City Council,Adult Social Care,Services For Older People Under 65 P/Dis,Transfer Payments,Personalised Budgets,627,22-Oct-2014,1410-00263,748.00,R,REDACTED PERSONAL DATA,No
Http://opendatacommunities.org/id/metropolitan-district-council/leeds,Leeds City Council as Accountable Body,Social Services Pooled Budgets,Jcs For People With Learning Disabilitie,Transfer Payments,Personal Budgets,627,22-Oct-2014,1410-00264,1750.52,R,REDACTED PERSONAL DATA,No
Http://opendatacommunities.org/id/metropolitan-district-council/leeds,Leeds City Council,Adult Social Care,Services For Older People Under 65 P/Dis,Transfer Payments,Personalised Budgets,627,22-Oct-2014,1410-00265,576.00,R,REDACTED PERSONAL DATA,No
Http://opendatacommunities.org/id/metropolitan-district-council/leeds,Leeds City Council,Adult Social Care,Services For Adults Under 65 Mental/Dis,Transfer Payments,Direct Payments,626,22-Oct-2014,1410-00266,444.40,R,REDACTED PERSONAL DATA,No
Http://opendatacommunities.org/id/metropolitan-district-council/leeds,Leeds City Council as Accountable Body,Social Services Pooled Budgets,Jcs For People With Learning Disabilitie,Transfer Payments,Asylum Seekers,626,22-Oct-2014,1410-00267,859.60,R,REDACTED PERSONAL DATA,No
Http://opendatacommunities.org/id/metropolitan-district-council/leeds,Leeds City Council,Childrens Services,Safeguarding Targeted & Specialist,Support Services,Legal Disbursements,411,31-Oct-2014,1410-00268,150.00,R,Adam Wolanski,No
Http://opendatacommunities.org/id/metropolitan-district-council/leeds,Leeds City Council,Childrens Services,Partnership Development & Leadership,Supplies and Services,Conference Meetings,253,14-Oct-2014,1410-00269,450.00,R,Adass,No
Http://opendatacommunities.org/id/metropolitan-district-council/leeds,Leeds City Council,Childrens Services,Safeguarding Targeted & Specialist,Third Party Payments,Interagency Adoptions,559,17-Oct-2014,1410-00270,750.00,R,Addictive Media,No
Http://opendatacommunities.org/id/metropolitan-district-council/leeds,Leeds City Council,Childrens Services,Safeguarding Targeted & Specialist,Third Party Payments,Interagency Adoptions,559,17-Oct-2014,1410-00271,750.00,R,Addictive Media,No
Http://opendatacommunities.org/id/metropolitan-district-council/leeds,Leeds City Council,Environment & Housing,Hra,Supplies and Services,Grants To Voluntary Organisations,293,03-Oct-2014,1410-00272,175.00,R,Adel Crag Community Association,No
Http://opendatacommunities.org/id/metropolitan-district-council/leeds,Leeds City Council,Central & Corporate,Executive Support,Supplies and Services,'Well Being' Large Grants Projects,230,27-Oct-2014,1410-00273,10000.00,R,Adel Hockey Club,No
Http://opendatacommunities.org/id/metropolitan-district-council/leeds,Leeds City Council,Childrens Services,Safeguarding Targeted & Specialist  ,Transfer Payments,Leaving Care Grants,635,01-Sep-2014,1410-00274,19.79,R,Adel Leeds,Yes
Http://opendatacommunities.org/id/metropolitan-district-council/leeds,Leeds City Council,Childrens Services,Learning Skills & Universal,Third Party Payments,Services Rendered By Voluntary Sector,505,29-Oct-2014,1410-00275,1571.40,R,Adel Pre School,No
Http://opendatacommunities.org/id/metropolitan-district-council/leeds,Leeds City Council,Childrens Services,Learning Skills & Universal,Third Party Payments,Services Rendered By Voluntary Sector,505,24-Oct-2014,1410-00276,698.00,R,Adel Pre School,No
Http://opendatacommunities.org/id/metropolitan-district-council/leeds,Leeds City Council,Childrens Services,Learning Skills & Universal,Third Party Payments,Services Rendered By Voluntary Sector,505,02-Oct-2014,1410-00277,1890.00,R,Adel Pre School,No
Http://opendatacommunities.org/id/metropolitan-district-council/leeds,Leeds City Council,Adult Social Care,Services For Older People Under 65 P/Dis,Transfer Payments,Personalised Budgets,627,22-Oct-2014,1410-00278,1866.32,R,REDACTED PERSONAL DATA,No
Http://opendatacommunities.org/id/metropolitan-district-council/leeds,Leeds City Council,City Development,Libraries  Arts & Heritage,Supplies and Services,Other Hired And Contracted Services,265,01-Oct-2014,1410-00279,1350.00,R,Adelle Stripe,No
Http://opendatacommunities.org/id/metropolitan-district-council/leeds,Leeds City Council,City Development,Libraries  Arts & Heritage,Supplies and Services,Other Hired And Contracted Services,265,31-Oct-2014,1410-00280,1350.00,R,Adelle Stripe,No
Http://opendatacommunities.org/id/metropolitan-district-council/leeds,Leeds City Council,Adult Social Care,Services For Older People - 65 And Over,Third Party Payments,Nursing Home,570,22-Oct-2014,1410-00281,1031.72,R,Aden House,No
Http://opendatacommunities.org/id/metropolitan-district-council/leeds,Leeds City Council,Adult Social Care,Services For Older People - 65 And Over,Third Party Payments,Residential Care Dementia,571,22-Oct-2014,1410-00282,1284.56,R,Aden House,No
Http://opendatacommunities.org/id/metropolitan-district-council/leeds,Leeds City Council,Central & Corporate,Commercial Services Trading Services,Supplies and Services,Operational Materials,205,24-Oct-2014,1410-00283,54.36,R,Adi Global,No
Http://opendatacommunities.org/id/metropolitan-district-council/leeds,Leeds City Council,Central & Corporate,Commercial Services Trading Services,Supplies and Services,Operational Materials,205,15-Oct-2014,1410-00284,133.95,R,Adi Global,No
Http://opendatacommunities.org/id/metropolitan-district-council/leeds,Leeds City Council,Central & Corporate,Commercial Services Trading Services,Supplies and Services,Operational Materials,205,15-Oct-2014,1410-00285,40.36,R,Adi Global,No
Http://opendatacommunities.org/id/metropolitan-district-council/leeds,Leeds City Council,Central & Corporate,Commercial Services Trading Services,Supplies and Services,Operational Materials,205,15-Oct-2014,1410-00286,91.44,R,Adi Global,No
Http://opendatacommunities.org/id/metropolitan-district-council/leeds,Leeds City Council,Central & Corporate,Commercial Services Trading Services,Supplies and Services,Operational Materials,205,03-Oct-2014,1410-00287,80.45,R,Adi Global,No
Http://opendatacommunities.org/id/metropolitan-district-council/leeds,Leeds City Council,Central & Corporate,Commercial Services Trading Services,Supplies and Services,Operational Materials,205,07-Oct-2014,1410-00288,23.55,R,Adi Global,No
Http://opendatacommunities.org/id/metropolitan-district-council/leeds,Leeds City Council,City Development,Libraries  Arts & Heritage,Supplies and Services,Operational Furniture And Equipment,203,24-Oct-2014,1410-00289,4252.00,R,Adi Uk Ltd,No
Http://opendatacommunities.org/id/metropolitan-district-council/leeds,Leeds City Council,City Development,Planning & Sustainable Development,Income,Planning Fees,939,09-Oct-2014,1410-00290,80.00,R,REDACTED PERSONAL DATA,No
Http://opendatacommunities.org/id/metropolitan-district-council/leeds,Leeds City Council,Central & Corporate,Commercial Services Trading Services,Transport,Vehicle Spares,345,08-Oct-2014,1410-00291,45.00,R,Adm Car Audio,No
Http://opendatacommunities.org/id/metropolitan-district-council/leeds,Leeds City Council,Central & Corporate,Commercial Services Trading Services,Transport,Vehicle Spares,345,30-Oct-2014,1410-00292,36.00,R,Adm Car Audio,No
Http://opendatacommunities.org/id/metropolitan-district-council/leeds,Leeds City Council,Central & Corporate,Commercial Services Trading Services,Premises,Maintenance Of Buildings,101,02-Oct-2014,1410-00293,1621.00,R,Admas Limited,No
Http://opendatacommunities.org/id/metropolitan-district-council/leeds,Leeds City Council,Central & Corporate,Commercial Services Trading Services,Supplies and Services,Other Hired And Contracted Services,265,21-Oct-2014,1410-00294,180.00,R,Admas Limited,No
Http://opendatacommunities.org/id/metropolitan-district-council/leeds,Leeds City Council,Central & Corporate,Commercial Services Trading Services,Supplies and Services,Other Hired And Contracted Services,265,21-Oct-2014,1410-00295,310.00,R,Admas Limited,No
Http://opendatacommunities.org/id/metropolitan-district-council/leeds,Leeds City Council,Central & Corporate,Commercial Services Trading Services,Supplies and Services,Other Hired And Contracted Services,265,21-Oct-2014,1410-00296,180.00,R,Admas Limited,No
Http://opendatacommunities.org/id/metropolitan-district-council/leeds,Leeds City Council,Central & Corporate,Commercial Services Trading Services,Supplies and Services,Other Hired And Contracted Services,265,21-Oct-2014,1410-00297,180.00,R,Admas Limited,No
Http://opendatacommunities.org/id/metropolitan-district-council/leeds,Leeds City Council,Central & Corporate,Commercial Services Trading Services,Supplies and Services,Other Hired And Contracted Services,265,21-Oct-2014,1410-00298,180.00,R,Admas Limited,No
Http://opendatacommunities.org/id/metropolitan-district-council/leeds,Leeds City Council,Central & Corporate,Commercial Services Trading Services,Supplies and Services,Other Hired And Contracted Services,265,21-Oct-2014,1410-00299,180.00,R,Admas Limited,No
Http://opendatacommunities.org/id/metropolitan-district-council/leeds,Leeds City Council,Central & Corporate,Commercial Services Trading Services,Supplies and Services,Other Hired And Contracted Services,265,02-Oct-2014,1410-00300,360.00,R,Admas Limited,No
Http://opendatacommunities.org/id/metropolitan-district-council/leeds,Leeds City Council,Central & Corporate,Commercial Services Trading Services,Supplies and Services,Other Hired And Contracted Services,265,29-Oct-2014,1410-00301,180.00,R,Admas Limited,No
Http://opendatacommunities.org/id/metropolitan-district-council/leeds,Leeds City Council,Childrens Services,Partnership Development & Leadership,Employees,Training & Development,70,21-Oct-2014,1410-00302,1350.00,R,Adolescent And Childrens Trust,No
Http://opendatacommunities.org/id/metropolitan-district-council/leeds,Leeds City Council,Childrens Services,Safeguarding Targeted & Specialist,Third Party Payments,Independent Fostering Agencies,509,08-Oct-2014,1410-00303,1708.50,R,Adolescent And Childrens Trust,No
Http://opendatacommunities.org/id/metropolitan-district-council/leeds,Leeds City Council,Childrens Services,Safeguarding Targeted & Specialist,Third Party Payments,Independent Fostering Agencies,509,08-Oct-2014,1410-00304,5580.00,R,Adolescent And Childrens Trust,No
Http://opendatacommunities.org/id/metropolitan-district-council/leeds,Leeds City Council,Childrens Services,Safeguarding Targeted & Specialist,Third Party Payments,Independent Fostering Agencies,509,08-Oct-2014,1410-00305,408.00,R,Adolescent And Childrens Trust,No
Http://opendatacommunities.org/id/metropolitan-district-council/leeds,Leeds City Council,Childrens Services,Safeguarding Targeted & Specialist,Third Party Payments,Independent Fostering Agencies,509,08-Oct-2014,1410-00306,3115.50,R,Adolescent And Childrens Trust,No
Http://opendatacommunities.org/id/metropolitan-district-council/leeds,Leeds City Council,Childrens Services,Safeguarding Targeted & Specialist,Third Party Payments,Independent Fostering Agencies,509,08-Oct-2014,1410-00307,2673.30,R,Adolescent And Childrens Trust,No
Http://opendatacommunities.org/id/metropolitan-district-council/leeds,Leeds City Council,Childrens Services,Safeguarding Targeted & Specialist,Third Party Payments,Independent Fostering Agencies,509,06-Oct-2014,1410-00308,198.00,R,Adolescent And Childrens Trust,No
Http://opendatacommunities.org/id/metropolitan-district-council/leeds,Leeds City Council,Childrens Services,Safeguarding Targeted & Specialist,Third Party Payments,Interagency Adoptions,559,03-Oct-2014,1410-00309,670.25,R,Adoption Uk,No
Http://opendatacommunities.org/id/metropolitan-district-council/leeds,Leeds City Council,Childrens Services,Safeguarding Targeted & Specialist,Third Party Payments,Interagency Adoptions,559,03-Oct-2014,1410-00310,550.00,R,Adoption Uk,No
Http://opendatacommunities.org/id/metropolitan-district-council/leeds,Leeds City Council,Central & Corporate,Commercial Services Trading Services,Supplies and Services,Other Hired And Contracted Services,265,29-Oct-2014,1410-00311,4594.60,R,Adrian Freeman T/A Beacon,No
Http://opendatacommunities.org/id/metropolitan-district-council/leeds,Leeds City Council,Central & Corporate,Commercial Services Trading Services,Supplies and Services,Other Hired And Contracted Services,265,07-Oct-2014,1410-00312,1825.00,R,Adrian Freeman T/A Beacon,No
Http://opendatacommunities.org/id/metropolitan-district-council/leeds,Leeds City Council,Central & Corporate,Commercial Services Trading Services,Supplies and Services,Other Hired And Contracted Services,265,03-Oct-2014,1410-00313,3825.00,R,Adrian Freeman T/A Beacon,No
Http://opendatacommunities.org/id/metropolitan-district-council/leeds,Leeds City Council,Central & Corporate,Commercial Services Trading Services,Supplies and Services,Other Hired And Contracted Services,265,27-Oct-2014,1410-00314,3018.00,R,Adrian Freeman T/A Beacon,No
Http://opendatacommunities.org/id/metropolitan-district-council/leeds,Leeds City Council,Adult Social Care,Services For Older People Under 65 P/Dis,Transfer Payments,Personalised Budgets,627,22-Oct-2014,1410-00315,312.00,R,REDACTED PERSONAL DATA,No
Http://opendatacommunities.org/id/metropolitan-district-council/leeds,Leeds City Council,Adult Social Care,Other Adult Services,Third Party Payments,Payments To Voluntary Organisations,561,31-Oct-2014,1410-00316,18656.25,R,Ads,No
Http://opendatacommunities.org/id/metropolitan-district-council/leeds,Leeds City Council,Central & Corporate,Public Health,Supplies and Services,Other Hired And Contracted Services,265,24-Oct-2014,1410-00317,302.88,R,Ads,No
Http://opendatacommunities.org/id/metropolitan-district-council/leeds,Leeds City Council,Central & Corporate,Public Health,Supplies and Services,Other Hired And Contracted Services,265,24-Oct-2014,1410-00318,320.88,R,Ads,No
Http://opendatacommunities.org/id/metropolitan-district-council/leeds,Leeds City Council,Central & Corporate,Public Health,Third Party Payments,Public Health Commissioned Services,526,31-Oct-2014,1410-00319,132960.85,R,Ads,No
Http://opendatacommunities.org/id/metropolitan-district-council/leeds,Leeds City Council,Central & Corporate,Support And Facilities General Fund,Supplies and Services,Other Hired And Contracted Services,265,31-Oct-2014,1410-00320,215.09,R,Adt Fire & Security,No
Http://opendatacommunities.org/id/metropolitan-district-council/leeds,Leeds City Council,Central & Corporate,Support And Facilities General Fund,Supplies and Services,Other Hired And Contracted Services,265,31-Oct-2014,1410-00321,248.56,R,Adt Fire & Security,No
Http://opendatacommunities.org/id/metropolitan-district-council/leeds,Leeds City Council,Environment & Housing,Community Safety,Supplies and Services,Other Hired And Contracted Services,265,09-Oct-2014,1410-00322,34.00,R,Adt Fire And Security Plc,No
Http://opendatacommunities.org/id/metropolitan-district-council/leeds,Leeds City Council,Environment & Housing,Community Safety,Supplies and Services,Other Hired And Contracted Services,265,09-Oct-2014,1410-00323,945.08,R,Adt Fire And Security Plc,No
Http://opendatacommunities.org/id/metropolitan-district-council/leeds,Leeds City Council,Environment & Housing,Hra,Premises,Premises Security Services,162,03-Oct-2014,1410-00324,132.10,R,Adt Fire And Security Plc,No
Http://opendatacommunities.org/id/metropolitan-district-council/leeds,Leeds City Council as Accountable Body,Social Services Pooled Budgets,Jcs For People With Learning Disabilitie,Third Party Payments,Sheltered Accommodation,569,31-Oct-2014,1410-00325,395.50,R,Adult Placement Services,No
Http://opendatacommunities.org/id/metropolitan-district-council/leeds,Leeds City Council as Accountable Body,Social Services Pooled Budgets,Jcs For People With Learning Disabilitie,Third Party Payments,Sheltered Accommodation,569,16-Oct-2014,1410-00326,1332.20,R,Adult Placement Services,No
Http://opendatacommunities.org/id/metropolitan-district-council/leeds,Leeds City Council,Adult Social Care,Services For Adults Under 65 Mental/Dis,Third Party Payments,Nursing Home,570,22-Oct-2014,1410-00327,1544.80,R,Adult Supported Living Ltd,No
Http://opendatacommunities.org/id/metropolitan-district-council/leeds,Leeds City Council,City Development,Libraries  Arts & Heritage,Supplies and Services,External Audit Fees,261,29-Oct-2014,1410-00328,85.00,R,Advance Stocks Ltd,No
Http://opendatacommunities.org/id/metropolitan-district-council/leeds,Leeds City Council,City Development,Libraries  Arts & Heritage,Supplies and Services,External Audit Fees,261,09-Oct-2014,1410-00329,85.00,R,Advance Stocks Ltd,No
Http://opendatacommunities.org/id/metropolitan-district-council/leeds,Leeds City Council,City Development,Libraries  Arts & Heritage,Supplies and Services,External Audit Fees,261,24-Oct-2014,1410-00330,85.00,R,Advance Stocks Ltd,No
Http://opendatacommunities.org/id/metropolitan-district-council/leeds,Leeds City Council,City Development,Recreation,Supplies and Services,External Audit Fees,261,01-Oct-2014,1410-00331,235.00,R,Advance Stocks Ltd,No
Http://opendatacommunities.org/id/metropolitan-district-council/leeds,Leeds City Council,City Development,Recreation,Supplies and Services,External Audit Fees,261,24-Oct-2014,1410-00332,100.00,R,Advance Stocks Ltd,No
Http://opendatacommunities.org/id/metropolitan-district-council/leeds,Leeds City Council,City Development,Recreation,Supplies and Services,External Audit Fees,261,24-Oct-2014,1410-00333,235.00,R,Advance Stocks Ltd,No
Http://opendatacommunities.org/id/metropolitan-district-council/leeds,Leeds City Council,Childrens Services,Safeguarding Targeted & Specialist,Third Party Payments,Services Rendered By Voluntary Sector,505,03-Oct-2014,1410-00334,1257.13,R,Advantage Healthcare Group Ltd,No
Http://opendatacommunities.org/id/metropolitan-district-council/leeds,Leeds City Council,Childrens Services,Safeguarding Targeted & Specialist,Third Party Payments,Services Rendered By Voluntary Sector,505,22-Oct-2014,1410-00335,2067.23,R,Advantage Healthcare Group Ltd,No
Http://opendatacommunities.org/id/metropolitan-district-council/leeds,Leeds City Council,Childrens Services,Safeguarding Targeted & Specialist,Third Party Payments,Services Rendered By Voluntary Sector,505,20-Oct-2014,1410-00336,1513.36,R,Advantage Healthcare Group Ltd,No
Http://opendatacommunities.org/id/metropolitan-district-council/leeds,Leeds City Council,Childrens Services,Safeguarding Targeted & Specialist,Third Party Payments,Services Rendered By Voluntary Sector,505,20-Oct-2014,1410-00337,1695.60,R,Advantage Healthcare Group Ltd,No
Http://opendatacommunities.org/id/metropolitan-district-council/leeds,Leeds City Council,Childrens Services,Safeguarding Targeted & Specialist,Third Party Payments,Services Rendered By Voluntary Sector,505,30-Oct-2014,1410-00338,1845.49,R,Advantage Healthcare Group Ltd,No
Http://opendatacommunities.org/id/metropolitan-district-council/leeds,Leeds City Council,Childrens Services,Safeguarding Targeted & Specialist,Third Party Payments,Services Rendered By Voluntary Sector,505,30-Oct-2014,1410-00339,680.60,R,Advantage Healthcare Group Ltd,No
Http://opendatacommunities.org/id/metropolitan-district-council/leeds,Leeds City Council as Accountable Body,Social Services Pooled Budgets,Jcs For People With Learning Disabilitie,Third Party Payments,Home Care,568,31-Oct-2014,1410-00340,3214.09,R,Advantage Healthcare Group Ltd,No
Http://opendatacommunities.org/id/metropolitan-district-council/leeds,Leeds City Council as Accountable Body,Social Services Pooled Budgets,Jcs For People With Learning Disabilitie,Third Party Payments,Home Care,568,22-Oct-2014,1410-00341,305.50,R,Advantage Healthcare Group Ltd,No
Http://opendatacommunities.org/id/metropolitan-district-council/leeds,Leeds City Council as Accountable Body,Social Services Pooled Budgets,Jcs For People With Learning Disabilitie,Third Party Payments,Home Care,568,22-Oct-2014,1410-00342,3162.92,R,Advantage Healthcare Group Ltd,No
Http://opendatacommunities.org/id/metropolitan-district-council/leeds,Leeds City Council as Accountable Body,Social Services Pooled Budgets,Jcs For People With Learning Disabilitie,Third Party Payments,Home Care,568,31-Oct-2014,1410-00343,2173.84,R,Advantage Healthcare Group Ltd,No
Http://opendatacommunities.org/id/metropolitan-district-council/leeds,Leeds City Council as Accountable Body,Social Services Pooled Budgets,Jcs For People With Learning Disabilitie,Third Party Payments,Home Care,568,31-Oct-2014,1410-00344,490.46,R,Advantage Healthcare Group Ltd,No
Http://opendatacommunities.org/id/metropolitan-district-council/leeds,Leeds City Council as Accountable Body,Social Services Pooled Budgets,Jcs For People With Learning Disabilitie,Third Party Payments,Home Care,568,31-Oct-2014,1410-00345,331.92,R,Advantage Healthcare Group Ltd,No
Http://opendatacommunities.org/id/metropolitan-district-council/leeds,Leeds City Council as Accountable Body,Social Services Pooled Budgets,Jcs For People With Learning Disabilitie,Third Party Payments,Home Care,568,16-Oct-2014,1410-00346,3153.81,R,Advantage Healthcare Group Ltd,No
Http://opendatacommunities.org/id/metropolitan-district-council/leeds,Leeds City Council as Accountable Body,Social Services Pooled Budgets,Jcs For People With Learning Disabilitie,Third Party Payments,Home Care,568,16-Oct-2014,1410-00347,611.00,R,Advantage Healthcare Group Ltd,No
Http://opendatacommunities.org/id/metropolitan-district-council/leeds,Leeds City Council as Accountable Body,Social Services Pooled Budgets,Jcs For People With Learning Disabilitie,Third Party Payments,Home Care,568,16-Oct-2014,1410-00348,3223.11,R,Advantage Healthcare Group Ltd,No
Http://opendatacommunities.org/id/metropolitan-district-council/leeds,Leeds City Council as Accountable Body,Social Services Pooled Budgets,Jcs For People With Learning Disabilitie,Third Party Payments,Home Care,568,16-Oct-2014,1410-00349,514.21,R,Advantage Healthcare Group Ltd,No
Http://opendatacommunities.org/id/metropolitan-district-council/leeds,Leeds City Council as Accountable Body,Social Services Pooled Budgets,Jcs For People With Learning Disabilitie,Third Party Payments,Home Care,568,06-Oct-2014,1410-00350,647.80,R,Advantage Healthcare Group Ltd,No
Http://opendatacommunities.org/id/metropolitan-district-council/leeds,Leeds City Council as Accountable Body,Social Services Pooled Budgets,Jcs For People With Learning Disabilitie,Third Party Payments,Home Care,568,31-Oct-2014,1410-00351,331.92,R,Advantage Healthcare Group Ltd,No
Http://opendatacommunities.org/id/metropolitan-district-council/leeds,Leeds City Council as Accountable Body,Social Services Pooled Budgets,Jcs For People With Learning Disabilitie,Third Party Payments,Home Care,568,01-Oct-2014,1410-00352,647.80,R,Advantage Healthcare Group Ltd,No
Http://opendatacommunities.org/id/metropolitan-district-council/leeds,Leeds City Council as Accountable Body,Social Services Pooled Budgets,Jcs For People With Learning Disabilitie,Third Party Payments,Home Care,568,06-Oct-2014,1410-00353,3102.57,R,Advantage Healthcare Group Ltd,No
Http://opendatacommunities.org/id/metropolitan-district-council/leeds,Leeds City Council as Accountable Body,Social Services Pooled Budgets,Jcs For People With Learning Disabilitie,Third Party Payments,Home Care,568,06-Oct-2014,1410-00354,647.80,R,Advantage Healthcare Group Ltd,No
Http://opendatacommunities.org/id/metropolitan-district-council/leeds,Leeds City Council as Accountable Body,Social Services Pooled Budgets,Jcs For People With Learning Disabilitie,Third Party Payments,Home Care,568,06-Oct-2014,1410-00355,752.32,R,Advantage Healthcare Group Ltd,No
Http://opendatacommunities.org/id/metropolitan-district-council/leeds,Leeds City Council as Accountable Body,Social Services Pooled Budgets,Jcs For People With Learning Disabilitie,Third Party Payments,Home Care,568,06-Oct-2014,1410-00356,3754.93,R,Advantage Healthcare Group Ltd,No
Http://opendatacommunities.org/id/metropolitan-district-council/leeds,Leeds City Council as Accountable Body,Social Services Pooled Budgets,Jcs For People With Learning Disabilitie,Third Party Payments,Home Care,568,14-Oct-2014,1410-00357,2666.85,R,Advantage Healthcare Group Ltd,No
Http://opendatacommunities.org/id/metropolitan-district-council/leeds,Leeds City Council as Accountable Body,Social Services Pooled Budgets,Jcs For People With Learning Disabilitie,Third Party Payments,Home Care,568,13-Oct-2014,1410-00358,323.90,R,Advantage Healthcare Group Ltd,No
Http://opendatacommunities.org/id/metropolitan-district-council/leeds,Leeds City Council as Accountable Body,Social Services Pooled Budgets,Jcs For People With Learning Disabilitie,Third Party Payments,Home Care,568,16-Oct-2014,1410-00359,3424.91,R,Advantage Healthcare Group Ltd,No
Http://opendatacommunities.org/id/metropolitan-district-council/leeds,Leeds City Council as Accountable Body,Social Services Pooled Budgets,Jcs For People With Learning Disabilitie,Third Party Payments,Home Care,568,16-Oct-2014,1410-00360,137.12,R,Advantage Healthcare Group Ltd,No
Http://opendatacommunities.org/id/metropolitan-district-council/leeds,Leeds City Council as Accountable Body,Social Services Pooled Budgets,Jcs For People With Learning Disabilitie,Third Party Payments,Residential,580,22-Oct-2014,1410-00361,23004.36,R,Advitam Ltd,No
Http://opendatacommunities.org/id/metropolitan-district-council/leeds,Leeds City Council,Adult Social Care,Social Services Support Services,Third Party Payments,Payments To Voluntary Organisations,561,17-Oct-2014,1410-00362,86216.69,R,Advonet,No
Http://opendatacommunities.org/id/metropolitan-district-council/leeds,Leeds City Council,Central & Corporate,Customer Services,Supplies and Services,Other Hired And Contracted Services,265,07-Oct-2014,1410-00363,15.36,R,Afbedel Ltd,No
Http://opendatacommunities.org/id/metropolitan-district-council/leeds,Leeds City Council,Adult Social Care,Services For Adults Under 65 Mental/Dis,Third Party Payments,Home Care,568,17-Oct-2014,1410-00364,319.60,R,Affinity Trust,No
Http://opendatacommunities.org/id/metropolitan-district-council/leeds,Leeds City Council,Adult Social Care,Services For Adults Under 65 Mental/Dis,Third Party Payments,Home Care,568,03-Oct-2014,1410-00365,319.60,R,Affinity Trust,No
Http://opendatacommunities.org/id/metropolitan-district-council/leeds,Leeds City Council,Adult Social Care,Services For Older People - 65 And Over,Third Party Payments,Home Care,568,22-Oct-2014,1410-00366,1076.48,R,Affinity Trust,No
Http://opendatacommunities.org/id/metropolitan-district-council/leeds,Leeds City Council,Adult Social Care,Services For Older People - 65 And Over,Third Party Payments,Home Care,568,31-Oct-2014,1410-00367,998.75,R,Affinity Trust,No
Http://opendatacommunities.org/id/metropolitan-district-council/leeds,Leeds City Council,Adult Social Care,Services For Older People Under 65 P/Dis,Third Party Payments,Home Care,568,16-Oct-2014,1410-00368,33.00,R,Affinity Trust,No
Http://opendatacommunities.org/id/metropolitan-district-council/leeds,Leeds City Council,Adult Social Care,Services For Older People Under 65 P/Dis,Third Party Payments,Home Care,568,17-Oct-2014,1410-00369,415.48,R,Affinity Trust,No
Http://opendatacommunities.org/id/metropolitan-district-council/leeds,Leeds City Council,Adult Social Care,Services For Older People Under 65 P/Dis,Third Party Payments,Home Care,568,17-Oct-2014,1410-00370,288.97,R,Affinity Trust,No
Http://opendatacommunities.org/id/metropolitan-district-council/leeds,Leeds City Council,Adult Social Care,Services For Older People Under 65 P/Dis,Third Party Payments,Home Care,568,22-Oct-2014,1410-00371,815.15,R,Affinity Trust,No
Http://opendatacommunities.org/id/metropolitan-district-council/leeds,Leeds City Council,Adult Social Care,Services For Older People Under 65 P/Dis,Third Party Payments,Home Care,568,31-Oct-2014,1410-00372,319.60,R,Affinity Trust,No
Http://opendatacommunities.org/id/metropolitan-district-council/leeds,Leeds City Council,Adult Social Care,Services For Older People Under 65 P/Dis,Third Party Payments,Home Care,568,31-Oct-2014,1410-00373,343.57,R,Affinity Trust,No
Http://opendatacommunities.org/id/metropolitan-district-council/leeds,Leeds City Council,Adult Social Care,Services For Older People Under 65 P/Dis,Third Party Payments,Home Care,568,17-Oct-2014,1410-00374,678.18,R,Affinity Trust,No
Http://opendatacommunities.org/id/metropolitan-district-council/leeds,Leeds City Council,Adult Social Care,Services For Older People Under 65 P/Dis,Third Party Payments,Home Care,568,17-Oct-2014,1410-00375,396.00,R,Affinity Trust,No
Http://opendatacommunities.org/id/metropolitan-district-council/leeds,Leeds City Council,Adult Social Care,Services For Older People Under 65 P/Dis,Third Party Payments,Home Care,568,22-Oct-2014,1410-00376,231.71,R,Affinity Trust,No
Http://opendatacommunities.org/id/metropolitan-district-council/leeds,Leeds City Council,Adult Social Care,Services For Older People Under 65 P/Dis,Third Party Payments,Home Care,568,17-Oct-2014,1410-00377,2032.99,R,Affinity Trust,No
Http://opendatacommunities.org/id/metropolitan-district-council/leeds,Leeds City Council,Adult Social Care,Services For Older People Under 65 P/Dis,Third Party Payments,Home Care,568,31-Oct-2014,1410-00378,511.36,R,Affinity Trust,No
Http://opendatacommunities.org/id/metropolitan-district-council/leeds,Leeds City Council,Adult Social Care,Services For Older People Under 65 P/Dis,Third Party Payments,Home Care,568,22-Oct-2014,1410-00379,607.24,R,Affinity Trust,No
Http://opendatacommunities.org/id/metropolitan-district-council/leeds,Leeds City Council as Accountable Body,Social Services Pooled Budgets,Jcs For People With Learning Disabilitie,Third Party Payments,Day Centre,564,22-Oct-2014,1410-00380,1053.36,R,Affinity Trust,No
Http://opendatacommunities.org/id/metropolitan-district-council/leeds,Leeds City Council as Accountable Body,Social Services Pooled Budgets,Jcs For People With Learning Disabilitie,Third Party Payments,Day Centre,564,22-Oct-2014,1410-00381,1315.84,R,Affinity Trust,No
Http://opendatacommunities.org/id/metropolitan-district-council/leeds,Leeds City Council as Accountable Body,Social Services Pooled Budgets,Jcs For People With Learning Disabilitie,Third Party Payments,Day Centre,564,22-Oct-2014,1410-00382,4052.48,R,Affinity Trust,No
Http://opendatacommunities.org/id/metropolitan-district-council/leeds,Leeds City Council as Accountable Body,Social Services Pooled Budgets,Jcs For People With Learning Disabilitie,Third Party Payments,Day Centre,564,22-Oct-2014,1410-00383,714.78,R,Affinity Trust,No
Http://opendatacommunities.org/id/metropolitan-district-council/leeds,Leeds City Council as Accountable Body,Social Services Pooled Budgets,Jcs For People With Learning Disabilitie,Third Party Payments,Day Centre,564,22-Oct-2014,1410-00384,2346.40,R,Affinity Trust,No
Http://opendatacommunities.org/id/metropolitan-district-council/leeds,Leeds City Council as Accountable Body,Social Services Pooled Budgets,Jcs For People With Learning Disabilitie,Third Party Payments,Day Centre,564,17-Oct-2014,1410-00385,416.64,R,Affinity Trust,No
Http://opendatacommunities.org/id/metropolitan-district-council/leeds,Leeds City Council as Accountable Body,Social Services Pooled Budgets,Jcs For People With Learning Disabilitie,Third Party Payments,Home Care,568,17-Oct-2014,1410-00386,1402.50,R,Affinity Trust,No
Http://opendatacommunities.org/id/metropolitan-district-council/leeds,Leeds City Council as Accountable Body,Social Services Pooled Budgets,Jcs For People With Learning Disabilitie,Third Party Payments,Home Care,568,17-Oct-2014,1410-00387,127.84,R,Affinity Trust,No
Http://opendatacommunities.org/id/metropolitan-district-council/leeds,Leeds City Council as Accountable Body,Social Services Pooled Budgets,Jcs For People With Learning Disabilitie,Third Party Payments,Home Care,568,16-Oct-2014,1410-00388,575.28,R,Affinity Trust,No
Http://opendatacommunities.org/id/metropolitan-district-council/leeds,Leeds City Council as Accountable Body,Social Services Pooled Budgets,Jcs For People With Learning Disabilitie,Third Party Payments,Home Care,568,16-Oct-2014,1410-00389,561.00,R,Affinity Trust,No
Http://opendatacommunities.org/id/metropolitan-district-council/leeds,Leeds City Council as Accountable Body,Social Services Pooled Budgets,Jcs For People With Learning Disabilitie,Third Party Payments,Home Care,568,16-Oct-2014,1410-00390,336.40,R,Affinity Trust,No
Http://opendatacommunities.org/id/metropolitan-district-council/leeds,Leeds City Council as Accountable Body,Social Services Pooled Budgets,Jcs For People With Learning Disabilitie,Third Party Payments,Home Care,568,16-Oct-2014,1410-00391,455.43,R,Affinity Trust,No
Http://opendatacommunities.org/id/metropolitan-district-council/leeds,Leeds City Council as Accountable Body,Social Services Pooled Budgets,Jcs For People With Learning Disabilitie,Third Party Payments,Home Care,568,22-Oct-2014,1410-00392,1206.72,R,Affinity Trust,No
Http://opendatacommunities.org/id/metropolitan-district-council/leeds,Leeds City Council as Accountable Body,Social Services Pooled Budgets,Jcs For People With Learning Disabilitie,Third Party Payments,Home Care,568,16-Oct-2014,1410-00393,960.00,R,Affinity Trust,No
Http://opendatacommunities.org/id/metropolitan-district-council/leeds,Leeds City Council as Accountable Body,Social Services Pooled Budgets,Jcs For People With Learning Disabilitie,Third Party Payments,Home Care,568,31-Oct-2014,1410-00394,2011.20,R,Affinity Trust,No
Http://opendatacommunities.org/id/metropolitan-district-council/leeds,Leeds City Council as Accountable Body,Social Services Pooled Budgets,Jcs For People With Learning Disabilitie,Third Party Payments,Home Care,568,22-Oct-2014,1410-00395,1005.60,R,Affinity Trust,No
Http://opendatacommunities.org/id/metropolitan-district-council/leeds,Leeds City Council as Accountable Body,Social Services Pooled Budgets,Jcs For People With Learning Disabilitie,Third Party Payments,Home Care,568,22-Oct-2014,1410-00396,776.58,R,Affinity Trust,No
Http://opendatacommunities.org/id/metropolitan-district-council/leeds,Leeds City Council as Accountable Body,Social Services Pooled Budgets,Jcs For People With Learning Disabilitie,Third Party Payments,Home Care,568,22-Oct-2014,1410-00397,804.48,R,Affinity Trust,No
Http://opendatacommunities.org/id/metropolitan-district-council/leeds,Leeds City Council as Accountable Body,Social Services Pooled Budgets,Jcs For People With Learning Disabilitie,Third Party Payments,Home Care,568,16-Oct-2014,1410-00398,575.28,R,Affinity Trust,No
Http://opendatacommunities.org/id/metropolitan-district-council/leeds,Leeds City Council as Accountable Body,Social Services Pooled Budgets,Jcs For People With Learning Disabilitie,Third Party Payments,Home Care,568,17-Oct-2014,1410-00399,767.04,R,Affinity Trust,No
Http://opendatacommunities.org/id/metropolitan-district-council/leeds,Leeds City Council as Accountable Body,Social Services Pooled Budgets,Jcs For People With Learning Disabilitie,Third Party Payments,Home Care,568,17-Oct-2014,1410-00400,939.20,R,Affinity Trust,No
Http://opendatacommunities.org/id/metropolitan-district-council/leeds,Leeds City Council as Accountable Body,Social Services Pooled Budgets,Jcs For People With Learning Disabilitie,Third Party Payments,Home Care,568,17-Oct-2014,1410-00401,408.00,R,Affinity Trust,No
Http://opendatacommunities.org/id/metropolitan-district-council/leeds,Leeds City Council as Accountable Body,Social Services Pooled Budgets,Jcs For People With Learning Disabilitie,Third Party Payments,Home Care,568,22-Oct-2014,1410-00402,1214.48,R,Affinity Trust,No
Http://opendatacommunities.org/id/metropolitan-district-council/leeds,Leeds City Council as Accountable Body,Social Services Pooled Budgets,Jcs For People With Learning Disabilitie,Third Party Payments,Home Care,568,22-Oct-2014,1410-00403,2972.28,R,Affinity Trust,No
Http://opendatacommunities.org/id/metropolitan-district-council/leeds,Leeds City Council as Accountable Body,Social Services Pooled Budgets,Jcs For People With Learning Disabilitie,Third Party Payments,Home Care,568,22-Oct-2014,1410-00404,239.70,R,Affinity Trust,No
Http://opendatacommunities.org/id/metropolitan-district-council/leeds,Leeds City Council as Accountable Body,Social Services Pooled Budgets,Jcs For People With Learning Disabilitie,Third Party Payments,Home Care,568,22-Oct-2014,1410-00405,306.48,R,Affinity Trust,No
Http://opendatacommunities.org/id/metropolitan-district-council/leeds,Leeds City Council as Accountable Body,Social Services Pooled Budgets,Jcs For People With Learning Disabilitie,Third Party Payments,Home Care,568,22-Oct-2014,1410-00406,1143.76,R,Affinity Trust,No
Http://opendatacommunities.org/id/metropolitan-district-council/leeds,Leeds City Council as Accountable Body,Social Services Pooled Budgets,Jcs For People With Learning Disabilitie,Third Party Payments,Home Care,568,22-Oct-2014,1410-00407,1076.48,R,Affinity Trust,No
Http://opendatacommunities.org/id/metropolitan-district-council/leeds,Leeds City Council as Accountable Body,Social Services Pooled Budgets,Jcs For People With Learning Disabilitie,Third Party Payments,Home Care,568,22-Oct-2014,1410-00408,243.40,R,Affinity Trust,No
Http://opendatacommunities.org/id/metropolitan-district-council/leeds,Leeds City Council as Accountable Body,Social Services Pooled Budgets,Jcs For People With Learning Disabilitie,Third Party Payments,Home Care,568,31-Oct-2014,1410-00409,4417.28,R,Affinity Trust,No
Http://opendatacommunities.org/id/metropolitan-district-council/leeds,Leeds City Council as Accountable Body,Social Services Pooled Budgets,Jcs For People With Learning Disabilitie,Third Party Payments,Home Care,568,22-Oct-2014,1410-00410,-2272.98,R,Affinity Trust,No
Http://opendatacommunities.org/id/metropolitan-district-council/leeds,Leeds City Council as Accountable Body,Social Services Pooled Budgets,Jcs For People With Learning Disabilitie,Third Party Payments,Home Care,568,06-Oct-2014,1410-00411,390.00,R,Affinity Trust,No
Http://opendatacommunities.org/id/metropolitan-district-council/leeds,Leeds City Council as Accountable Body,Social Services Pooled Budgets,Jcs For People With Learning Disabilitie,Third Party Payments,Home Care,568,22-Oct-2014,1410-00412,60.66,R,Affinity Trust,No
Http://opendatacommunities.org/id/metropolitan-district-council/leeds,Leeds City Council as Accountable Body,Social Services Pooled Budgets,Jcs For People With Learning Disabilitie,Third Party Payments,Home Care,568,24-Oct-2014,1410-00413,2212.32,R,Affinity Trust,No
Http://opendatacommunities.org/id/metropolitan-district-council/leeds,Leeds City Council as Accountable Body,Social Services Pooled Budgets,Jcs For People With Learning Disabilitie,Third Party Payments,Home Care,568,06-Oct-2014,1410-00414,450.00,R,Affinity Trust,No
Http://opendatacommunities.org/id/metropolitan-district-council/leeds,Leeds City Council as Accountable Body,Social Services Pooled Budgets,Jcs For People With Learning Disabilitie,Third Party Payments,Home Care,568,31-Oct-2014,1410-00415,2514.00,R,Affinity Trust,No
Http://opendatacommunities.org/id/metropolitan-district-council/leeds,Leeds City Council as Accountable Body,Social Services Pooled Budgets,Jcs For People With Learning Disabilitie,Third Party Payments,Home Care,568,31-Oct-2014,1410-00416,4760.80,R,Affinity Trust,No
Http://opendatacommunities.org/id/metropolitan-district-council/leeds,Leeds City Council as Accountable Body,Social Services Pooled Budgets,Jcs For People With Learning Disabilitie,Third Party Payments,Home Care,568,06-Oct-2014,1410-00417,510.00,R,Affinity Trust,No
Http://opendatacommunities.org/id/metropolitan-district-council/leeds,Leeds City Council as Accountable Body,Social Services Pooled Budgets,Jcs For People With Learning Disabilitie,Third Party Payments,Home Care,568,22-Oct-2014,1410-00418,306.00,R,Affinity Trust,No
Http://opendatacommunities.org/id/metropolitan-district-council/leeds,Leeds City Council as Accountable Body,Social Services Pooled Budgets,Jcs For People With Learning Disabilitie,Third Party Payments,Home Care,568,06-Oct-2014,1410-00419,3848.08,R,Affinity Trust,No
Http://opendatacommunities.org/id/metropolitan-district-council/leeds,Leeds City Council as Accountable Body,Social Services Pooled Budgets,Jcs For People With Learning Disabilitie,Third Party Payments,Home Care,568,06-Oct-2014,1410-00420,3726.40,R,Affinity Trust,No
Http://opendatacommunities.org/id/metropolitan-district-council/leeds,Leeds City Council as Accountable Body,Social Services Pooled Budgets,Jcs For People With Learning Disabilitie,Third Party Payments,Home Care,568,22-Oct-2014,1410-00421,1080.00,R,Affinity Trust,No
Http://opendatacommunities.org/id/metropolitan-district-council/leeds,Leeds City Council as Accountable Body,Social Services Pooled Budgets,Jcs For People With Learning Disabilitie,Third Party Payments,Home Care,568,22-Oct-2014,1410-00422,3023.58,R,Affinity Trust,No
Http://opendatacommunities.org/id/metropolitan-district-council/leeds,Leeds City Council as Accountable Body,Social Services Pooled Budgets,Jcs For People With Learning Disabilitie,Third Party Payments,Home Care,568,16-Oct-2014,1410-00423,1560.00,R,Affinity Trust,No
Http://opendatacommunities.org/id/metropolitan-district-council/leeds,Leeds City Council as Accountable Body,Social Services Pooled Budgets,Jcs For People With Learning Disabilitie,Third Party Payments,Home Care,568,31-Oct-2014,1410-00424,180.00,R,Affinity Trust,No
Http://opendatacommunities.org/id/metropolitan-district-council/leeds,Leeds City Council as Accountable Body,Social Services Pooled Budgets,Jcs For People With Learning Disabilitie,Third Party Payments,Home Care,568,22-Oct-2014,1410-00425,525.72,R,Affinity Trust,No
Http://opendatacommunities.org/id/metropolitan-district-council/leeds,Leeds City Council as Accountable Body,Social Services Pooled Budgets,Jcs For People With Learning Disabilitie,Third Party Payments,Home Care,568,22-Oct-2014,1410-00426,174.36,R,Affinity Trust,No
Http://opendatacommunities.org/id/metropolitan-district-council/leeds,Leeds City Council as Accountable Body,Social Services Pooled Budgets,Jcs For People With Learning Disabilitie,Third Party Payments,Home Care,568,22-Oct-2014,1410-00427,1599.98,R,Affinity Trust,No
Http://opendatacommunities.org/id/metropolitan-district-council/leeds,Leeds City Council as Accountable Body,Social Services Pooled Budgets,Jcs For People With Learning Disabilitie,Third Party Payments,Sheltered Accommodation,569,22-Oct-2014,1410-00428,108112.24,R,Affinity Trust North Divisional Office,No
Http://opendatacommunities.org/id/metropolitan-district-council/leeds,Leeds City Council as Accountable Body,Social Services Pooled Budgets,Jcs For People With Learning Disabilitie,Third Party Payments,Residential,580,22-Oct-2014,1410-00429,20658.72,R,Affinity Trust North Divisional Office,No
Http://opendatacommunities.org/id/metropolitan-district-council/leeds,Leeds City Council,City Development,Highways,Capital,Other Costs,7,13-Oct-2014,1410-00430,325.00,C,Afi Uplift Ltd,No
Http://opendatacommunities.org/id/metropolitan-district-council/leeds,Leeds City Council,Childrens Services,Safeguarding Targeted & Specialist,Third Party Payments,Interagency Adoptions,559,31-Oct-2014,1410-00431,9000.00,R,After Adoption,No
Http://opendatacommunities.org/id/metropolitan-district-council/leeds,Leeds City Council,Childrens Services,Learning Skills & Universal  ,Transport,External Hire -Occasional,304,08-Sep-2014,1410-00432,30.00,R,Aga International Nl,Yes
Http://opendatacommunities.org/id/metropolitan-district-council/leeds,Leeds City Council,Childrens Services,Learning Skills & Universal  ,Transport,External Hire -Occasional,304,08-Sep-2014,1410-00433,30.00,R,Aga International Nl,Yes
Http://opendatacommunities.org/id/metropolitan-district-council/leeds,Leeds City Council,Adult Social Care,Services For Older People - 65 And Over,Third Party Payments,Payments To Voluntary Organisations,561,01-Oct-2014,1410-00434,8025.00,R,Age Uk Leeds,No
Http://opendatacommunities.org/id/metropolitan-district-council/leeds,Leeds City Council,Environment & Housing,Strategy & Commissioning,Third Party Payments,Supporting Ppl - Block Gross Chargeable,514,03-Oct-2014,1410-00435,3957.68,R,Age Uk Leeds,No
Http://opendatacommunities.org/id/metropolitan-district-council/leeds,Leeds City Council,Environment & Housing,Strategy & Commissioning,Third Party Payments,Supporting Ppl - Block Gross Chargeable,514,31-Oct-2014,1410-00436,3957.68,R,Age Uk Leeds,No
Http://opendatacommunities.org/id/metropolitan-district-council/leeds,Leeds City Council,Adult Social Care,Social Services Support Services,Employees,Training & Development,70,31-Oct-2014,1410-00437,390.00,R,Age Uk Training,No
Http://opendatacommunities.org/id/metropolitan-district-council/leeds,Leeds City Council,Adult Social Care,Services For Older People Under 65 P/Dis,Transfer Payments,Personalised Budgets,627,22-Oct-2014,1410-00438,1701.78,R,REDACTED PERSONAL DATA,No
Http://opendatacommunities.org/id/metropolitan-district-council/leeds,Leeds City Council,Adult Social Care,Services For Older People Under 65 P/Dis,Third Party Payments,Residential,580,22-Oct-2014,1410-00439,5603.40,R,Agricola House,No
Http://opendatacommunities.org/id/metropolitan-district-council/leeds,Leeds City Council,Central & Corporate,Human Resources,Employees,Occupational Health,85,17-Oct-2014,1410-00440,75.00,R,Ahamad Hassan,No
Http://opendatacommunities.org/id/metropolitan-district-council/leeds,Leeds City Council,Environment & Housing,Environmental Health,Capital,Construction,3,17-Oct-2014,1410-00441,10000.00,C,Ahmad N&M A1 Builders,No
Http://opendatacommunities.org/id/metropolitan-district-council/leeds,Leeds City Council,Adult Social Care,Services For Older People Under 65 P/Dis,Transfer Payments,Personalised Budgets,627,22-Oct-2014,1410-00442,531.20,R,REDACTED PERSONAL DATA,No
Http://opendatacommunities.org/id/metropolitan-district-council/leeds,Leeds City Council,Environment & Housing,Parks & Countryside  ,Supplies and Services,Other Hired And Contracted Services,265,24-Sep-2014,1410-00443,71.50,R,Ahvla,Yes
Http://opendatacommunities.org/id/metropolitan-district-council/leeds,Leeds City Council as Accountable Body,Social Services Pooled Budgets,Leeds Community Equip Store Pooled Budgt,Supplies and Services,Other Equipment,203,24-Oct-2014,1410-00444,2823.80,R,Aidapt Bathrooms Ltd,No
Http://opendatacommunities.org/id/metropolitan-district-council/leeds,Leeds City Council as Accountable Body,Social Services Pooled Budgets,Leeds Community Equip Store Pooled Budgt,Supplies and Services,Other Equipment,203,24-Oct-2014,1410-00445,1075.00,R,Aidapt Bathrooms Ltd,No
Http://opendatacommunities.org/id/metropolitan-district-council/leeds,Leeds City Council as Accountable Body,Social Services Pooled Budgets,Leeds Community Equip Store Pooled Budgt,Supplies and Services,Other Equipment,203,22-Oct-2014,1410-00446,1380.00,R,Aidapt Bathrooms Ltd,No
Http://opendatacommunities.org/id/metropolitan-district-council/leeds,Leeds City Council as Accountable Body,Social Services Pooled Budgets,Leeds Community Equip Store Pooled Budgt,Supplies and Services,Other Equipment,203,03-Oct-2014,1410-00447,505.60,R,Aidapt Bathrooms Ltd,No
Http://opendatacommunities.org/id/metropolitan-district-council/leeds,Leeds City Council as Accountable Body,Social Services Pooled Budgets,Leeds Community Equip Store Pooled Budgt,Supplies and Services,Other Equipment,203,10-Oct-2014,1410-00448,1407.50,R,Aidapt Bathrooms Ltd,No
Http://opendatacommunities.org/id/metropolitan-district-council/leeds,Leeds City Council as Accountable Body,Social Services Pooled Budgets,Leeds Community Equip Store Pooled Budgt,Supplies and Services,Other Equipment,203,10-Oct-2014,1410-00449,2100.70,R,Aidapt Bathrooms Ltd,No
Http://opendatacommunities.org/id/metropolitan-district-council/leeds,Leeds City Council as Accountable Body,Social Services Pooled Budgets,Leeds Community Equip Store Pooled Budgt,Supplies and Services,Other Equipment,203,03-Oct-2014,1410-00450,1125.00,R,Aidapt Bathrooms Ltd,No
Http://opendatacommunities.org/id/metropolitan-district-council/leeds,Leeds City Council as Accountable Body,Social Services Pooled Budgets,Leeds Community Equip Store Pooled Budgt,Supplies and Services,Other Equipment,203,03-Oct-2014,1410-00451,800.00,R,Aidapt Bathrooms Ltd,No
Http://opendatacommunities.org/id/metropolitan-district-council/leeds,Leeds City Council as Accountable Body,Social Services Pooled Budgets,Leeds Community Equip Store Pooled Budgt,Supplies and Services,Other Equipment,203,22-Oct-2014,1410-00452,1297.50,R,Aidapt Bathrooms Ltd,No
Http://opendatacommunities.org/id/metropolitan-district-council/leeds,Leeds City Council as Accountable Body,Social Services Pooled Budgets,Jcs For People With Learning Disabilitie,Transfer Payments,Personal Budgets,627,22-Oct-2014,1410-00453,2839.32,R,REDACTED PERSONAL DATA,No
Http://opendatacommunities.org/id/metropolitan-district-council/leeds,Leeds City Council,Environment & Housing,Hra,Premises,General Maintenance,104,09-Oct-2014,1410-00454,338.00,R,Aidservice Ltd,No
Http://opendatacommunities.org/id/metropolitan-district-council/leeds,Leeds City Council,Environment & Housing,Hra,Premises,General Maintenance,104,31-Oct-2014,1410-00455,389.30,R,Aidservice Ltd,No
Http://opendatacommunities.org/id/metropolitan-district-council/leeds,Leeds City Council,Environment & Housing,Hra,Premises,General Maintenance,104,31-Oct-2014,1410-00456,185.00,R,Aidservice Ltd,No
Http://opendatacommunities.org/id/metropolitan-district-council/leeds,Leeds City Council,Environment & Housing,Hra,Premises,Repairs & Adapts - Buildings,191,13-Oct-2014,1410-00457,180.00,R,Aidservice Ltd,No
Http://opendatacommunities.org/id/metropolitan-district-council/leeds,Leeds City Council as Accountable Body,Social Services Pooled Budgets,Jcs For People With Learning Disabilitie,Supplies and Services,Other Equipment,203,09-Oct-2014,1410-00458,160.00,R,Aidservice Ltd,No
Http://opendatacommunities.org/id/metropolitan-district-council/leeds,Leeds City Council as Accountable Body,Social Services Pooled Budgets,Jcs For People With Learning Disabilitie,Supplies and Services,Other Equipment,203,09-Oct-2014,1410-00459,573.90,R,Aidservice Ltd,No
Http://opendatacommunities.org/id/metropolitan-district-council/leeds,Leeds City Council,Childrens Services,Safeguarding Targeted & Specialist,Employees,Training & Development,70,07-Oct-2014,1410-00460,260.00,R,Aim Project,No
Http://opendatacommunities.org/id/metropolitan-district-council/leeds,Leeds City Council,Childrens Services,Safeguarding Targeted & Specialist,Supplies and Services,Books & Audio-Visual Materials,206,31-Oct-2014,1410-00461,118.50,R,Aim Project,No
Http://opendatacommunities.org/id/metropolitan-district-council/leeds,Leeds City Council,Strategic Accounts,Miscellaneous,Transfer Payments,Land Drainage Levies,665,31-Oct-2014,1410-00462,3533.07,R,Ainsty (2008) Internal Drainage Board,No
Http://opendatacommunities.org/id/metropolitan-district-council/leeds,Leeds City Council,Central & Corporate,Commercial Services Trading Services  ,Supplies and Services,Operational Materials,205,29-Aug-2014,1410-00463,50.34,R,Air Force Pneumati,Yes
Http://opendatacommunities.org/id/metropolitan-district-council/leeds,Leeds City Council,Central & Corporate,Commercial Services Trading Services,Supplies and Services,Operational Materials,205,21-Oct-2014,1410-00464,40.00,R,Air Force Pneumatics & Hydraulics,No
Http://opendatacommunities.org/id/metropolitan-district-council/leeds,Leeds City Council,Central & Corporate,Commercial Services Trading Services,Supplies and Services,Operational Materials,205,07-Oct-2014,1410-00465,10.50,R,Air Force Pneumatics & Hydraulics,No
Http://opendatacommunities.org/id/metropolitan-district-council/leeds,Leeds City Council,Central & Corporate,Commercial Services Trading Services,Supplies and Services,Operational Materials,205,15-Oct-2014,1410-00466,75.40,R,Air Force Pneumatics & Hydraulics,No
Http://opendatacommunities.org/id/metropolitan-district-council/leeds,Leeds City Council,Central & Corporate,Commercial Services Trading Services,Supplies and Services,Operational Materials,205,15-Oct-2014,1410-00467,88.55,R,Air Force Pneumatics & Hydraulics,No
Http://opendatacommunities.org/id/metropolitan-district-council/leeds,Leeds City Council,Central & Corporate,Commercial Services Trading Services,Supplies and Services,Operational Materials,205,17-Oct-2014,1410-00468,87.40,R,Air Force Pneumatics & Hydraulics,No
Http://opendatacommunities.org/id/metropolitan-district-council/leeds,Leeds City Council,Central & Corporate,Commercial Services Trading Services,Supplies and Services,Operational Materials,205,24-Oct-2014,1410-00469,98.33,R,Air Liquide Uk,No
Http://opendatacommunities.org/id/metropolitan-district-council/leeds,Leeds City Council,Central & Corporate,Commercial Services Trading Services,Supplies and Services,Operational Materials,205,17-Oct-2014,1410-00470,150.02,R,Air Liquide Uk,No
Http://opendatacommunities.org/id/metropolitan-district-council/leeds,Leeds City Council,Central & Corporate,Commercial Services Trading Services,Supplies and Services,Operational Materials,205,30-Oct-2014,1410-00471,10.00,R,Air Liquide Uk,No
Http://opendatacommunities.org/id/metropolitan-district-council/leeds,Leeds City Council,Central & Corporate,Commercial Services Trading Services,Supplies and Services,Operational Materials,205,30-Oct-2014,1410-00472,39.45,R,Air Liquide Uk,No
Http://opendatacommunities.org/id/metropolitan-district-council/leeds,Leeds City Council,Central & Corporate,Commercial Services Trading Services,Supplies and Services,Operational Materials,205,30-Oct-2014,1410-00473,10.00,R,Air Liquide Uk,No
Http://opendatacommunities.org/id/metropolitan-district-council/leeds,Leeds City Council,Central & Corporate,Commercial Services Trading Services,Supplies and Services,Operational Materials,205,30-Oct-2014,1410-00474,140.25,R,Air Liquide Uk,No
Http://opendatacommunities.org/id/metropolitan-district-council/leeds,Leeds City Council,Environment & Housing,Environmental Health,Supplies and Services,Operational Furniture And Equipment,203,17-Oct-2014,1410-00475,25.68,R,Air Liquide Uk,No
Http://opendatacommunities.org/id/metropolitan-district-council/leeds,Leeds City Council,Environment & Housing,Environmental Health,Supplies and Services,Operational Furniture And Equipment,203,17-Oct-2014,1410-00476,25.68,R,Air Liquide Uk,No
Http://opendatacommunities.org/id/metropolitan-district-council/leeds,Leeds City Council,Environment & Housing,Environmental Health,Supplies and Services,Operational Furniture And Equipment,203,02-Oct-2014,1410-00477,59.01,R,Air Liquide Uk,No
Http://opendatacommunities.org/id/metropolitan-district-council/leeds,Leeds City Council,Adult Social Care,Services For Adults Under 65 Mental/Dis,Third Party Payments,Residential,580,22-Oct-2014,1410-00478,6028.20,R,Aire House,No
Http://opendatacommunities.org/id/metropolitan-district-council/leeds,Leeds City Council as Accountable Body,Social Services Pooled Budgets,Jcs For People With Learning Disabilitie,Third Party Payments,Residential,580,22-Oct-2014,1410-00479,6863.76,R,Aire House,No
Http://opendatacommunities.org/id/metropolitan-district-council/leeds,Leeds City Council,Adult Social Care,Services For Older People - 65 And Over,Third Party Payments,Residential Care Dementia,571,22-Oct-2014,1410-00480,30170.43,R,Aire View Residential Home,No
Http://opendatacommunities.org/id/metropolitan-district-council/leeds,Leeds City Council,Adult Social Care,Services For Older People - 65 And Over,Third Party Payments,Residential,580,22-Oct-2014,1410-00481,10384.24,R,Aire View Residential Home,No
Http://opendatacommunities.org/id/metropolitan-district-council/leeds,Leeds City Council,Central & Corporate,Executive Support,Supplies and Services,'Well Being' Large Grants Projects,230,01-Oct-2014,1410-00482,2662.00,R,Aireborough Summer Activities Scheme,No
Http://opendatacommunities.org/id/metropolitan-district-council/leeds,Leeds City Council,Adult Social Care,Social Services Support Services,Third Party Payments,Payments To Voluntary Organisations,561,01-Oct-2014,1410-00483,16560.00,R,Aireborough Voluntary Services,No
Http://opendatacommunities.org/id/metropolitan-district-council/leeds,Leeds City Council,Adult Social Care,Services For Older People - 65 And Over,Third Party Payments,Residential,580,22-Oct-2014,1410-00484,17200.15,R,Airedale (Goldsborough),No
Http://opendatacommunities.org/id/metropolitan-district-council/leeds,Leeds City Council,Central & Corporate,Commercial Services Trading Services,Supplies and Services,Operational Materials,205,31-Oct-2014,1410-00485,73.55,R,Airedale Catering Equipment Ltd,No
Http://opendatacommunities.org/id/metropolitan-district-council/leeds,Leeds City Council,Central & Corporate,Commercial Services Trading Services,Supplies and Services,Operational Materials,205,24-Oct-2014,1410-00486,2163.00,R,Airedale Catering Equipment Ltd,No
Http://opendatacommunities.org/id/metropolitan-district-council/leeds,Leeds City Council,Central & Corporate,Commercial Services Trading Services,Supplies and Services,Operational Materials,205,24-Oct-2014,1410-00487,5740.00,R,Airedale Catering Equipment Ltd,No
Http://opendatacommunities.org/id/metropolitan-district-council/leeds,Leeds City Council,Central & Corporate,Commercial Services Trading Services,Supplies and Services,Operational Materials,205,24-Oct-2014,1410-00488,2710.00,R,Airedale Catering Equipment Ltd,No
Http://opendatacommunities.org/id/metropolitan-district-council/leeds,Leeds City Council,Central & Corporate,Commercial Services Trading Services,Supplies and Services,Operational Materials,205,24-Oct-2014,1410-00489,2710.00,R,Airedale Catering Equipment Ltd,No
Http://opendatacommunities.org/id/metropolitan-district-council/leeds,Leeds City Council,Central & Corporate,Commercial Services Trading Services,Supplies and Services,Operational Materials,205,24-Oct-2014,1410-00490,2571.00,R,Airedale Catering Equipment Ltd,No
Http://opendatacommunities.org/id/metropolitan-district-council/leeds,Leeds City Council,Central & Corporate,Commercial Services Trading Services,Supplies and Services,Operational Materials,205,24-Oct-2014,1410-00491,4715.00,R,Airedale Catering Equipment Ltd,No
Http://opendatacommunities.org/id/metropolitan-district-council/leeds,Leeds City Council,Central & Corporate,Commercial Services Trading Services,Supplies and Services,Operational Materials,205,24-Oct-2014,1410-00492,4692.00,R,Airedale Catering Equipment Ltd,No
Http://opendatacommunities.org/id/metropolitan-district-council/leeds,Leeds City Council,Central & Corporate,Commercial Services Trading Services,Supplies and Services,Operational Materials,205,24-Oct-2014,1410-00493,9492.00,R,Airedale Catering Equipment Ltd,No
Http://opendatacommunities.org/id/metropolitan-district-council/leeds,Leeds City Council,Central & Corporate,Commercial Services Trading Services,Supplies and Services,Operational Materials,205,15-Oct-2014,1410-00494,13209.00,R,Airedale Catering Equipment Ltd,No
Http://opendatacommunities.org/id/metropolitan-district-council/leeds,Leeds City Council,Central & Corporate,Commercial Services Trading Services,Supplies and Services,Other Hired And Contracted Services,265,03-Oct-2014,1410-00495,435.00,R,Airweigh Europe Limited,No
Http://opendatacommunities.org/id/metropolitan-district-council/leeds,Leeds City Council,Central & Corporate,Commercial Services Trading Services,Supplies and Services,Other Hired And Contracted Services,265,22-Oct-2014,1410-00496,382.50,R,Airweigh Europe Limited,No
Http://opendatacommunities.org/id/metropolitan-district-council/leeds,Leeds City Council,Central & Corporate,Commercial Services Trading Services,Supplies and Services,Other Hired And Contracted Services,265,31-Oct-2014,1410-00497,175.00,R,Airweigh Europe Limited,No
Http://opendatacommunities.org/id/metropolitan-district-council/leeds,Leeds City Council as Accountable Body,Social Services Pooled Budgets,Jcs For People With Learning Disabilitie,Third Party Payments,Residential,580,22-Oct-2014,1410-00498,6175.64,R,Aitch Care Homes,No
Http://opendatacommunities.org/id/metropolitan-district-council/leeds,Leeds City Council,Adult Social Care,Services For Older People - 65 And Over,Third Party Payments,Home Care,568,17-Oct-2014,1410-00499,8079.74,R,Aj Social Care,No
Http://opendatacommunities.org/id/metropolitan-district-council/leeds,Leeds City Council,Adult Social Care,Services For Older People Under 65 P/Dis,Third Party Payments,Home Care,568,17-Oct-2014,1410-00500,2688.00,R,Aj Social Care,No
Http://opendatacommunities.org/id/metropolitan-district-council/leeds,Leeds City Council,Adult Social Care,Services For Older People Under 65 P/Dis,Third Party Payments,Home Care,568,17-Oct-2014,1410-00501,1093.50,R,Aj Social Care,No
Http://opendatacommunities.org/id/metropolitan-district-council/leeds,Leeds City Council,Central & Corporate,Commercial Services Trading Services,Supplies and Services,Operational Materials,205,30-Oct-2014,1410-00502,199.00,R,Ajm Fixings & Power Tools Ltd,No
Http://opendatacommunities.org/id/metropolitan-district-council/leeds,Leeds City Council,Central & Corporate,Commercial Services Trading Services,Supplies and Services,Operational Materials,205,30-Oct-2014,1410-00503,135.00,R,Ajm Fixings & Power Tools Ltd,No
Http://opendatacommunities.org/id/metropolitan-district-council/leeds,Leeds City Council,Central & Corporate,Commercial Services Trading Services,Supplies and Services,Operational Materials,205,30-Oct-2014,1410-00504,151.44,R,Ajm Fixings & Power Tools Ltd,No
Http://opendatacommunities.org/id/metropolitan-district-council/leeds,Leeds City Council,Central & Corporate,Commercial Services Trading Services,Supplies and Services,Operational Materials,205,30-Oct-2014,1410-00505,46.00,R,Ajm Fixings & Power Tools Ltd,No
Http://opendatacommunities.org/id/metropolitan-district-council/leeds,Leeds City Council,Central & Corporate,Commercial Services Trading Services,Supplies and Services,Operational Materials,205,30-Oct-2014,1410-00506,32.40,R,Ajm Fixings & Power Tools Ltd,No
Http://opendatacommunities.org/id/metropolitan-district-council/leeds,Leeds City Council,Central & Corporate,Commercial Services Trading Services,Supplies and Services,Operational Materials,205,30-Oct-2014,1410-00507,199.50,R,Ajm Fixings & Power Tools Ltd,No
Http://opendatacommunities.org/id/metropolitan-district-council/leeds,Leeds City Council,Central & Corporate,Commercial Services Trading Services,Supplies and Services,Operational Materials,205,21-Oct-2014,1410-00508,53.49,R,Ajm Fixings & Power Tools Ltd,No
Http://opendatacommunities.org/id/metropolitan-district-council/leeds,Leeds City Council,Central & Corporate,Commercial Services Trading Services,Supplies and Services,Operational Materials,205,16-Oct-2014,1410-00509,344.85,R,Ajm Fixings & Power Tools Ltd,No
Http://opendatacommunities.org/id/metropolitan-district-council/leeds,Leeds City Council,Central & Corporate,Commercial Services Trading Services,Supplies and Services,Operational Materials,205,16-Oct-2014,1410-00510,139.00,R,Ajm Fixings & Power Tools Ltd,No
Http://opendatacommunities.org/id/metropolitan-district-council/leeds,Leeds City Council,Central & Corporate,Commercial Services Trading Services,Supplies and Services,Operational Materials,205,16-Oct-2014,1410-00511,101.12,R,Ajm Fixings & Power Tools Ltd,No
Http://opendatacommunities.org/id/metropolitan-district-council/leeds,Leeds City Council,Central & Corporate,Commercial Services Trading Services,Supplies and Services,Operational Materials,205,10-Oct-2014,1410-00512,139.00,R,Ajm Fixings & Power Tools Ltd,No
Http://opendatacommunities.org/id/metropolitan-district-council/leeds,Leeds City Council,Central & Corporate,Commercial Services Trading Services,Supplies and Services,Operational Materials,205,10-Oct-2014,1410-00513,833.00,R,Ajm Fixings & Power Tools Ltd,No
Http://opendatacommunities.org/id/metropolitan-district-council/leeds,Leeds City Council,Central & Corporate,Commercial Services Trading Services,Supplies and Services,Operational Materials,205,07-Oct-2014,1410-00514,199.00,R,Ajm Fixings & Power Tools Ltd,No
Http://opendatacommunities.org/id/metropolitan-district-council/leeds,Leeds City Council,Environment & Housing,Hra,Supplies and Services,Operational Materials,205,22-Oct-2014,1410-00515,62.70,R,Ajm Fixings & Power Tools Ltd,No
Http://opendatacommunities.org/id/metropolitan-district-council/leeds,Leeds City Council,Environment & Housing,Hra,Supplies and Services,Operational Materials,205,22-Oct-2014,1410-00516,289.00,R,Ajm Fixings & Power Tools Ltd,No
Http://opendatacommunities.org/id/metropolitan-district-council/leeds,Leeds City Council,Environment & Housing,Hra,Supplies and Services,Operational Materials,205,03-Oct-2014,1410-00517,855.00,R,Ajm Fixings & Power Tools Ltd,No
Http://opendatacommunities.org/id/metropolitan-district-council/leeds,Leeds City Council,Environment & Housing,Hra,Supplies and Services,Operational Materials,205,22-Oct-2014,1410-00518,122.00,R,Ajm Fixings & Power Tools Ltd,No
Http://opendatacommunities.org/id/metropolitan-district-council/leeds,Leeds City Council,Adult Social Care,Services For Older People - 65 And Over,Third Party Payments,Nursing Home,570,22-Oct-2014,1410-00519,1288.76,R,Akari Care Ltd,No
Http://opendatacommunities.org/id/metropolitan-district-council/leeds,Leeds City Council as Accountable Body,Social Services Pooled Budgets,Jcs For People With Learning Disabilitie,Transfer Payments,Personal Budgets,627,22-Oct-2014,1410-00520,1470.96,R,REDACTED PERSONAL DATA,No
Http://opendatacommunities.org/id/metropolitan-district-council/leeds,Leeds City Council,Central & Corporate,Commercial Services Trading Services,Supplies and Services,Operational Materials,205,22-Oct-2014,1410-00521,45.52,R,Akw Medicare Ltd,No
Http://opendatacommunities.org/id/metropolitan-district-council/leeds,Leeds City Council,Central & Corporate,Commercial Services Trading Services,Supplies and Services,Operational Materials,205,08-Oct-2014,1410-00522,52.03,R,Akw Medicare Ltd,No
Http://opendatacommunities.org/id/metropolitan-district-council/leeds,Leeds City Council,Central & Corporate,Commercial Services Trading Services,Supplies and Services,Operational Materials,205,01-Oct-2014,1410-00523,45.52,R,Akw Medicare Ltd,No
Http://opendatacommunities.org/id/metropolitan-district-council/leeds,Leeds City Council,Adult Social Care,Services For Older People - 65 And Over,Third Party Payments,Payments To Voluntary Organisations,561,01-Oct-2014,1410-00524,3000.00,R,Al Khidmat Centre,No
Http://opendatacommunities.org/id/metropolitan-district-council/leeds,Leeds City Council,Childrens Services,Safeguarding Targeted & Specialist  ,Transfer Payments,Leaving Care Grants,635,15-Sep-2014,1410-00525,74.50,R,Al Murad Diy Ltd,Yes
Http://opendatacommunities.org/id/metropolitan-district-council/leeds,Leeds City Council,Childrens Services,Safeguarding Targeted & Specialist  ,Transfer Payments,Leaving Care Grants,635,01-Sep-2014,1410-00526,166.67,R,Alams Beautiful Blind,Yes
Http://opendatacommunities.org/id/metropolitan-district-council/leeds,Leeds City Council,Adult Social Care,Services For Older People - 65 And Over,Transfer Payments,Personalised Budgets,627,22-Oct-2014,1410-00527,1836.30,R,REDACTED PERSONAL DATA,No
Http://opendatacommunities.org/id/metropolitan-district-council/leeds,Leeds City Council,Central & Corporate,Support And Facilities General Fund  ,Premises,Grounds Maintenance Work,111,04-Sep-2014,1410-00528,70.00,R,Alan Brown Flowers,Yes
Http://opendatacommunities.org/id/metropolitan-district-council/leeds,Leeds City Council,Childrens Services,Safeguarding Targeted & Specialist  ,Supplies and Services,Miscellaneous Expenditure,208,29-Sep-2014,1410-00529,60.00,R,Alan Brown Flowers,Yes
Http://opendatacommunities.org/id/metropolitan-district-council/leeds,Leeds City Council,Childrens Services,Safeguarding Targeted & Specialist  ,Third Party Payments,Placement Support,550,23-Sep-2014,1410-00530,100.00,R,Alan Brown Flowers,Yes
Http://opendatacommunities.org/id/metropolitan-district-council/leeds,Leeds City Council,Childrens Services,Safeguarding Targeted & Specialist  ,Third Party Payments,Placement Support,550,23-Sep-2014,1410-00531,25.00,R,Alan Brown Flowers,Yes
Http://opendatacommunities.org/id/metropolitan-district-council/leeds,Leeds City Council,City Development,Planning & Sustainable Development,Support Services,Legal Disbursements,411,13-Oct-2014,1410-00532,750.00,R,Alan Evans,No
Http://opendatacommunities.org/id/metropolitan-district-council/leeds,Leeds City Council,City Development,Libraries  Arts & Heritage,Supplies and Services,Other Hired And Contracted Services,265,17-Oct-2014,1410-00533,100.00,R,Alan Horsey,No
Http://opendatacommunities.org/id/metropolitan-district-council/leeds,Leeds City Council,Adult Social Care,Services For Older People Under 65 P/Dis,Transfer Payments,Personalised Budgets,627,22-Oct-2014,1410-00534,2050.00,R,REDACTED PERSONAL DATA,No
Http://opendatacommunities.org/id/metropolitan-district-council/leeds,Leeds City Council,Environment & Housing,Hra,Transport,Miscellaneous Transport Related Costs,324,16-Oct-2014,1410-00535,57.90,R,REDACTED PERSONAL DATA,No
Http://opendatacommunities.org/id/metropolitan-district-council/leeds,Leeds City Council,Adult Social Care,Assessment And Care Management,Transfer Payments,Direct Payments,626,22-Oct-2014,1410-00536,348.00,R,REDACTED PERSONAL DATA,No
Http://opendatacommunities.org/id/metropolitan-district-council/leeds,Leeds City Council,Adult Social Care,Assessment And Care Management,Transfer Payments,Personalised Budgets,627,15-Oct-2014,1410-00537,435.00,R,REDACTED PERSONAL DATA,No
Http://opendatacommunities.org/id/metropolitan-district-council/leeds,Leeds City Council,Adult Social Care,Services For Older People - 65 And Over,Transfer Payments,Personalised Budgets,627,22-Oct-2014,1410-00538,263.60,R,REDACTED PERSONAL DATA,No
Http://opendatacommunities.org/id/metropolitan-district-council/leeds,Leeds City Council,City Development,Economic Development,Supplies and Services,Clothing & Uniforms,241,31-Oct-2014,1410-00539,54.95,R,Albert Haywood & Sons Ltd,No
Http://opendatacommunities.org/id/metropolitan-district-council/leeds,Leeds City Council,Environment & Housing,Environmental Action (East North East),Supplies and Services,Clothing & Uniforms,241,01-Oct-2014,1410-00540,73.30,R,Albert Haywood & Sons Ltd,No
Http://opendatacommunities.org/id/metropolitan-district-council/leeds,Leeds City Council,Central & Corporate,Commercial Services Trading Services,Transport,Vehicle Spares,345,22-Oct-2014,1410-00541,66.50,R,Albert Jagger Limited,No
Http://opendatacommunities.org/id/metropolitan-district-council/leeds,Leeds City Council,Environment & Housing,Parks & Countryside,Premises,Roads Paths Seats & Shelters,113,14-Oct-2014,1410-00542,343.00,R,Albion Stone Plc,No
Http://opendatacommunities.org/id/metropolitan-district-council/leeds,Leeds City Council,City Development,Employment & Skills,Supplies and Services,Other Hired And Contracted Services,265,22-Oct-2014,1410-00543,495.00,R,Alcium Software Ltd,No
Http://opendatacommunities.org/id/metropolitan-district-council/leeds,Leeds City Council,Environment & Housing,Streetscene Environmental Services,Supplies and Services,Other Hired And Contracted Services,265,31-Oct-2014,1410-00544,364.00,R,Alcontrol Uk Ltd,No
Http://opendatacommunities.org/id/metropolitan-district-council/leeds,Leeds City Council,Environment & Housing,Streetscene Environmental Services,Income,Penalties  Fines & Car Parking Charges,934,09-Oct-2014,1410-00545,30.00,R,Ald Automotive,No
Http://opendatacommunities.org/id/metropolitan-district-council/leeds,Leeds City Council,City Development,Libraries  Arts & Heritage,Supplies and Services,Operational Materials,205,17-Oct-2014,1410-00546,258.66,R,Alec Tiranti Ltd,No
Http://opendatacommunities.org/id/metropolitan-district-council/leeds,Leeds City Council,Childrens Services,Safeguarding Targeted & Specialist,Transfer Payments,Leaving Care Grants,635,23-Oct-2014,1410-00547,220.00,R,REDACTED PERSONAL DATA,No
Http://opendatacommunities.org/id/metropolitan-district-council/leeds,Leeds City Council,Central & Corporate,Customer Services,Supplies and Services,Other Hired And Contracted Services,265,07-Oct-2014,1410-00548,65.50,R,Alena Galiyeva,No
Http://opendatacommunities.org/id/metropolitan-district-council/leeds,Leeds City Council,Childrens Services,Safeguarding Targeted & Specialist,Support Services,Legal Disbursements,411,17-Oct-2014,1410-00549,485.00,R,Alere Toxicology Plc,No
Http://opendatacommunities.org/id/metropolitan-district-council/leeds,Leeds City Council,Childrens Services,Safeguarding Targeted & Specialist,Support Services,Legal Disbursements,411,24-Oct-2014,1410-00550,265.00,R,Alere Toxicology Plc,No
Http://opendatacommunities.org/id/metropolitan-district-council/leeds,Leeds City Council,City Development,Recreation,Supplies and Services,Operational Furniture And Equipment,203,14-Oct-2014,1410-00551,90.00,R,Alex Baird & Sons Ltd,No
Http://opendatacommunities.org/id/metropolitan-district-council/leeds,Leeds City Council,Adult Social Care,Services For Older People Under 65 P/Dis,Transfer Payments,Personalised Budgets,627,22-Oct-2014,1410-00552,240.48,R,REDACTED PERSONAL DATA,No
Http://opendatacommunities.org/id/metropolitan-district-council/leeds,Leeds City Council as Accountable Body,Social Services Pooled Budgets,Jcs For People With Learning Disabilitie,Transfer Payments,Asylum Seekers,626,22-Oct-2014,1410-00553,1383.40,R,REDACTED PERSONAL DATA,No
Http://opendatacommunities.org/id/metropolitan-district-council/leeds,Leeds City Council,Adult Social Care,Services For Older People Under 65 P/Dis,Transfer Payments,Personalised Budgets,627,22-Oct-2014,1410-00554,1151.44,R,REDACTED PERSONAL DATA,No
Http://opendatacommunities.org/id/metropolitan-district-council/leeds,Leeds City Council,Adult Social Care,Services For Older People Under 65 P/Dis,Transfer Payments,Direct Payments,626,22-Oct-2014,1410-00555,777.64,R,REDACTED PERSONAL DATA,No
Http://opendatacommunities.org/id/metropolitan-district-council/leeds,Leeds City Council,Childrens Services,Safeguarding Targeted & Specialist,Support Services,Legal Disbursements,411,03-Oct-2014,1410-00556,3515.67,R,Alex Taylor,No
Http://opendatacommunities.org/id/metropolitan-district-council/leeds,Leeds City Council,Childrens Services,Safeguarding Targeted & Specialist,Support Services,Legal Disbursements,411,15-Oct-2014,1410-00557,383.57,R,Alex Taylor,No
Http://opendatacommunities.org/id/metropolitan-district-council/leeds,Leeds City Council,City Development,Recreation,Supplies and Services,Well Being Small Grants Projects,228,30-Oct-2014,1410-00558,53.10,R,REDACTED PERSONAL DATA,No
Http://opendatacommunities.org/id/metropolitan-district-council/leeds,Leeds City Council,Adult Social Care,Services For Older People Under 65 P/Dis,Transfer Payments,Personalised Budgets,627,22-Oct-2014,1410-00559,635.92,R,REDACTED PERSONAL DATA,No
Http://opendatacommunities.org/id/metropolitan-district-council/leeds,Leeds City Council,Adult Social Care,Services For Adults Under 65 Mental/Dis,Transfer Payments,Personalised Budgets,627,22-Oct-2014,1410-00560,640.00,R,REDACTED PERSONAL DATA,No
Http://opendatacommunities.org/id/metropolitan-district-council/leeds,Leeds City Council,City Development,Libraries  Arts & Heritage  ,Supplies and Services,Conference Meetings,253,10-Sep-2014,1410-00561,72.50,R,Alexander Pope,Yes
Http://opendatacommunities.org/id/metropolitan-district-council/leeds,Leeds City Council,Adult Social Care,Services For Adults Under 65 Mental/Dis,Third Party Payments,Residential,580,22-Oct-2014,1410-00562,1856.00,R,Alexander Residential Home,No
Http://opendatacommunities.org/id/metropolitan-district-council/leeds,Leeds City Council,Adult Social Care,Services For Older People - 65 And Over,Third Party Payments,Residential Care Dementia,571,22-Oct-2014,1410-00563,14687.12,R,Alexander Residential Home,No
Http://opendatacommunities.org/id/metropolitan-district-council/leeds,Leeds City Council,Adult Social Care,Services For Older People - 65 And Over,Third Party Payments,Residential,580,22-Oct-2014,1410-00564,10661.86,R,Alexander Residential Home,No
Http://opendatacommunities.org/id/metropolitan-district-council/leeds,Leeds City Council as Accountable Body,Social Services Pooled Budgets,Jcs For People With Learning Disabilitie,Third Party Payments,Residential,580,22-Oct-2014,1410-00565,1288.20,R,Alexander Residential Home,No
Http://opendatacommunities.org/id/metropolitan-district-council/leeds,Leeds City Council as Accountable Body,Social Services Pooled Budgets,Jcs For People With Learning Disabilitie,Transfer Payments,Personal Budgets,627,22-Oct-2014,1410-00566,583.32,R,REDACTED PERSONAL DATA,No
Http://opendatacommunities.org/id/metropolitan-district-council/leeds,Leeds City Council as Accountable Body,Social Services Pooled Budgets,Jcs For People With Learning Disabilitie,Transfer Payments,Asylum Seekers,626,22-Oct-2014,1410-00567,266.72,R,REDACTED PERSONAL DATA,No
Http://opendatacommunities.org/id/metropolitan-district-council/leeds,Leeds City Council,Adult Social Care,Services For Older People - 65 And Over,Third Party Payments,Residential Care Dementia,571,22-Oct-2014,1410-00568,1273.84,R,Alexandra Court,No
Http://opendatacommunities.org/id/metropolitan-district-council/leeds,Leeds City Council,Adult Social Care,Services For Older People - 65 And Over,Third Party Payments,Residential,580,22-Oct-2014,1410-00569,9721.04,R,Alexandra Court,No
Http://opendatacommunities.org/id/metropolitan-district-council/leeds,Leeds City Council,Central & Corporate,Customer Services,Supplies and Services,Other Hired And Contracted Services,265,07-Oct-2014,1410-00570,973.00,R,Alexandra Hirst,No
Http://opendatacommunities.org/id/metropolitan-district-council/leeds,Leeds City Council,Childrens Services,Safeguarding Targeted & Specialist,Supplies and Services,General Amenity For Clients/Residents,285,28-Oct-2014,1410-00571,32.98,R,REDACTED PERSONAL DATA,No
Http://opendatacommunities.org/id/metropolitan-district-council/leeds,Leeds City Council,Childrens Services,Safeguarding Targeted & Specialist,Transport,Public Transport Expenses,310,28-Oct-2014,1410-00572,2.15,R,REDACTED PERSONAL DATA,No
Http://opendatacommunities.org/id/metropolitan-district-council/leeds,Leeds City Council,Environment & Housing,Health & Environmental Action,Supplies and Services,Other Hired And Contracted Services,265,15-Oct-2014,1410-00573,152.75,R,Alexia Blohm-Pain,No
Http://opendatacommunities.org/id/metropolitan-district-council/leeds,Leeds City Council,Central & Corporate,Commercial Services Trading Services  ,Supplies and Services,Other Hired And Contracted Services,265,04-Sep-2014,1410-00574,118.00,R,Alfa Tail Lifts Limite,Yes
Http://opendatacommunities.org/id/metropolitan-district-council/leeds,Leeds City Council,Central & Corporate,Commercial Services Trading Services  ,Supplies and Services,Other Hired And Contracted Services,265,04-Sep-2014,1410-00575,126.00,R,Alfa Tail Lifts Limite,Yes
Http://opendatacommunities.org/id/metropolitan-district-council/leeds,Leeds City Council,Central & Corporate,Commercial Services Trading Services  ,Supplies and Services,Other Hired And Contracted Services,265,08-Sep-2014,1410-00576,56.51,R,Alfa Tail Lifts Limite,Yes
Http://opendatacommunities.org/id/metropolitan-district-council/leeds,Leeds City Council,Childrens Services,Safeguarding Targeted & Specialist,Third Party Payments,Placement Support,550,03-Oct-2014,1410-00577,113.70,R,REDACTED PERSONAL DATA,No
Http://opendatacommunities.org/id/metropolitan-district-council/leeds,Leeds City Council,Childrens Services,Safeguarding Targeted & Specialist,Third Party Payments,Placement Support,550,31-Oct-2014,1410-00578,163.70,R,REDACTED PERSONAL DATA,No
Http://opendatacommunities.org/id/metropolitan-district-council/leeds,Leeds City Council,Childrens Services,Safeguarding Targeted & Specialist,Third Party Payments,Placement Support,550,24-Oct-2014,1410-00579,163.70,R,REDACTED PERSONAL DATA,No
Http://opendatacommunities.org/id/metropolitan-district-council/leeds,Leeds City Council,Childrens Services,Safeguarding Targeted & Specialist,Third Party Payments,Placement Support,550,17-Oct-2014,1410-00580,163.70,R,REDACTED PERSONAL DATA,No
Http://opendatacommunities.org/id/metropolitan-district-council/leeds,Leeds City Council,Childrens Services,Safeguarding Targeted & Specialist,Third Party Payments,Placement Support,550,10-Oct-2014,1410-00581,163.70,R,REDACTED PERSONAL DATA,No
Http://opendatacommunities.org/id/metropolitan-district-council/leeds,Leeds City Council,Central & Corporate,Commercial Services Trading Services,Premises,Maintenance Of Buildings,101,22-Oct-2014,1410-00582,710.00,R,Alfred Bagnall & Sons (Leeds) Ltd,No
Http://opendatacommunities.org/id/metropolitan-district-council/leeds,Leeds City Council,Central & Corporate,Commercial Services Trading Services,Premises,Maintenance Of Buildings,101,15-Oct-2014,1410-00583,149.50,R,Alfred Bagnall & Sons (Leeds) Ltd,No
Http://opendatacommunities.org/id/metropolitan-district-council/leeds,Leeds City Council,Central & Corporate,Commercial Services Trading Services,Premises,Maintenance Of Buildings,101,15-Oct-2014,1410-00584,275.00,R,Alfred Bagnall & Sons (Leeds) Ltd,No
Http://opendatacommunities.org/id/metropolitan-district-council/leeds,Leeds City Council,Environment & Housing,Community Safety,Supplies and Services,Bought In Professional Services,277,30-Oct-2014,1410-00585,1650.00,R,Alfred Bagnall & Sons (Leeds) Ltd,No
Http://opendatacommunities.org/id/metropolitan-district-council/leeds,Leeds City Council,Adult Social Care,Services For Older People Under 65 P/Dis,Transfer Payments,Personalised Budgets,627,22-Oct-2014,1410-00586,525.36,R,REDACTED PERSONAL DATA,No
Http://opendatacommunities.org/id/metropolitan-district-council/leeds,Leeds City Council as Accountable Body,Social Services Pooled Budgets,Jcs For People With Learning Disabilitie,Transfer Payments,Personal Budgets,627,22-Oct-2014,1410-00587,1026.96,R,REDACTED PERSONAL DATA,No
Http://opendatacommunities.org/id/metropolitan-district-council/leeds,Leeds City Council,City Development,Libraries  Arts & Heritage,Supplies and Services,Operational Materials,205,10-Oct-2014,1410-00588,20.00,R,REDACTED PERSONAL DATA,No
Http://opendatacommunities.org/id/metropolitan-district-council/leeds,Leeds City Council,City Development,Libraries  Arts & Heritage,Supplies and Services,Other Hired And Contracted Services,265,10-Oct-2014,1410-00589,475.00,R,REDACTED PERSONAL DATA,No
Http://opendatacommunities.org/id/metropolitan-district-council/leeds,Leeds City Council,Adult Social Care,Services For Older People Under 65 P/Dis,Transfer Payments,Personalised Budgets,627,22-Oct-2014,1410-00590,192.00,R,REDACTED PERSONAL DATA,No
Http://opendatacommunities.org/id/metropolitan-district-council/leeds,Leeds City Council,City Development,Libraries  Arts & Heritage,Supplies and Services,Bought In Professional Services,277,02-Oct-2014,1410-00591,1812.43,R,Alison Glew,No
Http://opendatacommunities.org/id/metropolitan-district-council/leeds,Leeds City Council,City Development,Libraries  Arts & Heritage,Supplies and Services,Bought In Professional Services,277,30-Oct-2014,1410-00592,1755.50,R,Alison Glew,No
Http://opendatacommunities.org/id/metropolitan-district-council/leeds,Leeds City Council,Childrens Services,Safeguarding Targeted & Specialist,Supplies and Services,Postages,212,30-Oct-2014,1410-00593,1.63,R,REDACTED PERSONAL DATA,No
Http://opendatacommunities.org/id/metropolitan-district-council/leeds,Leeds City Council,Childrens Services,Safeguarding Targeted & Specialist,Transport,Car & Motorcycle Allowances,311,30-Oct-2014,1410-00594,21.15,R,REDACTED PERSONAL DATA,No
Http://opendatacommunities.org/id/metropolitan-district-council/leeds,Leeds City Council,Environment & Housing,Streetscene Environmental Services,Income,Penalties  Fines & Car Parking Charges,934,02-Oct-2014,1410-00595,2.50,R,REDACTED PERSONAL DATA,No
Http://opendatacommunities.org/id/metropolitan-district-council/leeds,Leeds City Council,Childrens Services,Safeguarding Targeted & Specialist,Third Party Payments,Contact,548,27-Oct-2014,1410-00596,105.00,R,REDACTED PERSONAL DATA,No
Http://opendatacommunities.org/id/metropolitan-district-council/leeds,Leeds City Council,Childrens Services,Safeguarding Targeted & Specialist,Third Party Payments,Contact,548,31-Oct-2014,1410-00597,28.00,R,REDACTED PERSONAL DATA,No
Http://opendatacommunities.org/id/metropolitan-district-council/leeds,Leeds City Council,Adult Social Care,Services For Older People Under 65 P/Dis,Transfer Payments,Personalised Budgets,627,22-Oct-2014,1410-00598,1394.00,R,REDACTED PERSONAL DATA,No
Http://opendatacommunities.org/id/metropolitan-district-council/leeds,Leeds City Council,Environment & Housing,Streetscene Environmental Services,Income,Penalties  Fines & Car Parking Charges,934,30-Oct-2014,1410-00599,6.34,R,REDACTED PERSONAL DATA,No
Http://opendatacommunities.org/id/metropolitan-district-council/leeds,Leeds City Council,City Development,Economic Development,Supplies and Services,Publication And Promotion,267,27-Oct-2014,1410-00600,2000.00,R,Alive And Kicking Theatre Company Ltd,No
Http://opendatacommunities.org/id/metropolitan-district-council/leeds,Leeds City Council,City Development,Economic Development,Supplies and Services,Publication And Promotion,267,27-Oct-2014,1410-00601,1000.00,R,Alive And Kicking Theatre Company Ltd,No
Http://opendatacommunities.org/id/metropolitan-district-council/leeds,Leeds City Council,City Development,Economic Development,Supplies and Services,Publication And Promotion,267,20-Oct-2014,1410-00602,1000.00,R,Alive And Kicking Theatre Company Ltd,No
Http://opendatacommunities.org/id/metropolitan-district-council/leeds,Leeds City Council,City Development,Economic Development,Supplies and Services,Publication And Promotion,267,20-Oct-2014,1410-00603,5509.00,R,Alive And Kicking Theatre Company Ltd,No
Http://opendatacommunities.org/id/metropolitan-district-council/leeds,Leeds City Council,Childrens Services,Learning Skills & Universal,Third Party Payments,Services Rendered By Voluntary Sector,505,02-Oct-2014,1410-00604,2160.00,R,All Stars Childcare,No
Http://opendatacommunities.org/id/metropolitan-district-council/leeds,Leeds City Council,Childrens Services,Learning Skills & Universal,Third Party Payments,Services Rendered By Other Organisations,511,29-Oct-2014,1410-00605,1338.60,R,All Stars Childcare,No
Http://opendatacommunities.org/id/metropolitan-district-council/leeds,Leeds City Council as Accountable Body,Social Services Pooled Budgets,Jcs For People With Learning Disabilitie,Third Party Payments,Sheltered Accommodation,569,22-Oct-2014,1410-00606,16596.04,R,Allerton Avenue,No
Http://opendatacommunities.org/id/metropolitan-district-council/leeds,Leeds City Council,Strategic Accounts,Miscellaneous,Supplies and Services,Non-Recurring Grants,227,23-Oct-2014,1410-00607,300.00,R,Allerton Bywater Cricket Club,No
Http://opendatacommunities.org/id/metropolitan-district-council/leeds,Leeds City Council,Central & Corporate,Benefits,Supplies and Services,Bank Charges,263,06-Oct-2014,1410-00608,100.34,R,Alliance & Leicester Commercial Bank,No
Http://opendatacommunities.org/id/metropolitan-district-council/leeds,Leeds City Council,Central & Corporate,Benefits,Supplies and Services,Bank Charges,263,06-Oct-2014,1410-00609,5.39,R,Alliance & Leicester Commercial Bank,No
Http://opendatacommunities.org/id/metropolitan-district-council/leeds,Leeds City Council,Central & Corporate,Benefits,Supplies and Services,Bank Charges,263,06-Oct-2014,1410-00610,443.45,R,Alliance & Leicester Commercial Bank,No
Http://opendatacommunities.org/id/metropolitan-district-council/leeds,Leeds City Council,Central & Corporate,Benefits,Supplies and Services,Bank Charges,263,06-Oct-2014,1410-00611,1074.25,R,Alliance & Leicester Commercial Bank,No
Http://opendatacommunities.org/id/metropolitan-district-council/leeds,Leeds City Council,Central & Corporate,Benefits,Supplies and Services,Bank Charges,263,31-Oct-2014,1410-00612,-133.67,R,Alliance & Leicester Commercial Bank,No
Http://opendatacommunities.org/id/metropolitan-district-council/leeds,Leeds City Council,Central & Corporate,Benefits,Supplies and Services,Bank Charges,263,01-Oct-2014,1410-00613,-122.64,R,Alliance & Leicester Commercial Bank,No
Http://opendatacommunities.org/id/metropolitan-district-council/leeds,Leeds City Council,Environment & Housing,Hra,Supplies and Services,Other Hired And Contracted Services,265,06-Oct-2014,1410-00614,326.15,R,Alliance & Leicester Commercial Bank,No
Http://opendatacommunities.org/id/metropolitan-district-council/leeds,Leeds City Council,Adult Social Care,Services For Older People - 65 And Over  ,Supplies and Services,Food & Drink,231,04-Sep-2014,1410-00615,54.87,R,Alliance Disposables,Yes
Http://opendatacommunities.org/id/metropolitan-district-council/leeds,Leeds City Council,City Development,Highways,Capital,Other Costs,7,10-Oct-2014,1410-00616,1801.30,C,Allied Exploration & Geotechnics Ltd,No
Http://opendatacommunities.org/id/metropolitan-district-council/leeds,Leeds City Council,Adult Social Care,Other Generic Services,Third Party Payments,Home Care,568,23-Oct-2014,1410-00617,17645.62,R,Allied Healthcare Group Ltd,No
Http://opendatacommunities.org/id/metropolitan-district-council/leeds,Leeds City Council,Adult Social Care,Other Generic Services,Third Party Payments,Home Care,568,23-Oct-2014,1410-00618,5900.32,R,Allied Healthcare Group Ltd,No
Http://opendatacommunities.org/id/metropolitan-district-council/leeds,Leeds City Council,Adult Social Care,Services For Older People - 65 And Over,Third Party Payments,Home Care,568,15-Oct-2014,1410-00619,342.61,R,Allied Healthcare Group Ltd,No
Http://opendatacommunities.org/id/metropolitan-district-council/leeds,Leeds City Council,Adult Social Care,Services For Older People - 65 And Over,Third Party Payments,Home Care,568,15-Oct-2014,1410-00620,75.66,R,Allied Healthcare Group Ltd,No
Http://opendatacommunities.org/id/metropolitan-district-council/leeds,Leeds City Council,Adult Social Care,Services For Older People - 65 And Over,Third Party Payments,Home Care,568,15-Oct-2014,1410-00621,459.26,R,Allied Healthcare Group Ltd,No
Http://opendatacommunities.org/id/metropolitan-district-council/leeds,Leeds City Council,Adult Social Care,Services For Older People - 65 And Over,Third Party Payments,Home Care,568,15-Oct-2014,1410-00622,5426.33,R,Allied Healthcare Group Ltd,No
Http://opendatacommunities.org/id/metropolitan-district-council/leeds,Leeds City Council,Adult Social Care,Services For Older People - 65 And Over,Third Party Payments,Home Care,568,15-Oct-2014,1410-00623,74.14,R,Allied Healthcare Group Ltd,No
Http://opendatacommunities.org/id/metropolitan-district-council/leeds,Leeds City Council,Adult Social Care,Services For Older People - 65 And Over,Third Party Payments,Home Care,568,16-Oct-2014,1410-00624,4830.30,R,Allied Healthcare Group Ltd,No
Http://opendatacommunities.org/id/metropolitan-district-council/leeds,Leeds City Council,Adult Social Care,Services For Older People - 65 And Over,Third Party Payments,Home Care,568,16-Oct-2014,1410-00625,1624.60,R,Allied Healthcare Group Ltd,No
Http://opendatacommunities.org/id/metropolitan-district-council/leeds,Leeds City Council,Adult Social Care,Services For Older People - 65 And Over,Third Party Payments,Home Care,568,16-Oct-2014,1410-00626,1501.64,R,Allied Healthcare Group Ltd,No
Http://opendatacommunities.org/id/metropolitan-district-council/leeds,Leeds City Council,Adult Social Care,Services For Older People - 65 And Over,Third Party Payments,Home Care,568,16-Oct-2014,1410-00627,4041.96,R,Allied Healthcare Group Ltd,No
Http://opendatacommunities.org/id/metropolitan-district-council/leeds,Leeds City Council,Adult Social Care,Services For Older People - 65 And Over,Third Party Payments,Home Care,568,16-Oct-2014,1410-00628,13717.55,R,Allied Healthcare Group Ltd,No
Http://opendatacommunities.org/id/metropolitan-district-council/leeds,Leeds City Council,Adult Social Care,Services For Older People - 65 And Over,Third Party Payments,Home Care,568,16-Oct-2014,1410-00629,15823.45,R,Allied Healthcare Group Ltd,No
Http://opendatacommunities.org/id/metropolitan-district-council/leeds,Leeds City Council,Adult Social Care,Services For Older People - 65 And Over,Third Party Payments,Home Care,568,16-Oct-2014,1410-00630,6921.99,R,Allied Healthcare Group Ltd,No
Http://opendatacommunities.org/id/metropolitan-district-council/leeds,Leeds City Council,Adult Social Care,Services For Older People - 65 And Over,Third Party Payments,Home Care,568,06-Oct-2014,1410-00631,-6.31,R,Allied Healthcare Group Ltd,No
Http://opendatacommunities.org/id/metropolitan-district-council/leeds,Leeds City Council,Adult Social Care,Services For Older People - 65 And Over,Third Party Payments,Home Care,568,21-Oct-2014,1410-00632,3.06,R,Allied Healthcare Group Ltd,No
Http://opendatacommunities.org/id/metropolitan-district-council/leeds,Leeds City Council,Adult Social Care,Services For Older People - 65 And Over,Third Party Payments,Home Care,568,21-Oct-2014,1410-00633,3.06,R,Allied Healthcare Group Ltd,No
Http://opendatacommunities.org/id/metropolitan-district-council/leeds,Leeds City Council,Adult Social Care,Services For Older People - 65 And Over,Third Party Payments,Home Care,568,21-Oct-2014,1410-00634,164.46,R,Allied Healthcare Group Ltd,No
Http://opendatacommunities.org/id/metropolitan-district-council/leeds,Leeds City Council,Adult Social Care,Services For Older People - 65 And Over,Third Party Payments,Home Care,568,21-Oct-2014,1410-00635,385.22,R,Allied Healthcare Group Ltd,No
Http://opendatacommunities.org/id/metropolitan-district-council/leeds,Leeds City Council,Adult Social Care,Services For Older People - 65 And Over,Third Party Payments,Home Care,568,21-Oct-2014,1410-00636,9.19,R,Allied Healthcare Group Ltd,No
Http://opendatacommunities.org/id/metropolitan-district-council/leeds,Leeds City Council,Adult Social Care,Services For Older People - 65 And Over,Third Party Payments,Home Care,568,21-Oct-2014,1410-00637,6.13,R,Allied Healthcare Group Ltd,No
Http://opendatacommunities.org/id/metropolitan-district-council/leeds,Leeds City Council,Adult Social Care,Services For Older People - 65 And Over,Third Party Payments,Home Care,568,09-Oct-2014,1410-00638,5.10,R,Allied Healthcare Group Ltd,No
Http://opendatacommunities.org/id/metropolitan-district-council/leeds,Leeds City Council,Adult Social Care,Services For Older People - 65 And Over,Third Party Payments,Home Care,568,23-Oct-2014,1410-00639,625.57,R,Allied Healthcare Group Ltd,No
Http://opendatacommunities.org/id/metropolitan-district-council/leeds,Leeds City Council,Adult Social Care,Services For Older People - 65 And Over,Third Party Payments,Home Care,568,23-Oct-2014,1410-00640,386.78,R,Allied Healthcare Group Ltd,No
Http://opendatacommunities.org/id/metropolitan-district-council/leeds,Leeds City Council,Adult Social Care,Services For Older People - 65 And Over,Third Party Payments,Home Care,568,23-Oct-2014,1410-00641,145.35,R,Allied Healthcare Group Ltd,No
Http://opendatacommunities.org/id/metropolitan-district-council/leeds,Leeds City Council,Adult Social Care,Services For Older People - 65 And Over,Third Party Payments,Home Care,568,23-Oct-2014,1410-00642,346.80,R,Allied Healthcare Group Ltd,No
Http://opendatacommunities.org/id/metropolitan-district-council/leeds,Leeds City Council,Adult Social Care,Services For Older People - 65 And Over,Third Party Payments,Home Care,568,23-Oct-2014,1410-00643,183.75,R,Allied Healthcare Group Ltd,No
Http://opendatacommunities.org/id/metropolitan-district-council/leeds,Leeds City Council,Adult Social Care,Services For Older People Under 65 P/Dis,Third Party Payments,Home Care,568,15-Oct-2014,1410-00644,836.55,R,Allied Healthcare Group Ltd,No
Http://opendatacommunities.org/id/metropolitan-district-council/leeds,Leeds City Council,Adult Social Care,Services For Older People Under 65 P/Dis,Third Party Payments,Home Care,568,15-Oct-2014,1410-00645,1140.10,R,Allied Healthcare Group Ltd,No
Http://opendatacommunities.org/id/metropolitan-district-council/leeds,Leeds City Council,Adult Social Care,Services For Older People Under 65 P/Dis,Third Party Payments,Home Care,568,15-Oct-2014,1410-00646,365.69,R,Allied Healthcare Group Ltd,No
Http://opendatacommunities.org/id/metropolitan-district-council/leeds,Leeds City Council,Adult Social Care,Services For Older People Under 65 P/Dis,Third Party Payments,Home Care,568,15-Oct-2014,1410-00647,54.73,R,Allied Healthcare Group Ltd,No
Http://opendatacommunities.org/id/metropolitan-district-council/leeds,Leeds City Council,Adult Social Care,Services For Older People Under 65 P/Dis,Third Party Payments,Home Care,568,16-Oct-2014,1410-00648,1168.12,R,Allied Healthcare Group Ltd,No
Http://opendatacommunities.org/id/metropolitan-district-council/leeds,Leeds City Council,Adult Social Care,Services For Older People Under 65 P/Dis,Third Party Payments,Home Care,568,16-Oct-2014,1410-00649,250.95,R,Allied Healthcare Group Ltd,No
Http://opendatacommunities.org/id/metropolitan-district-council/leeds,Leeds City Council,Adult Social Care,Services For Older People Under 65 P/Dis,Third Party Payments,Home Care,568,16-Oct-2014,1410-00650,223.11,R,Allied Healthcare Group Ltd,No
Http://opendatacommunities.org/id/metropolitan-district-council/leeds,Leeds City Council,Adult Social Care,Services For Older People Under 65 P/Dis,Third Party Payments,Home Care,568,16-Oct-2014,1410-00651,143.94,R,Allied Healthcare Group Ltd,No
Http://opendatacommunities.org/id/metropolitan-district-council/leeds,Leeds City Council,Adult Social Care,Services For Older People Under 65 P/Dis,Third Party Payments,Home Care,568,29-Oct-2014,1410-00652,1447.71,R,Allied Healthcare Group Ltd,No
Http://opendatacommunities.org/id/metropolitan-district-council/leeds,Leeds City Council,Adult Social Care,Services For Older People Under 65 P/Dis,Third Party Payments,Home Care,568,16-Oct-2014,1410-00653,1988.54,R,Allied Healthcare Group Ltd,No
Http://opendatacommunities.org/id/metropolitan-district-council/leeds,Leeds City Council,Adult Social Care,Services For Older People Under 65 P/Dis,Third Party Payments,Home Care,568,16-Oct-2014,1410-00654,984.17,R,Allied Healthcare Group Ltd,No
Http://opendatacommunities.org/id/metropolitan-district-council/leeds,Leeds City Council,Adult Social Care,Services For Older People Under 65 P/Dis,Third Party Payments,Home Care,568,21-Oct-2014,1410-00655,132.44,R,Allied Healthcare Group Ltd,No
Http://opendatacommunities.org/id/metropolitan-district-council/leeds,Leeds City Council,Adult Social Care,Services For Older People Under 65 P/Dis,Third Party Payments,Home Care,568,21-Oct-2014,1410-00656,12.25,R,Allied Healthcare Group Ltd,No
Http://opendatacommunities.org/id/metropolitan-district-council/leeds,Leeds City Council,Adult Social Care,Services For Older People Under 65 P/Dis,Third Party Payments,Home Care,568,21-Oct-2014,1410-00657,12.61,R,Allied Healthcare Group Ltd,No
Http://opendatacommunities.org/id/metropolitan-district-council/leeds,Leeds City Council,Adult Social Care,Services For Older People Under 65 P/Dis,Third Party Payments,Home Care,568,08-Oct-2014,1410-00658,33.15,R,Allied Healthcare Group Ltd,No
Http://opendatacommunities.org/id/metropolitan-district-council/leeds,Leeds City Council,Adult Social Care,Services For Older People Under 65 P/Dis,Third Party Payments,Home Care,568,09-Oct-2014,1410-00659,244.80,R,Allied Healthcare Group Ltd,No
Http://opendatacommunities.org/id/metropolitan-district-council/leeds,Leeds City Council,Adult Social Care,Services For Older People Under 65 P/Dis,Third Party Payments,Home Care,568,23-Oct-2014,1410-00660,1428.00,R,Allied Healthcare Group Ltd,No
Http://opendatacommunities.org/id/metropolitan-district-council/leeds,Leeds City Council,Adult Social Care,Services For Older People Under 65 P/Dis,Third Party Payments,Home Care,568,23-Oct-2014,1410-00661,5563.05,R,Allied Healthcare Group Ltd,No
Http://opendatacommunities.org/id/metropolitan-district-council/leeds,Leeds City Council,Adult Social Care,Services For Older People Under 65 P/Dis,Third Party Payments,Home Care,568,23-Oct-2014,1410-00662,941.86,R,Allied Healthcare Group Ltd,No
Http://opendatacommunities.org/id/metropolitan-district-council/leeds,Leeds City Council,Childrens Services,Safeguarding Targeted & Specialist,Third Party Payments,Services Rendered By Voluntary Sector,505,06-Oct-2014,1410-00663,85.94,R,Allied Healthcare Group Ltd,No
Http://opendatacommunities.org/id/metropolitan-district-council/leeds,Leeds City Council,Childrens Services,Safeguarding Targeted & Specialist,Third Party Payments,Services Rendered By Voluntary Sector,505,08-Oct-2014,1410-00664,705.67,R,Allied Healthcare Group Ltd,No
Http://opendatacommunities.org/id/metropolitan-district-council/leeds,Leeds City Council as Accountable Body,Social Services Pooled Budgets,Jcs For People With Learning Disabilitie,Third Party Payments,Home Care,568,10-Oct-2014,1410-00665,577.96,R,Allied Healthcare Group Ltd,No
Http://opendatacommunities.org/id/metropolitan-district-council/leeds,Leeds City Council as Accountable Body,Social Services Pooled Budgets,Jcs For People With Learning Disabilitie,Third Party Payments,Home Care,568,31-Oct-2014,1410-00666,3462.53,R,Allied Healthcare Group Ltd,No
Http://opendatacommunities.org/id/metropolitan-district-council/leeds,Leeds City Council as Accountable Body,Social Services Pooled Budgets,Jcs For People With Learning Disabilitie,Third Party Payments,Home Care,568,31-Oct-2014,1410-00667,3932.76,R,Allied Healthcare Group Ltd,No
Http://opendatacommunities.org/id/metropolitan-district-council/leeds,Leeds City Council as Accountable Body,Social Services Pooled Budgets,Jcs For People With Learning Disabilitie,Third Party Payments,Home Care,568,16-Oct-2014,1410-00668,3357.73,R,Allied Healthcare Group Ltd,No
Http://opendatacommunities.org/id/metropolitan-district-council/leeds,Leeds City Council as Accountable Body,Social Services Pooled Budgets,Jcs For People With Learning Disabilitie,Third Party Payments,Home Care,568,29-Oct-2014,1410-00669,454.94,R,Allied Healthcare Group Ltd,No
Http://opendatacommunities.org/id/metropolitan-district-council/leeds,Leeds City Council as Accountable Body,Social Services Pooled Budgets,Jcs For People With Learning Disabilitie,Third Party Payments,Home Care,568,17-Oct-2014,1410-00670,37.65,R,Allied Healthcare Group Ltd,No
Http://opendatacommunities.org/id/metropolitan-district-council/leeds,Leeds City Council as Accountable Body,Social Services Pooled Budgets,Jcs For People With Learning Disabilitie,Third Party Payments,Home Care,568,17-Oct-2014,1410-00671,3705.76,R,Allied Healthcare Group Ltd,No
Http://opendatacommunities.org/id/metropolitan-district-council/leeds,Leeds City Council as Accountable Body,Social Services Pooled Budgets,Jcs For People With Learning Disabilitie,Third Party Payments,Home Care,568,22-Oct-2014,1410-00672,111.20,R,Allied Healthcare Group Ltd,No
Http://opendatacommunities.org/id/metropolitan-district-council/leeds,Leeds City Council as Accountable Body,Social Services Pooled Budgets,Jcs For People With Learning Disabilitie,Third Party Payments,Home Care,568,22-Oct-2014,1410-00673,622.00,R,Allied Healthcare Group Ltd,No
Http://opendatacommunities.org/id/metropolitan-district-council/leeds,Leeds City Council as Accountable Body,Social Services Pooled Budgets,Jcs For People With Learning Disabilitie,Third Party Payments,Home Care,568,13-Oct-2014,1410-00674,3372.14,R,Allied Healthcare Group Ltd,No
Http://opendatacommunities.org/id/metropolitan-district-council/leeds,Leeds City Council as Accountable Body,Social Services Pooled Budgets,Jcs For People With Learning Disabilitie,Third Party Payments,Home Care,568,13-Oct-2014,1410-00675,564.75,R,Allied Healthcare Group Ltd,No
Http://opendatacommunities.org/id/metropolitan-district-council/leeds,Leeds City Council as Accountable Body,Social Services Pooled Budgets,Jcs For People With Learning Disabilitie,Third Party Payments,Home Care,568,13-Oct-2014,1410-00676,37.65,R,Allied Healthcare Group Ltd,No
Http://opendatacommunities.org/id/metropolitan-district-council/leeds,Leeds City Council as Accountable Body,Social Services Pooled Budgets,Jcs For People With Learning Disabilitie,Third Party Payments,Home Care,568,13-Oct-2014,1410-00677,3761.12,R,Allied Healthcare Group Ltd,No
Http://opendatacommunities.org/id/metropolitan-district-council/leeds,Leeds City Council as Accountable Body,Social Services Pooled Budgets,Jcs For People With Learning Disabilitie,Third Party Payments,Home Care,568,22-Oct-2014,1410-00678,5.10,R,Allied Healthcare Group Ltd,No
Http://opendatacommunities.org/id/metropolitan-district-council/leeds,Leeds City Council as Accountable Body,Social Services Pooled Budgets,Jcs For People With Learning Disabilitie,Third Party Payments,Home Care,568,09-Oct-2014,1410-00679,3350.76,R,Allied Healthcare Group Ltd,No
Http://opendatacommunities.org/id/metropolitan-district-council/leeds,Leeds City Council as Accountable Body,Social Services Pooled Budgets,Jcs For People With Learning Disabilitie,Third Party Payments,Home Care,568,09-Oct-2014,1410-00680,37.65,R,Allied Healthcare Group Ltd,No
Http://opendatacommunities.org/id/metropolitan-district-council/leeds,Leeds City Council as Accountable Body,Social Services Pooled Budgets,Jcs For People With Learning Disabilitie,Third Party Payments,Home Care,568,09-Oct-2014,1410-00681,3806.36,R,Allied Healthcare Group Ltd,No
Http://opendatacommunities.org/id/metropolitan-district-council/leeds,Leeds City Council as Accountable Body,Social Services Pooled Budgets,Jcs For People With Learning Disabilitie,Third Party Payments,Home Care,568,13-Oct-2014,1410-00682,86.70,R,Allied Healthcare Group Ltd,No
Http://opendatacommunities.org/id/metropolitan-district-council/leeds,Leeds City Council as Accountable Body,Social Services Pooled Budgets,Jcs For People With Learning Disabilitie,Third Party Payments,Home Care,568,17-Oct-2014,1410-00683,597.58,R,Allied Healthcare Group Ltd,No
Http://opendatacommunities.org/id/metropolitan-district-council/leeds,Leeds City Council as Accountable Body,Social Services Pooled Budgets,Jcs For People With Learning Disabilitie,Third Party Payments,Home Care,568,24-Oct-2014,1410-00684,229.37,R,Allied Healthcare Group Ltd,No
Http://opendatacommunities.org/id/metropolitan-district-council/leeds,Leeds City Council as Accountable Body,Social Services Pooled Budgets,Jcs For People With Learning Disabilitie,Third Party Payments,Home Care,568,06-Oct-2014,1410-00685,556.43,R,Allied Healthcare Group Ltd,No
Http://opendatacommunities.org/id/metropolitan-district-council/leeds,Leeds City Council,Central & Corporate,Public Health,Third Party Payments,Public Health Commissioned Services,526,15-Oct-2014,1410-00686,263.16,R,Allied Pharmacy Ltd,No
Http://opendatacommunities.org/id/metropolitan-district-council/leeds,Leeds City Council,Childrens Services,Learning Skills & Universal,Third Party Payments,Services Rendered By Other Organisations,511,29-Oct-2014,1410-00687,174.60,R,REDACTED PERSONAL DATA,No
Http://opendatacommunities.org/id/metropolitan-district-council/leeds,Leeds City Council,Central & Corporate,Commercial Services Trading Services,Transport,Fuel (Non LCC Supplies),321,13-Oct-2014,1410-00688,46.38,R,Allstar Business Solutions Ltd,No
Http://opendatacommunities.org/id/metropolitan-district-council/leeds,Leeds City Council,Central & Corporate,Commercial Services Trading Services,Transport,Fuel (Non LCC Supplies),321,28-Oct-2014,1410-00689,115.46,R,Allstar Business Solutions Ltd,No
Http://opendatacommunities.org/id/metropolitan-district-council/leeds,Leeds City Council,Central & Corporate,Support And Facilities General Fund,Transport,Fuel (Non LCC Supplies),321,06-Oct-2014,1410-00690,164.18,R,Allstar Business Solutions Ltd,No
Http://opendatacommunities.org/id/metropolitan-district-council/leeds,Leeds City Council,Childrens Services,Learning Skills & Universal,Transport,Fuel (Non LCC Supplies),321,06-Oct-2014,1410-00691,2733.35,R,Allstar Business Solutions Ltd,No
Http://opendatacommunities.org/id/metropolitan-district-council/leeds,Leeds City Council,City Development,Highways,Transport,Fuel (Non LCC Supplies),321,06-Oct-2014,1410-00692,373.77,R,Allstar Business Solutions Ltd,No
Http://opendatacommunities.org/id/metropolitan-district-council/leeds,Leeds City Council,Environment & Housing,Hra,Transport,Fuel (LCC Supplies),320,29-Oct-2014,1410-00693,12.19,R,Allstar Business Solutions Ltd,No
Http://opendatacommunities.org/id/metropolitan-district-council/leeds,Leeds City Council,Environment & Housing,Parks & Countryside,Transport,Fuel (Non LCC Supplies),321,06-Oct-2014,1410-00694,110.17,R,Allstar Business Solutions Ltd,No
Http://opendatacommunities.org/id/metropolitan-district-council/leeds,Leeds City Council,Environment & Housing,Streetscene Environmental Services,Transport,Fuel (Non LCC Supplies),321,06-Oct-2014,1410-00695,9.00,R,Allstar Business Solutions Ltd,No
Http://opendatacommunities.org/id/metropolitan-district-council/leeds,Leeds City Council,Childrens Services,Safeguarding Targeted & Specialist  ,Transfer Payments,Leaving Care Grants,635,29-Sep-2014,1410-00696,416.67,R,Almanda Carpets Limited,Yes
Http://opendatacommunities.org/id/metropolitan-district-council/leeds,Leeds City Council,Childrens Services,Safeguarding Targeted & Specialist  ,Transfer Payments,Leaving Care Grants,635,29-Sep-2014,1410-00697,319.17,R,Almanda Carpets Limited,Yes
Http://opendatacommunities.org/id/metropolitan-district-council/leeds,Leeds City Council,Environment & Housing,Hra,Premises,General Maintenance,104,31-Oct-2014,1410-00698,125.00,R,Al-Murad Diy Ltd,No
Http://opendatacommunities.org/id/metropolitan-district-council/leeds,Leeds City Council,Environment & Housing,Hra,Premises,General Maintenance,104,31-Oct-2014,1410-00699,83.34,R,Al-Murad Diy Ltd,No
Http://opendatacommunities.org/id/metropolitan-district-council/leeds,Leeds City Council,Environment & Housing,Hra,Premises,General Maintenance,104,31-Oct-2014,1410-00700,83.34,R,Al-Murad Diy Ltd,No
Http://opendatacommunities.org/id/metropolitan-district-council/leeds,Leeds City Council,Environment & Housing,Hra,Premises,General Maintenance,104,31-Oct-2014,1410-00701,83.34,R,Al-Murad Diy Ltd,No
Http://opendatacommunities.org/id/metropolitan-district-council/leeds,Leeds City Council,Environment & Housing,Hra,Premises,General Maintenance,104,31-Oct-2014,1410-00702,33.34,R,Al-Murad Diy Ltd,No
Http://opendatacommunities.org/id/metropolitan-district-council/leeds,Leeds City Council,Environment & Housing,Hra,Premises,General Maintenance,104,31-Oct-2014,1410-00703,16.67,R,Al-Murad Diy Ltd,No
Http://opendatacommunities.org/id/metropolitan-district-council/leeds,Leeds City Council,Environment & Housing,Hra,Premises,General Maintenance,104,31-Oct-2014,1410-00704,8.33,R,Al-Murad Diy Ltd,No
Http://opendatacommunities.org/id/metropolitan-district-council/leeds,Leeds City Council,Environment & Housing,Hra,Premises,General Maintenance,104,31-Oct-2014,1410-00705,41.67,R,Al-Murad Diy Ltd,No
Http://opendatacommunities.org/id/metropolitan-district-council/leeds,Leeds City Council,Environment & Housing,Hra,Premises,General Maintenance,104,31-Oct-2014,1410-00706,4.17,R,Al-Murad Diy Ltd,No
Http://opendatacommunities.org/id/metropolitan-district-council/leeds,Leeds City Council,Environment & Housing,Hra,Premises,General Maintenance,104,31-Oct-2014,1410-00707,41.67,R,Al-Murad Diy Ltd,No
Http://opendatacommunities.org/id/metropolitan-district-council/leeds,Leeds City Council,Environment & Housing,Hra,Premises,General Maintenance,104,31-Oct-2014,1410-00708,41.67,R,Al-Murad Diy Ltd,No
Http://opendatacommunities.org/id/metropolitan-district-council/leeds,Leeds City Council,Environment & Housing,Hra,Premises,General Maintenance,104,31-Oct-2014,1410-00709,41.67,R,Al-Murad Diy Ltd,No
Http://opendatacommunities.org/id/metropolitan-district-council/leeds,Leeds City Council,Environment & Housing,Hra,Premises,General Maintenance,104,31-Oct-2014,1410-00710,41.67,R,Al-Murad Diy Ltd,No
Http://opendatacommunities.org/id/metropolitan-district-council/leeds,Leeds City Council,Environment & Housing,Hra,Premises,General Maintenance,104,31-Oct-2014,1410-00711,166.67,R,Al-Murad Diy Ltd,No
Http://opendatacommunities.org/id/metropolitan-district-council/leeds,Leeds City Council,Environment & Housing,Hra,Premises,General Maintenance,104,31-Oct-2014,1410-00712,58.34,R,Al-Murad Diy Ltd,No
Http://opendatacommunities.org/id/metropolitan-district-council/leeds,Leeds City Council,Environment & Housing,Hra,Premises,General Maintenance,104,31-Oct-2014,1410-00713,41.67,R,Al-Murad Diy Ltd,No
Http://opendatacommunities.org/id/metropolitan-district-council/leeds,Leeds City Council,Environment & Housing,Hra,Premises,General Maintenance,104,31-Oct-2014,1410-00714,83.34,R,Al-Murad Diy Ltd,No
Http://opendatacommunities.org/id/metropolitan-district-council/leeds,Leeds City Council,Environment & Housing,Hra,Premises,General Maintenance,104,31-Oct-2014,1410-00715,41.67,R,Al-Murad Diy Ltd,No
Http://opendatacommunities.org/id/metropolitan-district-council/leeds,Leeds City Council,Environment & Housing,Hra,Premises,General Maintenance,104,09-Oct-2014,1410-00716,16.67,R,Al-Murad Diy Ltd,No
Http://opendatacommunities.org/id/metropolitan-district-council/leeds,Leeds City Council,Environment & Housing,Hra,Premises,General Maintenance,104,09-Oct-2014,1410-00717,125.00,R,Al-Murad Diy Ltd,No
Http://opendatacommunities.org/id/metropolitan-district-council/leeds,Leeds City Council,Environment & Housing,Hra,Premises,General Maintenance,104,06-Oct-2014,1410-00718,150.00,R,Al-Murad Diy Ltd,No
Http://opendatacommunities.org/id/metropolitan-district-council/leeds,Leeds City Council,Environment & Housing,Hra,Premises,General Maintenance,104,09-Oct-2014,1410-00719,40.00,R,Al-Murad Diy Ltd,No
Http://opendatacommunities.org/id/metropolitan-district-council/leeds,Leeds City Council,Environment & Housing,Hra,Premises,General Maintenance,104,09-Oct-2014,1410-00720,41.67,R,Al-Murad Diy Ltd,No
Http://opendatacommunities.org/id/metropolitan-district-council/leeds,Leeds City Council,Environment & Housing,Hra,Premises,General Maintenance,104,09-Oct-2014,1410-00721,41.67,R,Al-Murad Diy Ltd,No
Http://opendatacommunities.org/id/metropolitan-district-council/leeds,Leeds City Council,Environment & Housing,Hra,Premises,General Maintenance,104,09-Oct-2014,1410-00722,41.67,R,Al-Murad Diy Ltd,No
Http://opendatacommunities.org/id/metropolitan-district-council/leeds,Leeds City Council,Environment & Housing,Hra,Premises,General Maintenance,104,09-Oct-2014,1410-00723,83.34,R,Al-Murad Diy Ltd,No
Http://opendatacommunities.org/id/metropolitan-district-council/leeds,Leeds City Council,Environment & Housing,Hra,Premises,General Maintenance,104,09-Oct-2014,1410-00724,83.34,R,Al-Murad Diy Ltd,No
Http://opendatacommunities.org/id/metropolitan-district-council/leeds,Leeds City Council,Environment & Housing,Hra,Premises,General Maintenance,104,09-Oct-2014,1410-00725,41.67,R,Al-Murad Diy Ltd,No
Http://opendatacommunities.org/id/metropolitan-district-council/leeds,Leeds City Council,Environment & Housing,Hra,Premises,General Maintenance,104,09-Oct-2014,1410-00726,16.67,R,Al-Murad Diy Ltd,No
Http://opendatacommunities.org/id/metropolitan-district-council/leeds,Leeds City Council,Environment & Housing,Hra,Premises,General Maintenance,104,31-Oct-2014,1410-00727,58.34,R,Al-Murad Diy Ltd,No
Http://opendatacommunities.org/id/metropolitan-district-council/leeds,Leeds City Council,Environment & Housing,Hra,Premises,General Maintenance,104,31-Oct-2014,1410-00728,166.67,R,Al-Murad Diy Ltd,No
Http://opendatacommunities.org/id/metropolitan-district-council/leeds,Leeds City Council,Environment & Housing,Hra,Premises,General Maintenance,104,31-Oct-2014,1410-00729,41.67,R,Al-Murad Diy Ltd,No
Http://opendatacommunities.org/id/metropolitan-district-council/leeds,Leeds City Council,Environment & Housing,Hra,Premises,General Maintenance,104,31-Oct-2014,1410-00730,50.00,R,Al-Murad Diy Ltd,No
Http://opendatacommunities.org/id/metropolitan-district-council/leeds,Leeds City Council,Environment & Housing,Hra,Premises,General Maintenance,104,31-Oct-2014,1410-00731,8.34,R,Al-Murad Diy Ltd,No
Http://opendatacommunities.org/id/metropolitan-district-council/leeds,Leeds City Council,Environment & Housing,Hra,Premises,General Maintenance,104,31-Oct-2014,1410-00732,4.17,R,Al-Murad Diy Ltd,No
Http://opendatacommunities.org/id/metropolitan-district-council/leeds,Leeds City Council,Environment & Housing,Hra,Premises,General Maintenance,104,31-Oct-2014,1410-00733,233.34,R,Al-Murad Diy Ltd,No
Http://opendatacommunities.org/id/metropolitan-district-council/leeds,Leeds City Council,Environment & Housing,Hra,Supplies and Services,Teaching Furniture & Equipment,207,10-Oct-2014,1410-00734,304.47,R,Alpha Abc,No
Http://opendatacommunities.org/id/metropolitan-district-council/leeds,Leeds City Council,Environment & Housing,Hra,Supplies and Services,Teaching Furniture & Equipment,207,03-Oct-2014,1410-00735,212.40,R,Alpha Abc,No
Http://opendatacommunities.org/id/metropolitan-district-council/leeds,Leeds City Council,Childrens Services,Safeguarding Targeted & Specialist,Support Services,Legal Disbursements,411,24-Oct-2014,1410-00736,151.25,R,Alpha Biolabs,No
Http://opendatacommunities.org/id/metropolitan-district-council/leeds,Leeds City Council,Childrens Services,Safeguarding Targeted & Specialist,Support Services,Legal Disbursements,411,14-Oct-2014,1410-00737,112.50,R,Alpha Biolabs,No
Http://opendatacommunities.org/id/metropolitan-district-council/leeds,Leeds City Council,Childrens Services,Safeguarding Targeted & Specialist,Support Services,Legal Disbursements,411,31-Oct-2014,1410-00738,128.75,R,Alpha Biolabs,No
Http://opendatacommunities.org/id/metropolitan-district-council/leeds,Leeds City Council,Central & Corporate,Commercial Services Trading Services,Supplies and Services,Operational Materials,205,15-Oct-2014,1410-00739,41.50,R,Alvin Morris Ltd,No
Http://opendatacommunities.org/id/metropolitan-district-council/leeds,Leeds City Council,Adult Social Care,Services For Older People - 65 And Over,Third Party Payments,Nursing Home,570,22-Oct-2014,1410-00740,3990.28,R,Alwoodley Nursing Home,No
Http://opendatacommunities.org/id/metropolitan-district-council/leeds,Leeds City Council,City Development,Libraries  Arts & Heritage,Transport,Public Transport Expenses,310,02-Oct-2014,1410-00741,140.00,R,Amanda Duke,No
Http://opendatacommunities.org/id/metropolitan-district-council/leeds,Leeds City Council,Adult Social Care,Services For Older People Under 65 P/Dis,Transfer Payments,Personalised Budgets,627,22-Oct-2014,1410-00742,4236.05,R,REDACTED PERSONAL DATA,No
Http://opendatacommunities.org/id/metropolitan-district-council/leeds,Leeds City Council as Accountable Body,Social Services Pooled Budgets,Jcs For People With Learning Disabilitie,Transfer Payments,Personal Budgets,627,22-Oct-2014,1410-00743,1083.12,R,REDACTED PERSONAL DATA,No
Http://opendatacommunities.org/id/metropolitan-district-council/leeds,Leeds City Council,Adult Social Care,Services For Adults Under 65 Mental/Dis,Transfer Payments,Personalised Budgets,627,22-Oct-2014,1410-00744,2166.16,R,REDACTED PERSONAL DATA,No
Http://opendatacommunities.org/id/metropolitan-district-council/leeds,Leeds City Council,Adult Social Care,Services For Older People Under 65 P/Dis,Transfer Payments,Personalised Budgets,627,22-Oct-2014,1410-00745,951.56,R,REDACTED PERSONAL DATA,No
Http://opendatacommunities.org/id/metropolitan-district-council/leeds,Leeds City Council,Adult Social Care,Services For Older People Under 65 P/Dis,Transfer Payments,Direct Payments,626,22-Oct-2014,1410-00746,761.44,R,REDACTED PERSONAL DATA,No
Http://opendatacommunities.org/id/metropolitan-district-council/leeds,Leeds City Council,Strategic Accounts,Miscellaneous,Supplies and Services,Non-Recurring Grants,227,03-Oct-2014,1410-00747,300.00,R,Amaranth Football Club,No
Http://opendatacommunities.org/id/metropolitan-district-council/leeds,Leeds City Council,Central & Corporate,Commercial Services Trading Services,Supplies and Services,Operational Materials,205,14-Oct-2014,1410-00748,666.90,R,Amari Plastics Plc,No
Http://opendatacommunities.org/id/metropolitan-district-council/leeds,Leeds City Council,Central & Corporate,Commercial Services Trading Services,Supplies and Services,Operational Materials,205,14-Oct-2014,1410-00749,60.00,R,Amari Plastics Plc,No
Http://opendatacommunities.org/id/metropolitan-district-council/leeds,Leeds City Council,Central & Corporate,Support And Facilities General Fund,Supplies and Services,Operational Materials,205,29-Oct-2014,1410-00750,31.32,R,Amari Plastics Plc,No
Http://opendatacommunities.org/id/metropolitan-district-council/leeds,Leeds City Council,City Development,Recreation  ,Supplies and Services,Resaleable Materials,204,24-Sep-2014,1410-00751,149.93,R,Amateur Rowing Ass,Yes
Http://opendatacommunities.org/id/metropolitan-district-council/leeds,Leeds City Council,City Development,Recreation,Supplies and Services,Other Hired And Contracted Services,265,17-Oct-2014,1410-00752,166.66,R,Amateur Swimming Association,No
Http://opendatacommunities.org/id/metropolitan-district-council/leeds,Leeds City Council,Childrens Services,Learning Skills & Universal,Third Party Payments,Services Rendered By Other Organisations,511,24-Oct-2014,1410-00753,2375.00,R,Amazing Grace Early Years Childcare,No
Http://opendatacommunities.org/id/metropolitan-district-council/leeds,Leeds City Council,Adult Social Care,Assessment And Care Management  ,Supplies and Services,Operational Furniture And Equipment,203,09-Sep-2014,1410-00754,24.05,R,Amazon *mktplce Eu-Uk,Yes
Http://opendatacommunities.org/id/metropolitan-district-council/leeds,Leeds City Council,Adult Social Care,Assessment And Care Management  ,Supplies and Services,Telephones,213,26-Sep-2014,1410-00755,11.97,R,Amazon *mktplce Eu-Uk,Yes
Http://opendatacommunities.org/id/metropolitan-district-council/leeds,Leeds City Council,Adult Social Care,Services For Adults Under 65 Mental/Dis  ,Supplies and Services,Books & Audio-Visual Materials,206,27-Sep-2014,1410-00756,4.85,R,Amazon *mktplce Eu-Uk,Yes
Http://opendatacommunities.org/id/metropolitan-district-council/leeds,Leeds City Council,Adult Social Care,Social Services Support Services  ,Supplies and Services,Telephones,213,12-Sep-2014,1410-00757,9.31,R,Amazon *mktplce Eu-Uk,Yes
Http://opendatacommunities.org/id/metropolitan-district-council/leeds,Leeds City Council,Central & Corporate,Benefits  ,Supplies and Services,Office Furniture & Equipment,201,29-Aug-2014,1410-00758,17.94,R,Amazon *mktplce Eu-Uk,Yes
Http://opendatacommunities.org/id/metropolitan-district-council/leeds,Leeds City Council,Central & Corporate,Benefits  ,Supplies and Services,Office Furniture & Equipment,201,30-Aug-2014,1410-00759,13.54,R,Amazon *mktplce Eu-Uk,Yes
Http://opendatacommunities.org/id/metropolitan-district-council/leeds,Leeds City Council,Central & Corporate,Benefits  ,Supplies and Services,Office Furniture & Equipment,201,10-Sep-2014,1410-00760,23.25,R,Amazon *mktplce Eu-Uk,Yes
Http://opendatacommunities.org/id/metropolitan-district-council/leeds,Leeds City Council,Central & Corporate,Benefits  ,Supplies and Services,Office Furniture & Equipment,201,19-Sep-2014,1410-00761,31.96,R,Amazon *mktplce Eu-Uk,Yes
Http://opendatacommunities.org/id/metropolitan-district-council/leeds,Leeds City Council,Central & Corporate,Benefits  ,Supplies and Services,Office Furniture & Equipment,201,19-Sep-2014,1410-00762,31.96,R,Amazon *mktplce Eu-Uk,Yes
Http://opendatacommunities.org/id/metropolitan-district-council/leeds,Leeds City Council,Central & Corporate,Benefits  ,Supplies and Services,Office Furniture & Equipment,201,24-Sep-2014,1410-00763,18.47,R,Amazon *mktplce Eu-Uk,Yes
Http://opendatacommunities.org/id/metropolitan-district-council/leeds,Leeds City Council,Central & Corporate,Commercial Services Trading Services  ,Supplies and Services,Operational Furniture And Equipment,203,08-Sep-2014,1410-00764,49.95,R,Amazon *mktplce Eu-Uk,Yes
Http://opendatacommunities.org/id/metropolitan-district-council/leeds,Leeds City Council,Central & Corporate,Commercial Services Trading Services  ,Supplies and Services,Operational Furniture And Equipment,203,12-Sep-2014,1410-00765,2.88,R,Amazon *mktplce Eu-Uk,Yes
Http://opendatacommunities.org/id/metropolitan-district-council/leeds,Leeds City Council,Central & Corporate,Commercial Services Trading Services  ,Supplies and Services,Operational Furniture And Equipment,203,12-Sep-2014,1410-00766,25.00,R,Amazon *mktplce Eu-Uk,Yes
Http://opendatacommunities.org/id/metropolitan-district-council/leeds,Leeds City Council,Central & Corporate,Commercial Services Trading Services  ,Supplies and Services,Operational Materials,205,24-Sep-2014,1410-00767,69.06,R,Amazon *mktplce Eu-Uk,Yes
Http://opendatacommunities.org/id/metropolitan-district-council/leeds,Leeds City Council,Central & Corporate,Commercial Services Trading Services  ,Supplies and Services,Operational Materials,205,29-Sep-2014,1410-00768,30.00,R,Amazon *mktplce Eu-Uk,Yes
Http://opendatacommunities.org/id/metropolitan-district-council/leeds,Leeds City Council,Central & Corporate,Commercial Services Trading Services  ,Supplies and Services,Telephones,213,19-Sep-2014,1410-00769,7.00,R,Amazon *mktplce Eu-Uk,Yes
Http://opendatacommunities.org/id/metropolitan-district-council/leeds,Leeds City Council,Central & Corporate,Corporate Governance  ,Supplies and Services,Computer Software & Equipment,214,15-Sep-2014,1410-00770,23.77,R,Amazon *mktplce Eu-Uk,Yes
Http://opendatacommunities.org/id/metropolitan-district-council/leeds,Leeds City Council,Central & Corporate,Customer Services  ,Premises,Cleaning Maintenance & Toiletries,127,25-Sep-2014,1410-00771,26.97,R,Amazon *mktplce Eu-Uk,Yes
Http://opendatacommunities.org/id/metropolitan-district-council/leeds,Leeds City Council,Central & Corporate,Customer Services  ,Supplies and Services,Office Furniture & Equipment,201,12-Sep-2014,1410-00772,354.44,R,Amazon *mktplce Eu-Uk,Yes
Http://opendatacommunities.org/id/metropolitan-district-council/leeds,Leeds City Council,Central & Corporate,Customer Services  ,Supplies and Services,Office Furniture & Equipment,201,15-Sep-2014,1410-00773,9.08,R,Amazon *mktplce Eu-Uk,Yes
Http://opendatacommunities.org/id/metropolitan-district-council/leeds,Leeds City Council,Central & Corporate,Customer Services  ,Supplies and Services,Operational Materials,205,17-Sep-2014,1410-00774,21.06,R,Amazon *mktplce Eu-Uk,Yes
Http://opendatacommunities.org/id/metropolitan-district-council/leeds,Leeds City Council,Central & Corporate,Executive Support  ,Supplies and Services,Office Consumables,210,19-Sep-2014,1410-00775,8.82,R,Amazon *mktplce Eu-Uk,Yes
Http://opendatacommunities.org/id/metropolitan-district-council/leeds,Leeds City Council,Central & Corporate,Executive Support  ,Supplies and Services,Computer Software & Equipment,214,23-Sep-2014,1410-00776,49.99,R,Amazon *mktplce Eu-Uk,Yes
Http://opendatacommunities.org/id/metropolitan-district-council/leeds,Leeds City Council,Central & Corporate,Information Technology  ,Supplies and Services,Office Consumables,210,04-Sep-2014,1410-00777,27.49,R,Amazon *mktplce Eu-Uk,Yes
Http://opendatacommunities.org/id/metropolitan-district-council/leeds,Leeds City Council,Central & Corporate,Information Technology  ,Supplies and Services,Computer Software & Equipment,214,01-Sep-2014,1410-00778,-89.50,R,Amazon *mktplce Eu-Uk,Yes
Http://opendatacommunities.org/id/metropolitan-district-council/leeds,Leeds City Council,Central & Corporate,Information Technology  ,Supplies and Services,Computer Software & Equipment,214,17-Sep-2014,1410-00779,4.25,R,Amazon *mktplce Eu-Uk,Yes
Http://opendatacommunities.org/id/metropolitan-district-council/leeds,Leeds City Council,Central & Corporate,Leeds Initiative  ,Supplies and Services,Computer Software & Equipment,214,12-Sep-2014,1410-00780,176.97,R,Amazon *mktplce Eu-Uk,Yes
Http://opendatacommunities.org/id/metropolitan-district-council/leeds,Leeds City Council,Central & Corporate,Leeds Initiative  ,Supplies and Services,Computer Software & Equipment,214,13-Sep-2014,1410-00781,13.50,R,Amazon *mktplce Eu-Uk,Yes
Http://opendatacommunities.org/id/metropolitan-district-council/leeds,Leeds City Council,Central & Corporate,Leeds Initiative  ,Supplies and Services,Computer Software & Equipment,214,15-Sep-2014,1410-00782,32.04,R,Amazon *mktplce Eu-Uk,Yes
Http://opendatacommunities.org/id/metropolitan-district-council/leeds,Leeds City Council,Central & Corporate,Public Health  ,Supplies and Services,Books & Audio-Visual Materials,206,24-Sep-2014,1410-00783,48.43,R,Amazon *mktplce Eu-Uk,Yes
Http://opendatacommunities.org/id/metropolitan-district-council/leeds,Leeds City Council,Central & Corporate,Public Health  ,Supplies and Services,Office Consumables,210,24-Sep-2014,1410-00784,14.14,R,Amazon *mktplce Eu-Uk,Yes
Http://opendatacommunities.org/id/metropolitan-district-council/leeds,Leeds City Council,Central & Corporate,Public Health  ,Supplies and Services,Office Consumables,210,29-Sep-2014,1410-00785,100.88,R,Amazon *mktplce Eu-Uk,Yes
Http://opendatacommunities.org/id/metropolitan-district-council/leeds,Leeds City Council,Central & Corporate,Support And Facilities General Fund  ,Supplies and Services,Books & Audio-Visual Materials,206,19-Sep-2014,1410-00786,65.34,R,Amazon *mktplce Eu-Uk,Yes
Http://opendatacommunities.org/id/metropolitan-district-council/leeds,Leeds City Council,Central & Corporate,Support And Facilities General Fund  ,Supplies and Services,Books & Audio-Visual Materials,206,19-Sep-2014,1410-00787,63.63,R,Amazon *mktplce Eu-Uk,Yes
Http://opendatacommunities.org/id/metropolitan-district-council/leeds,Leeds City Council,Childrens Services,Learning Skills & Universal  ,Supplies and Services,Teaching Materials,202,16-Sep-2014,1410-00788,2.39,R,Amazon *mktplce Eu-Uk,Yes
Http://opendatacommunities.org/id/metropolitan-district-council/leeds,Leeds City Council,Childrens Services,Learning Skills & Universal  ,Supplies and Services,Teaching Materials,202,26-Sep-2014,1410-00789,287.00,R,Amazon *mktplce Eu-Uk,Yes
Http://opendatacommunities.org/id/metropolitan-district-council/leeds,Leeds City Council,Childrens Services,Learning Skills & Universal  ,Supplies and Services,Office Consumables,210,16-Sep-2014,1410-00790,21.23,R,Amazon *mktplce Eu-Uk,Yes
Http://opendatacommunities.org/id/metropolitan-district-council/leeds,Leeds City Council,Childrens Services,Learning Skills & Universal  ,Supplies and Services,Office Consumables,210,16-Sep-2014,1410-00791,4.95,R,Amazon *mktplce Eu-Uk,Yes
Http://opendatacommunities.org/id/metropolitan-district-council/leeds,Leeds City Council,Childrens Services,Learning Skills & Universal  ,Supplies and Services,Computer Software & Equipment,214,18-Sep-2014,1410-00792,12.24,R,Amazon *mktplce Eu-Uk,Yes
Http://opendatacommunities.org/id/metropolitan-district-council/leeds,Leeds City Council,Childrens Services,Partnership Development & Leadership  ,Premises,Cleaning Maintenance & Toiletries,127,03-Sep-2014,1410-00793,24.90,R,Amazon *mktplce Eu-Uk,Yes
Http://opendatacommunities.org/id/metropolitan-district-council/leeds,Leeds City Council,Childrens Services,Partnership Development & Leadership  ,Supplies and Services,Office Consumables,210,03-Sep-2014,1410-00794,5.48,R,Amazon *mktplce Eu-Uk,Yes
Http://opendatacommunities.org/id/metropolitan-district-council/leeds,Leeds City Council,Childrens Services,Partnership Development & Leadership  ,Supplies and Services,Office Consumables,210,03-Sep-2014,1410-00795,19.89,R,Amazon *mktplce Eu-Uk,Yes
Http://opendatacommunities.org/id/metropolitan-district-council/leeds,Leeds City Council,Childrens Services,Partnership Development & Leadership  ,Supplies and Services,Computer Software & Equipment,214,01-Sep-2014,1410-00796,8.00,R,Amazon *mktplce Eu-Uk,Yes
Http://opendatacommunities.org/id/metropolitan-district-council/leeds,Leeds City Council,Childrens Services,Safeguarding Targeted & Specialist  ,Supplies and Services,Teaching Materials,202,07-Sep-2014,1410-00797,11.75,R,Amazon *mktplce Eu-Uk,Yes
Http://opendatacommunities.org/id/metropolitan-district-council/leeds,Leeds City Council,Childrens Services,Safeguarding Targeted & Specialist  ,Supplies and Services,Teaching Materials,202,09-Sep-2014,1410-00798,95.68,R,Amazon *mktplce Eu-Uk,Yes
Http://opendatacommunities.org/id/metropolitan-district-council/leeds,Leeds City Council,Childrens Services,Safeguarding Targeted & Specialist  ,Supplies and Services,Teaching Materials,202,10-Sep-2014,1410-00799,21.94,R,Amazon *mktplce Eu-Uk,Yes
Http://opendatacommunities.org/id/metropolitan-district-council/leeds,Leeds City Council,Childrens Services,Safeguarding Targeted & Specialist  ,Supplies and Services,Teaching Materials,202,16-Sep-2014,1410-00800,29.95,R,Amazon *mktplce Eu-Uk,Yes
Http://opendatacommunities.org/id/metropolitan-district-council/leeds,Leeds City Council,Childrens Services,Safeguarding Targeted & Specialist  ,Supplies and Services,Teaching Materials,202,24-Sep-2014,1410-00801,8.56,R,Amazon *mktplce Eu-Uk,Yes
